{"text_format":"1","workbook":"xlsx","n_sheets":4,"sheets":["Sverigeranking","Regler","Miniorranking","Seriespelsranking"],"not_rendered":{"charts":0,"images":0,"macros":1,"external_links":0,"defined_names":5,"comments":0,"pivot_tables":0},"unopened":[],"bounds":{"document_bytes":16777216,"sheet_cells":100000,"rows_first":2000,"rows_last":500,"rows_between":2000,"halvings":0,"cell_chars":16384,"cell_head_chars":4096},"cells_cut":0,"cells_raw":0,"read":"whole","date_system":"1900"}

{"sheet":"Sverigeranking","index":0,"n_rows":220,"n_cols":146,"rows_kept":220,"cut":false,"hidden":false,"merged":[]}
[null,"Svenska Hästskokastarförbundets Sverigeranking",null,null,null,null,null,null,null,null,null,null,null,null,null,null,null,null,null,null,null,null,null,"Antal kastare som deltagit i samtliga tävlingar senaste 12 månaderna:",{"$f":"COUNTIF(F5:F199,15)","v":6}]
[]
[null,"SLUTSTÄLLNING 2017/2018",null,null,null,null,null,null,{"$f":"IF(SUM(I5:I400)>100,1,\"\")","v":1},1,1,1,1,1,1,"",1,1,1,1,1,1,"",1,1,1,1]
["Plac.","Kastare ","Klubb","Rankingpoäng",null,"Antal tävlingar","Snitt per serie",null,"Växjö Open","Björkenäs Open","Utomhus-SM Dag 1","Utomhus-SM Dag 2","Utomhus Smålandsmästaren","Carlskrona Cup","Gotland Open",null,"Dynapac Open","Blekinge-DM Ute","Åseda Open","Höstskon Nybro","Novemberkampen","Inomhus-SM",null,"Inomhus Smålandsmästaren ","Blekinge DM inne","Värendspokalen","Tingsryds Open","Antal arrangerade tävlingar","Ej medräknat resultat","Ej medräknat resultat",null,null,null,null,null,null,null,null,null,null,null,null,null,null,null,null,null,null,null,null,null,null,null,null,null,null,null,null,null,1,2,3,4,5,6,7,8,9,10,11,12,13,14,15,16,"ej medräknad",null,"missade tävlingar"]
[{"$f":"IF(BE5>1,AF5&\" (\"&AE5&\")\",AF5&\" (\"&AG5&\")\")","v":"1 (1)"},"Sandor Bodi","Växjö",{"$f":"SUM(BH5:BT5)","v":5365},null,{"$f":"COUNT(I5:AA5)","v":14},{"$f":"SUM((CB5)/(F5*2))","v":203.75},null,433,375,350,353,421,376,null,null,436,null,382,340,470,472,null,461,null,367,469,{"$f":"SUM($I$3:$AA$3)","v":17},{"$f":"BX5","v":340},{"$f":"BY5","v":"-"},1,1,{"$f":"IF(F5>1,ROW(1:1),\"-\")","v":1},1,null,null,{"$f":"COUNT($I$3,I5,H5)","v":2},{"$f":"COUNT($J$3,J5,I5)","v":3},{"$f":"COUNT($K$3,K5,J5)","v":3},{"$f":"COUNT($L$3,L5,K5)","v":3},{"$f":"COUNT($M$3,M5,L5)","v":3},{"$f":"COUNT($N$3,N5,M5)","v":3},{"$f":"COUNT($O$3,O5,N5)","v":2},{"$f":"COUNT($P$3,P5,O5)","v":0},{"$f":"COUNT($Q$3,Q5,P5)","v":2},{"$f":"COUNT($R$3,R5,Q5)","v":2},{"$f":"COUNT($S$3,S5,R5)","v":2},{"$f":"COUNT($T$3,T5,S5)","v":3},{"$f":"COUNT($U$3,U5,T5)","v":3},{"$f":"COUNT($V$3,V5,U5)","v":3},{"$f":"COUNT($W$3,W5,V5)","v":1},{"$f":"COUNT($X$3,X5,W5)","v":2},{"$f":"COUNT($Y$3,Y5,X5)","v":2},{"$f":"COUNT($Z$3,Z5,Y5)","v":2},{"$f":"COUNT($AA$3,AA5,Z5)","v":3},null,{"$f":"IF(H5=\"x\",1,2)","v":2},null,null,{"$f":"IF($F5>0,LARGE($I5:$AA5,1),\"\")","v":472},{"$f":"IF($F5>1,LARGE($I5:$AA5,2),\"\")","v":470},{"$f":"IF($F5>2,LARGE($I5:$AA5,3),\"\")","v":469},{"$f":"IF($F5>3,LARGE($I5:$AA5,4),\"\")","v":461},{"$f":"IF($F5>4,LARGE($I5:$AA5,5),\"\")","v":436},{"$f":"IF($F5>5,LARGE($I5:$AA5,6),\"\")","v":433},{"$f":"IF($F5>6,LARGE($I5:$AA5,7),\"\")","v":421},{"$f":"IF($F5>7,LARGE($I5:$AA5,8),\"\")","v":382},{"$f":"IF($F5>8,LARGE($I5:$AA5,9),\"\")","v":376},{"$f":"IF($F5>9,LARGE($I5:$AA5,10),\"\")","v":375},{"$f":"IF($F5>10,LARGE($I5:$AA5,11),\"\")","v":367},{"$f":"IF($F5>11,LARGE($I5:$AA5,12),\"\")","v":353},{"$f":"IF($F5>12,LARGE($I5:$AA5,13),\"\")","v":350},{"$f":"IF($F5>13,LARGE($I5:$AA5,14),\"\")","v":340},{"$f":"IF($F5>14,LARGE($I5:$AA5,15),\"\")","v":""},{"$f":"IF($F5>15,LARGE($I5:$AA5,16),\"\")","v":""},{"$f":"IF($F5>13,LARGE($I5:$AA5,14),\"-\")","v":340},{"$f":"IF($F5>14,LARGE($I5:$AA5,15),\"-\")","v":"-"},{"$f":"SUM(AB5-F5)-3","v":0},null,{"$f":"SUM(BH5:BW5)","v":5705},null,null,null,null,null,null,null,null,null,null,null,null,null,null,null,null,null,null,null,null,null,null,null,null,null,null,null,null,null,null,null,null,null,null,null,null,null,null,null,null,null,null,null,null,null,null,null,null,null,null,null,null,null,null,null,null,null,null,null,null,null,null,1,null,{"$f":"IF(BE5>=1,AF5,\"\")","v":1},{"$f":"IF(BE5>1,\"(\"&AE5&\")\",\"(\"&AG5&\")\")","v":"(1)"}]
["2 (2)","Kent Sundahl","Carlskrona",5069,null,13,194.96153846153845,null,316,298,389,466,null,345,null,null,411,null,481,475,405,298,null,null,420,402,363,17,"-","-",2,{"$f":"IF(D6<D5,AH6,AF5)","v":2},2,2,null,null,{"$f":"COUNT($I$3,I6,H6)","v":2},{"$f":"COUNT($J$3,J6,I6)","v":3},{"$f":"COUNT($K$3,K6,J6)","v":3},{"$f":"COUNT($L$3,L6,K6)","v":3},{"$f":"COUNT($M$3,M6,L6)","v":2},{"$f":"COUNT($N$3,N6,M6)","v":2},{"$f":"COUNT($O$3,O6,N6)","v":2},{"$f":"COUNT($P$3,P6,O6)","v":0},{"$f":"COUNT($Q$3,Q6,P6)","v":2},{"$f":"COUNT($R$3,R6,Q6)","v":2},{"$f":"COUNT($S$3,S6,R6)","v":2},{"$f":"COUNT($T$3,T6,S6)","v":3},{"$f":"COUNT($U$3,U6,T6)","v":3},{"$f":"COUNT($V$3,V6,U6)","v":3},{"$f":"COUNT($W$3,W6,V6)","v":1},{"$f":"COUNT($X$3,X6,W6)","v":1},{"$f":"COUNT($Y$3,Y6,X6)","v":2},{"$f":"COUNT($Z$3,Z6,Y6)","v":3},{"$f":"COUNT($AA$3,AA6,Z6)","v":3},null,2,null,null,{"$f":"IF($F6>0,LARGE($I6:$AA6,1),\"\")","v":481},{"$f":"IF($F6>1,LARGE($I6:$AA6,2),\"\")","v":475},{"$f":"IF($F6>2,LARGE($I6:$AA6,3),\"\")","v":466},{"$f":"IF($F6>3,LARGE($I6:$AA6,4),\"\")","v":420},{"$f":"IF($F6>4,LARGE($I6:$AA6,5),\"\")","v":411},{"$f":"IF($F6>5,LARGE($I6:$AA6,6),\"\")","v":405},{"$f":"IF($F6>6,LARGE($I6:$AA6,7),\"\")","v":402},{"$f":"IF($F6>7,LARGE($I6:$AA6,8),\"\")","v":389},{"$f":"IF($F6>8,LARGE($I6:$AA6,9),\"\")","v":363},{"$f":"IF($F6>9,LARGE($I6:$AA6,10),\"\")","v":345},{"$f":"IF($F6>10,LARGE($I6:$AA6,11),\"\")","v":316},{"$f":"IF($F6>11,LARGE($I6:$AA6,12),\"\")","v":298},{"$f":"IF($F6>12,LARGE($I6:$AA6,13),\"\")","v":298},{"$f":"IF($F6>13,LARGE($I6:$AA6,14),\"\")","v":""},{"$f":"IF($F6>14,LARGE($I6:$AA6,15),\"\")","v":""},{"$f":"IF($F6>15,LARGE($I6:$AA6,16),\"\")","v":""},{"$f":"IF($F6>13,LARGE($I6:$AA6,14),\"-\")","v":"-"},{"$f":"IF($F6>14,LARGE($I6:$AA6,15),\"-\")","v":"-"},1,null,5069,null,null,null,null,null,null,null,null,null,null,null,null,null,null,null,null,null,null,null,null,null,null,null,null,null,null,null,null,null,null,null,null,null,null,null,null,null,null,null,null,null,null,null,null,null,null,null,null,null,null,null,null,null,null,null,null,null,null,null,null,null,null,2,null,2,"(2)"]
["3 (3)","Leo Andersson","Carlskrona",4356,null,14,163.28571428571428,null,281,286,318,347,null,332,null,null,370,408,339,370,268,349,null,null,216,359,329,17,216,"-",3,{"$f":"IF(D7<D6,AH7,AF6)","v":3},3,3,null,null,2,3,3,3,2,2,2,0,2,3,3,3,3,3,1,1,2,3,3,null,2,null,null,{"$f":"IF($F7>0,LARGE($I7:$AA7,1),\"\")","v":408},{"$f":"IF($F7>1,LARGE($I7:$AA7,2),\"\")","v":370},{"$f":"IF($F7>2,LARGE($I7:$AA7,3),\"\")","v":370},{"$f":"IF($F7>3,LARGE($I7:$AA7,4),\"\")","v":359},{"$f":"IF($F7>4,LARGE($I7:$AA7,5),\"\")","v":349},{"$f":"IF($F7>5,LARGE($I7:$AA7,6),\"\")","v":347},{"$f":"IF($F7>6,LARGE($I7:$AA7,7),\"\")","v":339},{"$f":"IF($F7>7,LARGE($I7:$AA7,8),\"\")","v":332},{"$f":"IF($F7>8,LARGE($I7:$AA7,9),\"\")","v":329},{"$f":"IF($F7>9,LARGE($I7:$AA7,10),\"\")","v":318},{"$f":"IF($F7>10,LARGE($I7:$AA7,11),\"\")","v":286},{"$f":"IF($F7>11,LARGE($I7:$AA7,12),\"\")","v":281},{"$f":"IF($F7>12,LARGE($I7:$AA7,13),\"\")","v":268},216,"","",216,"-",0,null,4572,null,null,null,null,null,null,null,null,null,null,null,null,null,null,null,null,null,null,null,null,null,null,null,null,null,null,null,null,null,null,null,null,null,null,null,null,null,null,null,null,null,null,null,null,null,null,null,null,null,null,null,null,null,null,null,null,null,null,null,null,null,null,3,null,3,"(3)"]
["4 (4)","Matz Karlsson","Korpen Åseda",4224,null,14,158.53571428571428,null,272,279,332,266,299,301,null,null,215,null,335,368,272,389,null,373,null,415,323,17,215,"-",4,4,4,4,null,null,{"$f":"COUNT($I$3,I8,H8)","v":2},{"$f":"COUNT($J$3,J8,I8)","v":3},{"$f":"COUNT($K$3,K8,J8)","v":3},{"$f":"COUNT($L$3,L8,K8)","v":3},{"$f":"COUNT($M$3,M8,L8)","v":3},{"$f":"COUNT($N$3,N8,M8)","v":3},{"$f":"COUNT($O$3,O8,N8)","v":2},{"$f":"COUNT($P$3,P8,O8)","v":0},{"$f":"COUNT($Q$3,Q8,P8)","v":2},{"$f":"COUNT($R$3,R8,Q8)","v":2},{"$f":"COUNT($S$3,S8,R8)","v":2},{"$f":"COUNT($T$3,T8,S8)","v":3},{"$f":"COUNT($U$3,U8,T8)","v":3},{"$f":"COUNT($V$3,V8,U8)","v":3},{"$f":"COUNT($W$3,W8,V8)","v":1},{"$f":"COUNT($X$3,X8,W8)","v":2},{"$f":"COUNT($Y$3,Y8,X8)","v":2},{"$f":"COUNT($Z$3,Z8,Y8)","v":2},{"$f":"COUNT($AA$3,AA8,Z8)","v":3},null,2,null,null,{"$f":"IF($F8>0,LARGE($I8:$AA8,1),\"\")","v":415},{"$f":"IF($F8>1,LARGE($I8:$AA8,2),\"\")","v":389},{"$f":"IF($F8>2,LARGE($I8:$AA8,3),\"\")","v":373},{"$f":"IF($F8>3,LARGE($I8:$AA8,4),\"\")","v":368},{"$f":"IF($F8>4,LARGE($I8:$AA8,5),\"\")","v":335},{"$f":"IF($F8>5,LARGE($I8:$AA8,6),\"\")","v":332},{"$f":"IF($F8>6,LARGE($I8:$AA8,7),\"\")","v":323},{"$f":"IF($F8>7,LARGE($I8:$AA8,8),\"\")","v":301},{"$f":"IF($F8>8,LARGE($I8:$AA8,9),\"\")","v":299},{"$f":"IF($F8>9,LARGE($I8:$AA8,10),\"\")","v":279},{"$f":"IF($F8>10,LARGE($I8:$AA8,11),\"\")","v":272},{"$f":"IF($F8>11,LARGE($I8:$AA8,12),\"\")","v":272},{"$f":"IF($F8>12,LARGE($I8:$AA8,13),\"\")","v":266},{"$f":"IF($F8>13,LARGE($I8:$AA8,14),\"\")","v":215},{"$f":"IF($F8>14,LARGE($I8:$AA8,15),\"\")","v":""},"",215,"-",0,null,4439,null,null,null,null,null,null,null,null,null,null,null,null,null,null,null,null,null,null,null,null,null,null,null,null,null,null,null,null,null,null,null,null,null,null,null,null,null,null,null,null,null,null,null,null,null,null,null,null,null,null,null,null,null,null,null,null,null,null,null,null,null,null,4,null,4,"(4)"]
["5 (4)","Gert Karlsson","Korpen Åseda",4215,null,15,156.5,null,270,360,293,381,262,297,282,null,380,null,313,218,293,298,null,308,null,369,371,17,262,218,4,5,5,5,null,null,{"$f":"COUNT($I$3,I9,H9)","v":2},{"$f":"COUNT($J$3,J9,I9)","v":3},{"$f":"COUNT($K$3,K9,J9)","v":3},{"$f":"COUNT($L$3,L9,K9)","v":3},{"$f":"COUNT($M$3,M9,L9)","v":3},{"$f":"COUNT($N$3,N9,M9)","v":3},{"$f":"COUNT($O$3,O9,N9)","v":3},{"$f":"COUNT($P$3,P9,O9)","v":1},{"$f":"COUNT($Q$3,Q9,P9)","v":2},{"$f":"COUNT($R$3,R9,Q9)","v":2},{"$f":"COUNT($S$3,S9,R9)","v":2},{"$f":"COUNT($T$3,T9,S9)","v":3},{"$f":"COUNT($U$3,U9,T9)","v":3},{"$f":"COUNT($V$3,V9,U9)","v":3},{"$f":"COUNT($W$3,W9,V9)","v":1},{"$f":"COUNT($X$3,X9,W9)","v":2},{"$f":"COUNT($Y$3,Y9,X9)","v":2},{"$f":"COUNT($Z$3,Z9,Y9)","v":2},{"$f":"COUNT($AA$3,AA9,Z9)","v":3},null,2,null,null,{"$f":"IF($F9>0,LARGE($I9:$AA9,1),\"\")","v":381},{"$f":"IF($F9>1,LARGE($I9:$AA9,2),\"\")","v":380},{"$f":"IF($F9>2,LARGE($I9:$AA9,3),\"\")","v":371},{"$f":"IF($F9>3,LARGE($I9:$AA9,4),\"\")","v":369},{"$f":"IF($F9>4,LARGE($I9:$AA9,5),\"\")","v":360},{"$f":"IF($F9>5,LARGE($I9:$AA9,6),\"\")","v":313},{"$f":"IF($F9>6,LARGE($I9:$AA9,7),\"\")","v":308},{"$f":"IF($F9>7,LARGE($I9:$AA9,8),\"\")","v":298},{"$f":"IF($F9>8,LARGE($I9:$AA9,9),\"\")","v":297},{"$f":"IF($F9>9,LARGE($I9:$AA9,10),\"\")","v":293},{"$f":"IF($F9>10,LARGE($I9:$AA9,11),\"\")","v":293},{"$f":"IF($F9>11,LARGE($I9:$AA9,12),\"\")","v":282},{"$f":"IF($F9>12,LARGE($I9:$AA9,13),\"\")","v":270},{"$f":"IF($F9>13,LARGE($I9:$AA9,14),\"\")","v":262},{"$f":"IF($F9>14,LARGE($I9:$AA9,15),\"\")","v":218},"",262,218,-1,null,4695,null,null,null,null,null,null,null,null,null,null,null,null,null,null,null,null,null,null,null,null,null,null,null,null,null,null,null,null,null,null,null,null,null,null,null,null,null,null,null,null,null,null,null,null,null,null,null,null,null,null,null,null,null,null,null,null,null,null,null,null,null,null,5,null,5,"(4)"]
["6 (4)","Olle Ottosson","Dynapac ",4140,null,14,155.85714285714286,null,337,300,283,270,null,356,null,null,339,294,351,271,256,337,null,null,365,381,224,17,224,"-",4,6,6,6,null,null,{"$f":"COUNT($I$3,I10,H10)","v":2},{"$f":"COUNT($J$3,J10,I10)","v":3},{"$f":"COUNT($K$3,K10,J10)","v":3},{"$f":"COUNT($L$3,L10,K10)","v":3},{"$f":"COUNT($M$3,M10,L10)","v":2},{"$f":"COUNT($N$3,N10,M10)","v":2},{"$f":"COUNT($O$3,O10,N10)","v":2},{"$f":"COUNT($P$3,P10,O10)","v":0},{"$f":"COUNT($Q$3,Q10,P10)","v":2},{"$f":"COUNT($R$3,R10,Q10)","v":3},{"$f":"COUNT($S$3,S10,R10)","v":3},{"$f":"COUNT($T$3,T10,S10)","v":3},{"$f":"COUNT($U$3,U10,T10)","v":3},{"$f":"COUNT($V$3,V10,U10)","v":3},{"$f":"COUNT($W$3,W10,V10)","v":1},{"$f":"COUNT($X$3,X10,W10)","v":1},{"$f":"COUNT($Y$3,Y10,X10)","v":2},{"$f":"COUNT($Z$3,Z10,Y10)","v":3},{"$f":"COUNT($AA$3,AA10,Z10)","v":3},null,2,null,null,{"$f":"IF($F10>0,LARGE($I10:$AA10,1),\"\")","v":381},{"$f":"IF($F10>1,LARGE($I10:$AA10,2),\"\")","v":365},{"$f":"IF($F10>2,LARGE($I10:$AA10,3),\"\")","v":356},{"$f":"IF($F10>3,LARGE($I10:$AA10,4),\"\")","v":351},{"$f":"IF($F10>4,LARGE($I10:$AA10,5),\"\")","v":339},{"$f":"IF($F10>5,LARGE($I10:$AA10,6),\"\")","v":337},{"$f":"IF($F10>6,LARGE($I10:$AA10,7),\"\")","v":337},{"$f":"IF($F10>7,LARGE($I10:$AA10,8),\"\")","v":300},{"$f":"IF($F10>8,LARGE($I10:$AA10,9),\"\")","v":294},{"$f":"IF($F10>9,LARGE($I10:$AA10,10),\"\")","v":283},{"$f":"IF($F10>10,LARGE($I10:$AA10,11),\"\")","v":271},{"$f":"IF($F10>11,LARGE($I10:$AA10,12),\"\")","v":270},{"$f":"IF($F10>12,LARGE($I10:$AA10,13),\"\")","v":256},{"$f":"IF($F10>13,LARGE($I10:$AA10,14),\"\")","v":224},{"$f":"IF($F10>14,LARGE($I10:$AA10,15),\"\")","v":""},"",224,"-",0,null,4364,null,null,null,null,null,null,null,null,null,null,null,null,null,null,null,null,null,null,null,null,null,null,null,null,null,null,null,null,null,null,null,null,null,null,null,null,null,null,null,null,null,null,null,null,null,null,null,null,null,null,null,null,null,null,null,null,null,null,null,null,null,null,6,null,6,"(4)"]
["7 (7)","Gebriela Kostantinos","Korpen Åseda",4139,null,14,155.17857142857142,null,206,270,232,339,281,337,null,null,386,null,292,227,327,288,null,368,null,376,416,17,206,"-",7,7,7,7,null,null,2,3,3,3,3,3,2,0,2,2,2,3,3,3,1,2,2,2,3,null,2,null,null,416,386,376,368,339,337,327,292,288,281,270,232,227,206,"","",206,"-",0,null,4345,null,null,null,null,null,null,null,null,null,null,null,null,null,null,null,null,null,null,null,null,null,null,null,null,null,null,null,null,null,null,null,null,null,null,null,null,null,null,null,null,null,null,null,null,null,null,null,null,null,null,null,null,null,null,null,null,null,null,null,null,null,null,7,null,7,"(7)"]
["8 (7)","Ingvar Eriksson","Carlskrona",4105,null,15,153.23333333333332,null,262,347,315,274,null,275,250,null,384,376,324,322,297,242,null,null,332,278,319,17,250,242,7,8,8,8,null,null,2,3,3,3,2,2,3,1,2,3,3,3,3,3,1,1,2,3,3,null,2,null,null,384,376,347,332,324,322,319,315,297,278,275,274,262,250,242,"",250,242,-1,null,4597,null,null,null,null,null,null,null,null,null,null,null,null,null,null,null,null,null,null,null,null,null,null,null,null,null,null,null,null,null,null,null,null,null,null,null,null,null,null,null,null,null,null,null,null,null,null,null,null,null,null,null,null,null,null,null,null,null,null,null,null,null,null,8,null,8,"(7)"]
["9 (9)","Mattias Gneupel","Sibbamåla",3755,null,13,144.42307692307693,null,227,255,379,263,null,302,214,null,392,358,null,260,352,289,null,null,194,270,null,17,"-","-",9,9,9,9,null,null,2,3,3,3,2,2,3,1,2,3,2,2,3,3,1,1,2,3,2,null,2,null,null,392,379,358,352,302,289,270,263,260,255,227,214,194,"","","","-","-",1,null,3755,null,null,null,null,null,null,null,null,null,null,null,null,null,null,null,null,null,null,null,null,null,null,null,null,null,null,null,null,null,null,null,null,null,null,null,null,null,null,null,null,null,null,null,null,null,null,null,null,null,null,null,null,null,null,null,null,null,null,null,null,null,null,9,null,9,"(9)"]
[{"$f":"IF(BE14>1,AF14&\" (\"&AE14&\")\",AF14&\" (\"&AG14&\")\")","v":"10 (12)"},"Peter Olsson","Dynapac ",3691,null,15,136.66666666666666,null,270,329,256,204,null,236,272,null,258,205,313,217,268,313,null,null,292,280,387,17,205,204,12,10,10,10,null,null,2,3,3,3,2,2,3,1,2,3,3,3,3,3,1,1,2,3,3,null,2,null,null,387,329,313,313,292,280,272,270,268,258,256,236,217,205,204,"",205,204,-1,null,4100,null,null,null,null,null,null,null,null,null,null,null,null,null,null,null,null,null,null,null,null,null,null,null,null,null,null,null,null,null,null,null,null,null,null,null,null,null,null,null,null,null,null,null,null,null,null,null,null,null,null,null,null,null,null,null,null,null,null,null,null,null,null,10,null,10,"(12)"]
["11 (10)","Anders Johansson","Dynapac ",3678,null,15,134.4,null,327,322,188,319,null,300,228,null,239,353,224,225,304,238,null,null,166,311,288,17,188,166,10,11,11,11,null,null,2,3,3,3,2,2,3,1,2,3,3,3,3,3,1,1,2,3,3,null,2,null,null,353,327,322,319,311,304,300,288,239,238,228,225,224,188,166,"",188,166,-1,null,4032,null,null,null,null,null,null,null,null,null,null,null,null,null,null,null,null,null,null,null,null,null,null,null,null,null,null,null,null,null,null,null,null,null,null,null,null,null,null,null,null,null,null,null,null,null,null,null,null,null,null,null,null,null,null,null,null,null,null,null,null,null,null,11,null,11,"(10)"]
["12 (11)","Roy Dahlén","Dynapac ",3656,null,15,133.13333333333333,null,190,201,204,280,null,263,244,null,384,305,316,274,222,276,null,null,362,148,325,17,190,148,11,12,12,12,null,null,2,3,3,3,2,2,3,1,2,3,3,3,3,3,1,1,2,3,3,null,2,null,null,384,362,325,316,305,280,276,274,263,244,222,204,201,190,148,"",190,148,-1,null,3994,null,null,null,null,null,null,null,null,null,null,null,null,null,null,null,null,null,null,null,null,null,null,null,null,null,null,null,null,null,null,null,null,null,null,null,null,null,null,null,null,null,null,null,null,null,null,null,null,null,null,null,null,null,null,null,null,null,null,null,null,null,null,12,null,12,"(11)"]
["13 (12)","Lasse Brincner","Värends Hsk",3567,null,14,134.60714285714286,null,233,315,295,202,254,294,288,null,null,null,284,276,230,330,null,248,null,279,241,17,202,"-",12,13,13,13,null,null,2,3,3,3,3,3,3,1,1,1,2,3,3,3,1,2,2,2,3,null,2,null,null,330,315,295,294,288,284,279,276,254,248,241,233,230,202,"","",202,"-",0,null,3769,null,null,null,null,null,null,null,null,null,null,null,null,null,null,null,null,null,null,null,null,null,null,null,null,null,null,null,null,null,null,null,null,null,null,null,null,null,null,null,null,null,null,null,null,null,null,null,null,null,null,null,null,null,null,null,null,null,null,null,null,null,null,13,null,13,"(12)"]
["14 (14)","Magnus Israelsson","Sibbamåla",3494,null,12,145.58333333333334,null,241,362,298,291,null,null,228,null,333,279,null,253,318,332,null,null,299,260,null,17,"-","-",14,14,14,14,null,null,2,3,3,3,2,1,2,1,2,3,2,2,3,3,1,1,2,3,2,null,2,null,null,362,333,332,318,299,298,291,279,260,253,241,228,"","","","","-","-",2,null,3494,null,null,null,null,null,null,null,null,null,null,null,null,null,null,null,null,null,null,null,null,null,null,null,null,null,null,null,null,null,null,null,null,null,null,null,null,null,null,null,null,null,null,null,null,null,null,null,null,null,null,null,null,null,null,null,null,null,null,null,null,null,null,14,null,14,"(14)"]
["15 (15)","Joel Sundahl","Carlskrona",3386,null,12,141.08333333333334,null,236,282,140,294,null,284,null,null,237,null,407,null,191,300,null,null,215,339,461,17,"-","-",15,15,15,15,null,null,2,3,3,3,2,2,2,0,2,2,2,2,2,3,1,1,2,3,3,null,2,null,null,461,407,339,300,294,284,282,237,236,215,191,140,"","","","","-","-",2,null,3386,null,null,null,null,null,null,null,null,null,null,null,null,null,null,null,null,null,null,null,null,null,null,null,null,null,null,null,null,null,null,null,null,null,null,null,null,null,null,null,null,null,null,null,null,null,null,null,null,null,null,null,null,null,null,null,null,null,null,null,null,null,null,15,null,15,"(15)"]
["16 (17)","Stefan Tollstam","Dynapac ",3219,null,15,119.46666666666667,null,242,240,236,226,null,196,185,null,287,222,311,226,226,180,null,null,232,350,225,17,185,180,17,16,16,16,null,null,2,3,3,3,2,2,3,1,2,3,3,3,3,3,1,1,2,3,3,null,2,null,null,350,311,287,242,240,236,232,226,226,226,225,222,196,185,180,"",185,180,-1,null,3584,null,null,null,null,null,null,null,null,null,null,null,null,null,null,null,null,null,null,null,null,null,null,null,null,null,null,null,null,null,null,null,null,null,null,null,null,null,null,null,null,null,null,null,null,null,null,null,null,null,null,null,null,null,null,null,null,null,null,null,null,null,null,16,null,16,"(17)"]
["17 (22)","Christer Blomgren","Lanternan",3136,null,13,120.61538461538461,null,195,248,222,263,null,314,null,null,null,194,269,152,295,251,null,null,258,196,279,17,"-","-",22,17,17,17,null,null,2,3,3,3,2,2,2,0,1,2,3,3,3,3,1,1,2,3,3,null,2,null,null,314,295,279,269,263,258,251,248,222,196,195,194,152,"","","","-","-",1,null,3136,null,null,null,null,null,null,null,null,null,null,null,null,null,null,null,null,null,null,null,null,null,null,null,null,null,null,null,null,null,null,null,null,null,null,null,null,null,null,null,null,null,null,null,null,null,null,null,null,null,null,null,null,null,null,null,null,null,null,null,null,null,null,17,null,17,"(22)"]
["18 (15)","Göran Mårtensson","Jämjö Hsk",3109,null,12,129.54166666666666,null,231,242,229,292,null,223,null,null,203,346,null,220,null,339,null,null,288,349,147,17,"-","-",15,18,18,18,null,null,2,3,3,3,2,2,2,0,2,3,2,2,2,2,1,1,2,3,3,null,2,null,null,349,346,339,292,288,242,231,229,223,220,203,147,"","","","","-","-",2,null,3109,null,null,null,null,null,null,null,null,null,null,null,null,null,null,null,null,null,null,null,null,null,null,null,null,null,null,null,null,null,null,null,null,null,null,null,null,null,null,null,null,null,null,null,null,null,null,null,null,null,null,null,null,null,null,null,null,null,null,null,null,null,null,18,null,18,"(15)"]
["19 (20)","Maire Johansson","Växjö",3014,null,14,113.28571428571429,null,242,175,255,181,249,245,null,null,158,null,228,185,246,250,null,238,null,211,309,17,158,"-",20,19,19,19,null,null,2,3,3,3,3,3,2,0,2,2,2,3,3,3,1,2,2,2,3,null,2,null,null,309,255,250,249,246,245,242,238,228,211,185,181,175,158,"","",158,"-",0,null,3172,null,null,null,null,null,null,null,null,null,null,null,null,null,null,null,null,null,null,null,null,null,null,null,null,null,null,null,null,null,null,null,null,null,null,null,null,null,null,null,null,null,null,null,null,null,null,null,null,null,null,null,null,null,null,null,null,null,null,null,null,null,null,19,null,19,"(20)"]
["20 (17)","Bo Petersson","Korpen Nybro",3001,null,11,136.40909090909091,null,262,null,295,250,361,330,null,null,292,null,318,195,208,225,null,null,null,265,null,17,"-","-",17,20,20,20,null,null,2,2,2,3,3,3,2,0,2,2,2,3,3,3,1,1,1,2,2,null,2,null,null,361,330,318,295,292,265,262,250,225,208,195,"","","","","","-","-",3,null,3001,null,null,null,null,null,null,null,null,null,null,null,null,null,null,null,null,null,null,null,null,null,null,null,null,null,null,null,null,null,null,null,null,null,null,null,null,null,null,null,null,null,null,null,null,null,null,null,null,null,null,null,null,null,null,null,null,null,null,null,null,null,null,20,null,20,"(17)"]
["21 (19)","Tomas Lindahl","Korpen Åseda",2935,null,14,109.89285714285714,null,196,229,170,255,233,188,280,null,225,null,248,246,247,null,null,243,null,142,175,17,142,"-",19,21,21,21,null,null,2,3,3,3,3,3,3,1,2,2,2,3,3,2,0,2,2,2,3,null,2,null,null,280,255,248,247,246,243,233,229,225,196,188,175,170,142,"","",142,"-",0,null,3077,null,null,null,null,null,null,null,null,null,null,null,null,null,null,null,null,null,null,null,null,null,null,null,null,null,null,null,null,null,null,null,null,null,null,null,null,null,null,null,null,null,null,null,null,null,null,null,null,null,null,null,null,null,null,null,null,null,null,null,null,null,null,21,null,21,"(19)"]
["22 (27)","Ronny Lundberg","Lanternan",2926,null,13,112.53846153846153,null,null,191,237,198,null,319,168,null,205,251,273,178,207,null,null,null,291,230,178,17,"-","-",27,22,22,22,null,null,1,2,3,3,2,2,3,1,2,3,3,3,3,2,0,1,2,3,3,null,2,null,null,319,291,273,251,237,230,207,205,198,191,178,178,168,"","","","-","-",1,null,2926,null,null,null,null,null,null,null,null,null,null,null,null,null,null,null,null,null,null,null,null,null,null,null,null,null,null,null,null,null,null,null,null,null,null,null,null,null,null,null,null,null,null,null,null,null,null,null,null,null,null,null,null,null,null,null,null,null,null,null,null,null,null,22,null,22,"(27)"]
["23 (22)","Bernt Olsson","Jämjö Hsk",2913,null,13,112.03846153846153,null,169,236,319,244,null,198,null,null,218,271,null,162,211,197,null,null,243,260,185,17,"-","-",22,23,23,23,null,null,2,3,3,3,2,2,2,0,2,3,2,2,3,3,1,1,2,3,3,null,2,null,null,319,271,260,244,243,236,218,211,198,197,185,169,162,"","","","-","-",1,null,2913,null,null,null,null,null,null,null,null,null,null,null,null,null,null,null,null,null,null,null,null,null,null,null,null,null,null,null,null,null,null,null,null,null,null,null,null,null,null,null,null,null,null,null,null,null,null,null,null,null,null,null,null,null,null,null,null,null,null,null,null,null,null,23,null,23,"(22)"]
["24 (20)","Berndt Pettersson","Lanternan",2910,null,14,110.21428571428571,null,227,206,176,205,null,217,190,null,251,270,226,200,236,315,null,null,null,186,181,17,176,"-",20,24,24,24,null,null,2,3,3,3,2,2,3,1,2,3,3,3,3,3,1,1,1,2,3,null,2,null,null,315,270,251,236,227,226,217,206,205,200,190,186,181,176,"","",176,"-",0,null,3086,null,null,null,null,null,null,null,null,null,null,null,null,null,null,null,null,null,null,null,null,null,null,null,null,null,null,null,null,null,null,null,null,null,null,null,null,null,null,null,null,null,null,null,null,null,null,null,null,null,null,null,null,null,null,null,null,null,null,null,null,null,null,24,null,24,"(20)"]
["25 (24)","Ewa Malmqvist","Jämjö Hsk",2875,null,13,110.57692307692308,null,130,304,219,208,null,145,null,null,237,233,null,164,206,261,null,null,254,218,296,17,"-","-",24,25,25,25,null,null,2,3,3,3,2,2,2,0,2,3,2,2,3,3,1,1,2,3,3,null,2,null,null,304,296,261,254,237,233,219,218,208,206,164,145,130,"","","","-","-",1,null,2875,null,null,null,null,null,null,null,null,null,null,null,null,null,null,null,null,null,null,null,null,null,null,null,null,null,null,null,null,null,null,null,null,null,null,null,null,null,null,null,null,null,null,null,null,null,null,null,null,null,null,null,null,null,null,null,null,null,null,null,null,null,null,25,null,25,"(24)"]
["26 (32)","Marcus Karlsson","Jämjö Hsk",2836,null,12,118.16666666666667,null,null,191,186,261,null,277,null,null,209,274,287,255,258,236,null,null,220,null,182,17,"-","-",32,26,26,26,null,null,1,2,3,3,2,2,2,0,2,3,3,3,3,3,1,1,2,2,2,null,2,null,null,287,277,274,261,258,255,236,220,209,191,186,182,"","","","","-","-",2,null,2836,null,null,null,null,null,null,null,null,null,null,null,null,null,null,null,null,null,null,null,null,null,null,null,null,null,null,null,null,null,null,null,null,null,null,null,null,null,null,null,null,null,null,null,null,null,null,null,null,null,null,null,null,null,null,null,null,null,null,null,null,null,null,26,null,26,"(32)"]
["27 (26)","Lukas Bern","Dynapac ",2820,null,12,117.5,null,173,236,204,318,null,195,null,null,253,239,null,238,161,259,null,null,282,262,null,17,"-","-",26,27,27,27,null,null,2,3,3,3,2,2,2,0,2,3,2,2,3,3,1,1,2,3,2,null,2,null,null,318,282,262,259,253,239,238,236,204,195,173,161,"","","","","-","-",2,null,2820,null,null,null,null,null,null,null,null,null,null,null,null,null,null,null,null,null,null,null,null,null,null,null,null,null,null,null,null,null,null,null,null,null,null,null,null,null,null,null,null,null,null,null,null,null,null,null,null,null,null,null,null,null,null,null,null,null,null,null,null,null,null,27,null,27,"(26)"]
["28 (27)","Maj-Britt Jarl","Växjö",2816,null,13,108.30769230769231,null,200,152,201,260,240,217,null,null,189,null,208,190,null,272,null,272,null,193,222,17,"-","-",27,28,28,28,null,null,2,3,3,3,3,3,2,0,2,2,2,3,2,2,1,2,2,2,3,null,2,null,null,272,272,260,240,222,217,208,201,200,193,190,189,152,"","","","-","-",1,null,2816,null,null,null,null,null,null,null,null,null,null,null,null,null,null,null,null,null,null,null,null,null,null,null,null,null,null,null,null,null,null,null,null,null,null,null,null,null,null,null,null,null,null,null,null,null,null,null,null,null,null,null,null,null,null,null,null,null,null,null,null,null,null,28,null,28,"(27)"]
["29 (24)","Göran Olofsson","Korpen Nybro",2798,null,13,107.61538461538461,null,189,207,183,280,236,217,null,null,null,null,268,236,247,193,null,162,null,189,191,17,"-","-",24,29,29,29,null,null,2,3,3,3,3,3,2,0,1,1,2,3,3,3,1,2,2,2,3,null,2,null,null,280,268,247,236,236,217,207,193,191,189,189,183,162,"","","","-","-",1,null,2798,null,null,null,null,null,null,null,null,null,null,null,null,null,null,null,null,null,null,null,null,null,null,null,null,null,null,null,null,null,null,null,null,null,null,null,null,null,null,null,null,null,null,null,null,null,null,null,null,null,null,null,null,null,null,null,null,null,null,null,null,null,null,29,null,29,"(24)"]
["30 (36)","Dan Madayang","Korpen Åseda",2750,null,9,152.77777777777777,null,null,null,null,null,null,427,null,null,235,null,279,300,290,328,null,310,null,308,273,17,"-","-",36,30,30,30,null,null,1,1,1,1,1,2,2,0,2,2,2,3,3,3,1,2,2,2,3,null,2,null,null,427,328,310,308,300,290,279,273,235,"","","","","","","","-","-",5,null,2750,null,null,null,null,null,null,null,null,null,null,null,null,null,null,null,null,null,null,null,null,null,null,null,null,null,null,null,null,null,null,null,null,null,null,null,null,null,null,null,null,null,null,null,null,null,null,null,null,null,null,null,null,null,null,null,null,null,null,null,null,null,null,30,null,30,"(36)"]
["31 (29)","Carina Gneupel","Sibbamåla",2737,null,11,124.40909090909091,null,210,254,276,271,null,null,null,null,185,288,null,210,184,241,null,null,368,250,null,17,"-","-",29,31,31,31,null,null,2,3,3,3,2,1,1,0,2,3,2,2,3,3,1,1,2,3,2,null,2,null,null,368,288,276,271,254,250,241,210,210,185,184,"","","","","","-","-",3,null,2737,null,null,null,null,null,null,null,null,null,null,null,null,null,null,null,null,null,null,null,null,null,null,null,null,null,null,null,null,null,null,null,null,null,null,null,null,null,null,null,null,null,null,null,null,null,null,null,null,null,null,null,null,null,null,null,null,null,null,null,null,null,null,31,null,31,"(29)"]
["32 (36)","Dan Hallstan","Växjö",2707,null,14,101.07142857142857,null,180,209,166,123,276,224,232,null,159,null,208,167,null,166,null,212,null,241,267,17,123,"-",36,32,32,32,null,null,2,3,3,3,3,3,3,1,2,2,2,3,2,2,1,2,2,2,3,null,2,null,null,276,267,241,232,224,212,209,208,180,167,166,166,159,123,"","",123,"-",0,null,2830,null,null,null,null,null,null,null,null,null,null,null,null,null,null,null,null,null,null,null,null,null,null,null,null,null,null,null,null,null,null,null,null,null,null,null,null,null,null,null,null,null,null,null,null,null,null,null,null,null,null,null,null,null,null,null,null,null,null,null,null,null,null,32,null,32,"(36)"]
["33 (30)","Tobias Gneupel","Sibbamåla",2692,null,7,192.28571428571428,null,null,null,377,321,null,458,358,null,null,459,null,null,350,369,null,null,null,null,null,17,"-","-",30,33,{"$f":"IF(F37>1,ROW(33:33),\"-\")","v":33},33,null,null,1,1,2,3,2,2,3,1,1,2,2,1,2,3,1,1,1,1,1,null,2,null,null,459,458,377,369,358,350,321,"","","","","","","","","","-","-",7,null,2692,null,null,null,null,null,null,null,null,null,null,null,null,null,null,null,null,null,null,null,null,null,null,null,null,null,null,null,null,null,null,null,null,null,null,null,null,null,null,null,null,null,null,null,null,null,null,null,null,null,null,null,null,null,null,null,null,null,null,null,null,null,null,33,null,{"$f":"IF(BE37>=1,AF37,\"\")","v":33},"(30)"]
["34 (36)","Bengt Andersson","Växjö Hsk",2616,null,12,109,null,146,null,153,231,281,256,null,null,190,null,310,null,188,193,null,203,null,227,238,17,"-","-",36,34,34,34,null,null,2,2,2,3,3,3,2,0,2,2,2,2,2,3,1,2,2,2,3,null,2,null,null,310,281,256,238,231,227,203,193,190,188,153,146,"","","","","-","-",2,null,2616,null,null,null,null,null,null,null,null,null,null,null,null,null,null,null,null,null,null,null,null,null,null,null,null,null,null,null,null,null,null,null,null,null,null,null,null,null,null,null,null,null,null,null,null,null,null,null,null,null,null,null,null,null,null,null,null,null,null,null,null,null,null,34,null,34,"(36)"]
["35 (34)","Bengt Fabbeke","Dynapac ",2579,null,12,107.45833333333333,null,208,264,259,200,null,190,null,null,209,277,null,195,null,246,null,null,173,207,151,17,"-","-",34,35,35,35,null,null,2,3,3,3,2,2,2,0,2,3,2,2,2,2,1,1,2,3,3,null,2,null,null,277,264,259,246,209,208,207,200,195,190,173,151,"","","","","-","-",2,null,2579,null,null,null,null,null,null,null,null,null,null,null,null,null,null,null,null,null,null,null,null,null,null,null,null,null,null,null,null,null,null,null,null,null,null,null,null,null,null,null,null,null,null,null,null,null,null,null,null,null,null,null,null,null,null,null,null,null,null,null,null,null,null,35,null,35,"(34)"]
["36 (35)","Anita Fabbeke","Dynapac ",2565,null,11,116.59090909090909,null,244,279,287,249,null,180,null,null,249,194,null,250,null,194,null,null,220,null,219,17,"-","-",35,36,36,36,null,null,2,3,3,3,2,2,2,0,2,3,2,2,2,2,1,1,2,2,2,null,2,null,null,287,279,250,249,249,244,220,219,194,194,180,"","","","","","-","-",3,null,2565,null,null,null,null,null,null,null,null,null,null,null,null,null,null,null,null,null,null,null,null,null,null,null,null,null,null,null,null,null,null,null,null,null,null,null,null,null,null,null,null,null,null,null,null,null,null,null,null,null,null,null,null,null,null,null,null,null,null,null,null,null,null,36,null,36,"(35)"]
["37 (32)","Alf Svensson","Korpen Åseda",2552,null,13,98.15384615384616,null,242,180,195,156,193,198,null,null,249,null,null,207,177,205,null,199,null,210,141,17,"-","-",32,37,37,37,null,null,2,3,3,3,3,3,2,0,2,2,1,2,3,3,1,2,2,2,3,null,2,null,null,249,242,210,207,205,199,198,195,193,180,177,156,141,"","","","-","-",1,null,2552,null,null,null,null,null,null,null,null,null,null,null,null,null,null,null,null,null,null,null,null,null,null,null,null,null,null,null,null,null,null,null,null,null,null,null,null,null,null,null,null,null,null,null,null,null,null,null,null,null,null,null,null,null,null,null,null,null,null,null,null,null,null,37,null,37,"(32)"]
["38 (40)","Kerstin Svensson","Växjö Hsk",2524,null,14,94.821428571428569,null,186,196,193,223,null,196,165,null,167,null,180,165,131,166,null,259,null,178,250,17,131,"-",40,38,38,38,null,null,2,3,3,3,2,2,3,1,2,2,2,3,3,3,1,2,2,2,3,null,2,null,null,259,250,223,196,196,193,186,180,178,167,166,165,165,131,"","",131,"-",0,null,2655,null,null,null,null,null,null,null,null,null,null,null,null,null,null,null,null,null,null,null,null,null,null,null,null,null,null,null,null,null,null,null,null,null,null,null,null,null,null,null,null,null,null,null,null,null,null,null,null,null,null,null,null,null,null,null,null,null,null,null,null,null,null,38,null,38,"(40)"]
["38 (41)","Mats Mårtensson","Jämjö Hsk",2524,null,13,97.07692307692308,null,144,98,155,193,null,207,null,null,163,253,266,144,200,191,null,null,252,null,258,17,"-","-",41,38,39,39,null,null,2,3,3,3,2,2,2,0,2,3,3,3,3,3,1,1,2,2,2,null,2,null,null,266,258,253,252,207,200,193,191,163,155,144,144,98,"","","","-","-",1,null,2524,null,null,null,null,null,null,null,null,null,null,null,null,null,null,null,null,null,null,null,null,null,null,null,null,null,null,null,null,null,null,null,null,null,null,null,null,null,null,null,null,null,null,null,null,null,null,null,null,null,null,null,null,null,null,null,null,null,null,null,null,null,null,39,null,38,"(41)"]
["40 (30)","Leif Sundahl","Carlskrona",2507,null,12,104.45833333333333,null,168,252,125,259,null,246,null,null,215,303,186,144,102,306,null,null,null,201,null,17,"-","-",30,40,40,40,null,null,2,3,3,3,2,2,2,0,2,3,3,3,3,3,1,1,1,2,2,null,2,null,null,306,303,259,252,246,215,201,186,168,144,125,102,"","","","","-","-",2,null,2507,null,null,null,null,null,null,null,null,null,null,null,null,null,null,null,null,null,null,null,null,null,null,null,null,null,null,null,null,null,null,null,null,null,null,null,null,null,null,null,null,null,null,null,null,null,null,null,null,null,null,null,null,null,null,null,null,null,null,null,null,null,null,40,null,40,"(30)"]
["41 (36)","Mikael Bodi","Växjö Hsk",2442,null,14,90.107142857142861,null,211,138,222,197,262,167,null,null,226,null,231,177,143,157,null,204,null,107,81,17,81,"-",36,41,41,41,null,null,2,3,3,3,3,3,2,0,2,2,2,3,3,3,1,2,2,2,3,null,2,null,null,262,231,226,222,211,204,197,177,167,157,143,138,107,81,"","",81,"-",0,null,2523,null,null,null,null,null,null,null,null,null,null,null,null,null,null,null,null,null,null,null,null,null,null,null,null,null,null,null,null,null,null,null,null,null,null,null,null,null,null,null,null,null,null,null,null,null,null,null,null,null,null,null,null,null,null,null,null,null,null,null,null,null,null,41,null,41,"(36)"]
["42 (41)","Sune Olsson","Korpen Nybro",2414,null,11,109.72727272727273,null,205,null,225,264,null,231,null,null,123,null,286,185,187,212,null,null,null,203,293,17,"-","-",41,42,42,42,null,null,2,2,2,3,2,2,2,0,2,2,2,3,3,3,1,1,1,2,3,null,2,null,null,293,286,264,231,225,212,205,203,187,185,123,"","","","","","-","-",3,null,2414,null,null,null,null,null,null,null,null,null,null,null,null,null,null,null,null,null,null,null,null,null,null,null,null,null,null,null,null,null,null,null,null,null,null,null,null,null,null,null,null,null,null,null,null,null,null,null,null,null,null,null,null,null,null,null,null,null,null,null,null,null,null,42,null,42,"(41)"]
["43 (43)","Ingegerd Pettersson","Lanternan",2397,null,12,99.875,null,null,217,211,235,null,205,null,null,173,237,null,182,92,309,null,null,186,131,219,17,"-","-",43,43,43,43,null,null,1,2,3,3,2,2,2,0,2,3,2,2,3,3,1,1,2,3,3,null,2,null,null,309,237,235,219,217,211,205,186,182,173,131,92,"","","","","-","-",2,null,2397,null,null,null,null,null,null,null,null,null,null,null,null,null,null,null,null,null,null,null,null,null,null,null,null,null,null,null,null,null,null,null,null,null,null,null,null,null,null,null,null,null,null,null,null,null,null,null,null,null,null,null,null,null,null,null,null,null,null,null,null,null,null,43,null,43,"(43)"]
["44 (45)","Bela Bodi","Växjö",2344,null,10,117.2,null,null,null,null,null,218,253,null,null,215,null,248,256,225,206,null,229,null,272,222,17,"-","-",45,44,44,44,null,null,1,1,1,1,2,3,2,0,2,2,2,3,3,3,1,2,2,2,3,null,2,null,null,272,256,253,248,229,225,222,218,215,206,"","","","","","","-","-",4,null,2344,null,null,null,null,null,null,null,null,null,null,null,null,null,null,null,null,null,null,null,null,null,null,null,null,null,null,null,null,null,null,null,null,null,null,null,null,null,null,null,null,null,null,null,null,null,null,null,null,null,null,null,null,null,null,null,null,null,null,null,null,null,null,44,null,44,"(45)"]
["45 (43)","Klara Larsson","Värends Hsk",2258,null,12,94.083333333333329,null,190,129,206,139,203,null,null,null,null,null,246,162,193,178,null,194,null,197,221,17,"-","-",43,45,45,45,null,null,2,3,3,3,3,2,1,0,1,1,2,3,3,3,1,2,2,2,3,null,2,null,null,246,221,206,203,197,194,193,190,178,162,139,129,"","","","","-","-",2,null,2258,null,null,null,null,null,null,null,null,null,null,null,null,null,null,null,null,null,null,null,null,null,null,null,null,null,null,null,null,null,null,null,null,null,null,null,null,null,null,null,null,null,null,null,null,null,null,null,null,null,null,null,null,null,null,null,null,null,null,null,null,null,null,45,null,45,"(43)"]
["46 (46)","Johan Johansson","Tingsryd",2255,null,7,161.07142857142858,null,null,null,null,281,null,null,null,null,null,null,338,343,337,null,null,284,null,291,381,17,"-","-",46,46,46,46,null,null,1,1,1,2,2,1,1,0,1,1,2,3,3,2,0,2,2,2,3,null,2,null,null,381,343,338,337,291,284,281,"","","","","","","","","","-","-",7,null,2255,null,null,null,null,null,null,null,null,null,null,null,null,null,null,null,null,null,null,null,null,null,null,null,null,null,null,null,null,null,null,null,null,null,null,null,null,null,null,null,null,null,null,null,null,null,null,null,null,null,null,null,null,null,null,null,null,null,null,null,null,null,null,46,null,46,"(46)"]
["47 (47)","Nathalie Sundahl","Carlskrona",2247,null,13,86.42307692307692,null,88,186,138,246,null,196,null,null,121,null,135,143,159,194,null,null,100,300,241,17,"-","-",47,47,47,47,null,null,2,3,3,3,2,2,2,0,2,2,2,3,3,3,1,1,2,3,3,null,2,null,null,300,246,241,196,194,186,159,143,138,135,121,100,88,"","","","-","-",1,null,2247,null,null,null,null,null,null,null,null,null,null,null,null,null,null,null,null,null,null,null,null,null,null,null,null,null,null,null,null,null,null,null,null,null,null,null,null,null,null,null,null,null,null,null,null,null,null,null,null,null,null,null,null,null,null,null,null,null,null,null,null,null,null,47,null,47,"(47)"]
["48 (47)","Nils-Åke Hansson","Korpen Nybro",2239,null,12,93.291666666666671,null,null,164,177,168,218,134,null,null,166,null,227,156,183,226,null,187,null,null,233,17,"-","-",47,48,48,48,null,null,1,2,3,3,3,3,2,0,2,2,2,3,3,3,1,2,2,1,2,null,2,null,null,233,227,226,218,187,183,177,168,166,164,156,134,"","","","","-","-",2,null,2239,null,null,null,null,null,null,null,null,null,null,null,null,null,null,null,null,null,null,null,null,null,null,null,null,null,null,null,null,null,null,null,null,null,null,null,null,null,null,null,null,null,null,null,null,null,null,null,null,null,null,null,null,null,null,null,null,null,null,null,null,null,null,48,null,48,"(47)"]
["49 (47)","Lars-Åke Karlsson","Jämjö Hsk",2208,null,13,84.92307692307692,null,null,161,236,176,null,162,null,null,130,197,253,150,132,171,null,null,185,131,124,17,"-","-",47,49,49,49,null,null,1,2,3,3,2,2,2,0,2,3,3,3,3,3,1,1,2,3,3,null,2,null,null,253,236,197,185,176,171,162,161,150,132,131,130,124,"","","","-","-",1,null,2208,null,null,null,null,null,null,null,null,null,null,null,null,null,null,null,null,null,null,null,null,null,null,null,null,null,null,null,null,null,null,null,null,null,null,null,null,null,null,null,null,null,null,null,null,null,null,null,null,null,null,null,null,null,null,null,null,null,null,null,null,null,null,49,null,49,"(47)"]
["50 (51)","Jan Petersson","Lanternan",2158,null,11,98.090909090909093,null,null,200,187,179,null,217,null,null,158,177,null,229,223,207,null,null,null,192,189,17,"-","-",51,50,50,50,null,null,1,2,3,3,2,2,2,0,2,3,2,2,3,3,1,1,1,2,3,null,2,null,null,229,223,217,207,200,192,189,187,179,177,158,"","","","","","-","-",3,null,2158,null,null,null,null,null,null,null,null,null,null,null,null,null,null,null,null,null,null,null,null,null,null,null,null,null,null,null,null,null,null,null,null,null,null,null,null,null,null,null,null,null,null,null,null,null,null,null,null,null,null,null,null,null,null,null,null,null,null,null,null,null,null,50,null,50,"(51)"]
["51 (55)","Marianne Karlsson","Jämjö Hsk",2006,null,10,100.3,null,null,148,229,168,null,null,null,null,161,294,196,null,180,179,null,null,173,null,278,17,"-","-",55,51,51,51,null,null,1,2,3,3,2,1,1,0,2,3,3,2,2,3,1,1,2,2,2,null,2,null,null,294,278,229,196,180,179,173,168,161,148,"","","","","","","-","-",4,null,2006,null,null,null,null,null,null,null,null,null,null,null,null,null,null,null,null,null,null,null,null,null,null,null,null,null,null,null,null,null,null,null,null,null,null,null,null,null,null,null,null,null,null,null,null,null,null,null,null,null,null,null,null,null,null,null,null,null,null,null,null,null,null,51,null,51,"(55)"]
["52 (50)","Lisbeth Nygaard-Karlsson","Tingsryd",1992,null,7,142.28571428571428,null,null,null,null,279,null,303,null,null,null,null,null,279,null,371,null,246,null,256,258,17,"-","-",50,52,52,52,null,null,1,1,1,2,2,2,2,0,1,1,1,2,2,2,1,2,2,2,3,null,2,null,null,371,303,279,279,258,256,246,"","","","","","","","","","-","-",7,null,1992,null,null,null,null,null,null,null,null,null,null,null,null,null,null,null,null,null,null,null,null,null,null,null,null,null,null,null,null,null,null,null,null,null,null,null,null,null,null,null,null,null,null,null,null,null,null,null,null,null,null,null,null,null,null,null,null,null,null,null,null,null,null,52,null,52,"(50)"]
["53 (53)","Christian Balsiger","Värends Hsk",1968,null,9,109.33333333333333,null,232,136,234,228,null,null,null,null,null,null,null,199,null,206,null,203,null,297,233,17,"-","-",53,53,53,53,null,null,2,3,3,3,2,1,1,0,1,1,1,2,2,2,1,2,2,2,3,null,2,null,null,297,234,233,232,228,206,203,199,136,"","","","","","","","-","-",5,null,1968,null,null,null,null,null,null,null,null,null,null,null,null,null,null,null,null,null,null,null,null,null,null,null,null,null,null,null,null,null,null,null,null,null,null,null,null,null,null,null,null,null,null,null,null,null,null,null,null,null,null,null,null,null,null,null,null,null,null,null,null,null,null,53,null,53,"(53)"]
["54 (51)","Peter Edlund","Dynapac ",1880,null,9,104.44444444444444,null,null,187,252,null,null,189,177,null,172,279,null,null,262,167,null,null,195,null,null,17,"-","-",51,54,54,54,null,null,1,2,3,2,1,2,3,1,2,3,2,1,2,3,1,1,2,2,1,null,2,null,null,279,262,252,195,189,187,177,172,167,"","","","","","","","-","-",5,null,1880,null,null,null,null,null,null,null,null,null,null,null,null,null,null,null,null,null,null,null,null,null,null,null,null,null,null,null,null,null,null,null,null,null,null,null,null,null,null,null,null,null,null,null,null,null,null,null,null,null,null,null,null,null,null,null,null,null,null,null,null,null,null,54,null,54,"(51)"]
["55 (54)","Roland Sjöstrand","Hsk Tingzås",1843,null,14,69.285714285714292,null,122,116,139,113,null,206,130,null,109,null,166,128,171,220,null,112,null,97,111,17,97,"-",54,55,55,55,null,null,2,3,3,3,2,2,3,1,2,2,2,3,3,3,1,2,2,2,3,null,2,null,null,220,206,171,166,139,130,128,122,116,113,112,111,109,97,"","",97,"-",0,null,1940,null,null,null,null,null,null,null,null,null,null,null,null,null,null,null,null,null,null,null,null,null,null,null,null,null,null,null,null,null,null,null,null,null,null,null,null,null,null,null,null,null,null,null,null,null,null,null,null,null,null,null,null,null,null,null,null,null,null,null,null,null,null,55,null,55,"(54)"]
["56 (55)","Sebastian Israelsson","Sibbamåla",1747,null,9,97.055555555555557,null,170,237,204,230,null,null,null,null,null,142,null,170,165,236,null,null,null,193,null,17,"-","-",55,56,56,56,null,null,2,3,3,3,2,1,1,0,1,2,2,2,3,3,1,1,1,2,2,null,2,null,null,237,236,230,204,193,170,170,165,142,"","","","","","","","-","-",5,null,1747,null,null,null,null,null,null,null,null,null,null,null,null,null,null,null,null,null,null,null,null,null,null,null,null,null,null,null,null,null,null,null,null,null,null,null,null,null,null,null,null,null,null,null,null,null,null,null,null,null,null,null,null,null,null,null,null,null,null,null,null,null,null,56,null,56,"(55)"]
["57 (55)","Lennart Karlsson","Tingsryd",1722,null,7,123,null,null,null,null,276,null,183,null,null,null,null,null,263,null,322,null,238,null,206,234,17,"-","-",55,57,57,57,null,null,1,1,1,2,2,2,2,0,1,1,1,2,2,2,1,2,2,2,3,null,2,null,null,322,276,263,238,234,206,183,"","","","","","","","","","-","-",7,null,1722,null,null,null,null,null,null,null,null,null,null,null,null,null,null,null,null,null,null,null,null,null,null,null,null,null,null,null,null,null,null,null,null,null,null,null,null,null,null,null,null,null,null,null,null,null,null,null,null,null,null,null,null,null,null,null,null,null,null,null,null,null,null,57,null,57,"(55)"]
["58 (58)","Thomas Dahl","Växjö",1719,null,10,85.95,null,null,172,null,null,166,150,null,null,197,null,184,123,224,166,null,179,null,158,null,17,"-","-",58,58,58,58,null,null,1,2,2,1,2,3,2,0,2,2,2,3,3,3,1,2,2,2,2,null,2,null,null,224,197,184,179,172,166,166,158,150,123,"","","","","","","-","-",4,null,1719,null,null,null,null,null,null,null,null,null,null,null,null,null,null,null,null,null,null,null,null,null,null,null,null,null,null,null,null,null,null,null,null,null,null,null,null,null,null,null,null,null,null,null,null,null,null,null,null,null,null,null,null,null,null,null,null,null,null,null,null,null,null,58,null,58,"(58)"]
["59 (59)","Solveig Axelsson","Alvesta",1663,null,10,83.15,null,244,null,207,238,159,null,92,null,153,null,null,128,172,null,null,null,null,161,109,17,"-","-",59,59,59,59,null,null,2,2,2,3,3,2,2,1,2,2,1,2,3,2,0,1,1,2,3,null,2,null,null,244,238,207,172,161,159,153,128,109,92,"","","","","","","-","-",4,null,1663,null,null,null,null,null,null,null,null,null,null,null,null,null,null,null,null,null,null,null,null,null,null,null,null,null,null,null,null,null,null,null,null,null,null,null,null,null,null,null,null,null,null,null,null,null,null,null,null,null,null,null,null,null,null,null,null,null,null,null,null,null,null,59,null,59,"(59)"]
["60 (69)","Mathias Karlberg","Jämjö Hsk",1561,null,6,130.08333333333334,null,null,null,null,null,null,null,null,null,211,null,null,194,null,273,null,null,326,211,346,17,"-","-",69,60,60,60,null,null,1,1,1,1,1,1,1,0,2,2,1,2,2,2,1,1,2,3,3,null,2,null,null,346,326,273,211,211,194,"","","","","","","","","","","-","-",8,null,1561,null,null,null,null,null,null,null,null,null,null,null,null,null,null,null,null,null,null,null,null,null,null,null,null,null,null,null,null,null,null,null,null,null,null,null,null,null,null,null,null,null,null,null,null,null,null,null,null,null,null,null,null,null,null,null,null,null,null,null,null,null,null,60,null,60,"(69)"]
["61 (59)","Alf Johansson","Värends Hsk",1510,null,10,75.5,null,152,95,163,156,164,null,null,null,null,null,226,null,173,null,null,116,null,151,114,17,"-","-",59,61,61,61,null,null,2,3,3,3,3,2,1,0,1,1,2,2,2,2,0,2,2,2,3,null,2,null,null,226,173,164,163,156,152,151,116,114,95,"","","","","","","-","-",4,null,1510,null,null,null,null,null,null,null,null,null,null,null,null,null,null,null,null,null,null,null,null,null,null,null,null,null,null,null,null,null,null,null,null,null,null,null,null,null,null,null,null,null,null,null,null,null,null,null,null,null,null,null,null,null,null,null,null,null,null,null,null,null,null,61,null,61,"(59)"]
["62 (61)","Louise Tollstam","Dynapac ",1460,null,8,91.25,null,null,210,168,189,null,171,null,null,166,238,null,null,null,156,null,null,162,null,null,17,"-","-",61,62,62,62,null,null,1,2,3,3,2,2,2,0,2,3,2,1,1,2,1,1,2,2,1,null,2,null,null,238,210,189,171,168,166,162,156,"","","","","","","","","-","-",6,null,1460,null,null,null,null,null,null,null,null,null,null,null,null,null,null,null,null,null,null,null,null,null,null,null,null,null,null,null,null,null,null,null,null,null,null,null,null,null,null,null,null,null,null,null,null,null,null,null,null,null,null,null,null,null,null,null,null,null,null,null,null,null,null,62,null,62,"(61)"]
["63 (63)","Armin Sisic","Värends Hsk",1459,null,4,182.375,null,319,null,null,null,null,355,null,null,null,null,null,null,null,null,null,343,null,442,null,17,"-","-",63,63,63,63,null,null,2,2,1,1,1,2,2,0,1,1,1,1,1,1,0,2,2,2,2,null,2,null,null,442,355,343,319,"","","","","","","","","","","","","-","-",10,null,1459,null,null,null,null,null,null,null,null,null,null,null,null,null,null,null,null,null,null,null,null,null,null,null,null,null,null,null,null,null,null,null,null,null,null,null,null,null,null,null,null,null,null,null,null,null,null,null,null,null,null,null,null,null,null,null,null,null,null,null,null,null,null,63,null,63,"(63)"]
["64 (64)","Ulrika Strandahl","Växjö",1438,null,10,71.900000000000006,null,100,171,null,84,124,127,null,null,108,null,247,null,227,114,null,null,null,null,136,17,"-","-",64,64,64,64,null,null,2,3,2,2,3,3,2,0,2,2,2,2,2,3,1,1,1,1,2,null,2,null,null,247,227,171,136,127,124,114,108,100,84,"","","","","","","-","-",4,null,1438,null,null,null,null,null,null,null,null,null,null,null,null,null,null,null,null,null,null,null,null,null,null,null,null,null,null,null,null,null,null,null,null,null,null,null,null,null,null,null,null,null,null,null,null,null,null,null,null,null,null,null,null,null,null,null,null,null,null,null,null,null,null,64,null,64,"(64)"]
["65 (64)","Gilbert Pettersson","Lanternan",{"$f":"SUM(BH69:BT69)","v":1430},null,{"$f":"COUNT(I69:AA69)","v":7},{"$f":"SUM((CB69)/(F69*2))","v":102.14285714285714},null,156,null,null,224,null,294,null,null,158,223,null,null,173,null,null,null,null,202,null,{"$f":"SUM($I$3:$AA$3)","v":17},{"$f":"BX69","v":"-"},{"$f":"BY69","v":"-"},64,65,{"$f":"IF(F69>1,ROW(65:65),\"-\")","v":65},65,null,null,2,2,1,2,2,2,2,0,2,3,2,1,2,2,0,1,1,2,2,null,{"$f":"IF(H69=\"x\",1,2)","v":2},null,null,294,224,223,202,173,158,156,"","","","","","","","","","-","-",{"$f":"SUM(AB69-F69)-3","v":7},null,{"$f":"SUM(BH69:BW69)","v":1430},null,null,null,null,null,null,null,null,null,null,null,null,null,null,null,null,null,null,null,null,null,null,null,null,null,null,null,null,null,null,null,null,null,null,null,null,null,null,null,null,null,null,null,null,null,null,null,null,null,null,null,null,null,null,null,null,null,null,null,null,null,null,65,null,{"$f":"IF(BE69>=1,AF69,\"\")","v":65},{"$f":"IF(BE69>1,\"(\"&AE69&\")\",\"(\"&AG69&\")\")","v":"(64)"}]
["66 (67)","Martin Antic","Värends Hsk",1410,null,9,78.333333333333329,null,135,170,128,143,null,null,null,null,null,null,160,145,null,null,null,196,null,209,124,17,"-","-",67,66,66,66,null,null,{"$f":"COUNT($I$3,I70,H70)","v":2},{"$f":"COUNT($J$3,J70,I70)","v":3},{"$f":"COUNT($K$3,K70,J70)","v":3},{"$f":"COUNT($L$3,L70,K70)","v":3},{"$f":"COUNT($M$3,M70,L70)","v":2},{"$f":"COUNT($N$3,N70,M70)","v":1},{"$f":"COUNT($O$3,O70,N70)","v":1},{"$f":"COUNT($P$3,P70,O70)","v":0},{"$f":"COUNT($Q$3,Q70,P70)","v":1},{"$f":"COUNT($R$3,R70,Q70)","v":1},{"$f":"COUNT($S$3,S70,R70)","v":2},{"$f":"COUNT($T$3,T70,S70)","v":3},{"$f":"COUNT($U$3,U70,T70)","v":2},{"$f":"COUNT($V$3,V70,U70)","v":1},{"$f":"COUNT($W$3,W70,V70)","v":0},{"$f":"COUNT($X$3,X70,W70)","v":2},{"$f":"COUNT($Y$3,Y70,X70)","v":2},{"$f":"COUNT($Z$3,Z70,Y70)","v":2},{"$f":"COUNT($AA$3,AA70,Z70)","v":3},null,2,null,null,{"$f":"IF($F70>0,LARGE($I70:$AA70,1),\"\")","v":209},{"$f":"IF($F70>1,LARGE($I70:$AA70,2),\"\")","v":196},{"$f":"IF($F70>2,LARGE($I70:$AA70,3),\"\")","v":170},{"$f":"IF($F70>3,LARGE($I70:$AA70,4),\"\")","v":160},{"$f":"IF($F70>4,LARGE($I70:$AA70,5),\"\")","v":145},{"$f":"IF($F70>5,LARGE($I70:$AA70,6),\"\")","v":143},{"$f":"IF($F70>6,LARGE($I70:$AA70,7),\"\")","v":135},{"$f":"IF($F70>7,LARGE($I70:$AA70,8),\"\")","v":128},{"$f":"IF($F70>8,LARGE($I70:$AA70,9),\"\")","v":124},{"$f":"IF($F70>9,LARGE($I70:$AA70,10),\"\")","v":""},{"$f":"IF($F70>10,LARGE($I70:$AA70,11),\"\")","v":""},{"$f":"IF($F70>11,LARGE($I70:$AA70,12),\"\")","v":""},{"$f":"IF($F70>12,LARGE($I70:$AA70,13),\"\")","v":""},{"$f":"IF($F70>13,LARGE($I70:$AA70,14),\"\")","v":""},{"$f":"IF($F70>14,LARGE($I70:$AA70,15),\"\")","v":""},{"$f":"IF($F70>15,LARGE($I70:$AA70,16),\"\")","v":""},{"$f":"IF($F70>13,LARGE($I70:$AA70,14),\"-\")","v":"-"},{"$f":"IF($F70>14,LARGE($I70:$AA70,15),\"-\")","v":"-"},5,null,1410,null,null,null,null,null,null,null,null,null,null,null,null,null,null,null,null,null,null,null,null,null,null,null,null,null,null,null,null,null,null,null,null,null,null,null,null,null,null,null,null,null,null,null,null,null,null,null,null,null,null,null,null,null,null,null,null,null,null,null,null,null,null,66,null,66,"(67)"]
["67 (61)","Anders Karlsson","Värends Hsk",1401,null,9,77.833333333333329,null,149,87,85,91,null,null,108,null,null,null,267,166,null,null,null,310,null,138,null,17,"-","-",61,{"$f":"IF(D71<D70,AH71,AF70)","v":67},67,67,null,null,2,3,3,3,2,1,2,1,1,1,2,3,2,1,0,2,2,2,2,null,2,null,null,310,267,166,149,138,108,91,87,85,"","","","","","","","-","-",5,null,1401,null,null,null,null,null,null,null,null,null,null,null,null,null,null,null,null,null,null,null,null,null,null,null,null,null,null,null,null,null,null,null,null,null,null,null,null,null,null,null,null,null,null,null,null,null,null,null,null,null,null,null,null,null,null,null,null,null,null,null,null,null,null,67,null,67,"(61)"]
["68 (66)","Göran Persson","Dynapac ",1305,null,8,81.5625,null,163,156,112,null,null,197,null,null,165,154,161,null,197,null,null,null,null,null,null,17,"-","-",66,68,68,68,null,null,2,3,3,2,1,2,2,0,2,3,3,2,2,2,0,1,1,1,1,null,2,null,null,197,197,165,163,161,156,154,112,"","","","","","","","","-","-",6,null,1305,null,null,null,null,null,null,null,null,null,null,null,null,null,null,null,null,null,null,null,null,null,null,null,null,null,null,null,null,null,null,null,null,null,null,null,null,null,null,null,null,null,null,null,null,null,null,null,null,null,null,null,null,null,null,null,null,null,null,null,null,null,null,68,null,68,"(66)"]
["69 (69)","Lasse Nilsson","Värends Hsk",1298,null,6,108.16666666666667,null,228,null,null,null,null,null,null,null,null,null,null,177,205,null,null,187,null,231,270,17,"-","-",69,69,69,69,null,null,2,2,1,1,1,1,1,0,1,1,1,2,3,2,0,2,2,2,3,null,2,null,null,270,231,228,205,187,177,"","","","","","","","","","","-","-",8,null,1298,null,null,null,null,null,null,null,null,null,null,null,null,null,null,null,null,null,null,null,null,null,null,null,null,null,null,null,null,null,null,null,null,null,null,null,null,null,null,null,null,null,null,null,null,null,null,null,null,null,null,null,null,null,null,null,null,null,null,null,null,null,null,69,null,69,"(69)"]
["70 (67)","Elin Olsson","Dynapac ",1293,null,7,92.357142857142861,null,null,183,173,232,null,164,null,null,202,null,null,null,null,141,null,null,198,null,null,17,"-","-",67,70,70,70,null,null,1,2,3,3,2,2,2,0,2,2,1,1,1,2,1,1,2,2,1,null,2,null,null,232,202,198,183,173,164,141,"","","","","","","","","","-","-",7,null,1293,null,null,null,null,null,null,null,null,null,null,null,null,null,null,null,null,null,null,null,null,null,null,null,null,null,null,null,null,null,null,null,null,null,null,null,null,null,null,null,null,null,null,null,null,null,null,null,null,null,null,null,null,null,null,null,null,null,null,null,null,null,null,70,null,70,"(67)"]
["71 (78)","Hannah Karlberg","Jämjö Hsk",1178,null,8,73.625,null,null,null,null,null,null,144,null,null,172,142,null,119,null,137,null,null,137,169,158,17,"-","-",78,71,71,71,null,null,1,1,1,1,1,2,2,0,2,3,2,2,2,2,1,1,2,3,3,null,2,null,null,172,169,158,144,142,137,137,119,"","","","","","","","","-","-",6,null,1178,null,null,null,null,null,null,null,null,null,null,null,null,null,null,null,null,null,null,null,null,null,null,null,null,null,null,null,null,null,null,null,null,null,null,null,null,null,null,null,null,null,null,null,null,null,null,null,null,null,null,null,null,null,null,null,null,null,null,null,null,null,null,71,null,71,"(78)"]
["72 (73)","Stefan Olofsson","Korpen Nybro",1129,null,5,112.9,null,null,null,null,187,182,182,null,null,null,null,null,294,284,null,null,null,null,null,null,17,"-","-",73,72,72,72,null,null,1,1,1,2,3,3,2,0,1,1,1,2,3,2,0,1,1,1,1,null,2,null,null,294,284,187,182,182,"","","","","","","","","","","","-","-",9,null,1129,null,null,null,null,null,null,null,null,null,null,null,null,null,null,null,null,null,null,null,null,null,null,null,null,null,null,null,null,null,null,null,null,null,null,null,null,null,null,null,null,null,null,null,null,null,null,null,null,null,null,null,null,null,null,null,null,null,null,null,null,null,null,72,null,72,"(73)"]
["73 (87)","Mattias Olsson","Dynapac ",1074,null,6,89.5,null,null,237,221,null,null,null,null,null,null,null,null,null,null,27,null,null,135,232,222,17,"-","-",87,73,73,73,null,null,1,2,3,2,1,1,1,0,1,1,1,1,1,2,1,1,2,3,3,null,2,null,null,237,232,222,221,135,27,"","","","","","","","","","","-","-",8,null,1074,null,null,null,null,null,null,null,null,null,null,null,null,null,null,null,null,null,null,null,null,null,null,null,null,null,null,null,null,null,null,null,null,null,null,null,null,null,null,null,null,null,null,null,null,null,null,null,null,null,null,null,null,null,null,null,null,null,null,null,null,null,null,73,null,73,"(87)"]
[{"$f":"IF(BE78>1,AF78&\" (\"&AE78&\")\",AF78&\" (\"&AG78&\")\")","v":"74 (69)"},"Olle Nilsson","Tingsryd",1067,null,6,88.916666666666671,null,145,154,null,161,null,null,null,null,null,null,250,196,161,null,null,null,null,null,null,17,"-","-",69,74,74,74,null,null,2,3,2,2,2,1,1,0,1,1,2,3,3,2,0,1,1,1,1,null,2,null,null,250,196,161,161,154,145,"","","","","","","","","","","-","-",8,null,1067,null,null,null,null,null,null,null,null,null,null,null,null,null,null,null,null,null,null,null,null,null,null,null,null,null,null,null,null,null,null,null,null,null,null,null,null,null,null,null,null,null,null,null,null,null,null,null,null,null,null,null,null,null,null,null,null,null,null,null,null,null,null,74,null,74,"(69)"]
["75 (76)","Anne-Marie Larsson","Tingsryd",1039,null,6,86.583333333333329,null,186,null,null,150,null,null,null,null,null,null,250,137,136,null,null,null,null,null,180,17,"-","-",76,75,75,75,null,null,2,2,1,2,2,1,1,0,1,1,2,3,3,2,0,1,1,1,2,null,2,null,null,250,186,180,150,137,136,"","","","","","","","","","","-","-",8,null,1039,null,null,null,null,null,null,null,null,null,null,null,null,null,null,null,null,null,null,null,null,null,null,null,null,null,null,null,null,null,null,null,null,null,null,null,null,null,null,null,null,null,null,null,null,null,null,null,null,null,null,null,null,null,null,null,null,null,null,null,null,null,null,75,null,75,"(76)"]
["76 (72)","Christer Brincner","Värends Hsk",1036,null,6,86.333333333333329,null,161,null,194,114,null,null,149,null,null,null,274,null,144,null,null,null,null,null,null,17,"-","-",72,76,76,76,null,null,2,2,2,3,2,1,2,1,1,1,2,2,2,2,0,1,1,1,1,null,2,null,null,274,194,161,149,144,114,"","","","","","","","","","","-","-",8,null,1036,null,null,null,null,null,null,null,null,null,null,null,null,null,null,null,null,null,null,null,null,null,null,null,null,null,null,null,null,null,null,null,null,null,null,null,null,null,null,null,null,null,null,null,null,null,null,null,null,null,null,null,null,null,null,null,null,null,null,null,null,null,null,76,null,76,"(72)"]
["77 (78)","Fredrik Lundin","Lanternan",1030,null,4,128.75,null,null,193,null,null,null,null,null,null,220,null,null,null,null,272,null,null,null,345,null,17,"-","-",78,77,77,77,null,null,1,2,2,1,1,1,1,0,2,2,1,1,1,2,1,1,1,2,2,null,2,null,null,345,272,220,193,"","","","","","","","","","","","","-","-",10,null,1030,null,null,null,null,null,null,null,null,null,null,null,null,null,null,null,null,null,null,null,null,null,null,null,null,null,null,null,null,null,null,null,null,null,null,null,null,null,null,null,null,null,null,null,null,null,null,null,null,null,null,null,null,null,null,null,null,null,null,null,null,null,null,77,null,77,"(78)"]
["78 (82)","Hans Johansson","Korpen Nybro",1008,null,12,42,null,87,91,105,117,83,null,null,null,null,null,126,48,67,71,null,74,null,52,87,17,"-","-",82,78,78,78,null,null,2,3,3,3,3,2,1,0,1,1,2,3,3,3,1,2,2,2,3,null,2,null,null,126,117,105,91,87,87,83,74,71,67,52,48,"","","","","-","-",2,null,1008,null,null,null,null,null,null,null,null,null,null,null,null,null,null,null,null,null,null,null,null,null,null,null,null,null,null,null,null,null,null,null,null,null,null,null,null,null,null,null,null,null,null,null,null,null,null,null,null,null,null,null,null,null,null,null,null,null,null,null,null,null,null,78,null,78,"(82)"]
["79 (80)","Maria Andersson","Team Småland Hsk",993,null,7,70.928571428571431,null,null,null,156,109,null,null,null,null,219,null,null,134,146,130,null,null,null,null,99,17,"-","-",80,79,79,79,null,null,1,1,2,3,2,1,1,0,2,2,1,2,3,3,1,1,1,1,2,null,2,null,null,219,156,146,134,130,109,99,"","","","","","","","","","-","-",7,null,993,null,null,null,null,null,null,null,null,null,null,null,null,null,null,null,null,null,null,null,null,null,null,null,null,null,null,null,null,null,null,null,null,null,null,null,null,null,null,null,null,null,null,null,null,null,null,null,null,null,null,null,null,null,null,null,null,null,null,null,null,null,null,79,null,79,"(80)"]
["80 (81)","Paul Karlsson","Lessebo",972,null,3,162,null,null,null,273,296,null,null,null,null,null,null,null,null,403,null,null,null,null,null,null,17,"-","-",81,80,80,80,null,null,1,1,2,3,2,1,1,0,1,1,1,1,2,2,0,1,1,1,1,null,2,null,null,403,296,273,"","","","","","","","","","","","","","-","-",11,null,972,null,null,null,null,null,null,null,null,null,null,null,null,null,null,null,null,null,null,null,null,null,null,null,null,null,null,null,null,null,null,null,null,null,null,null,null,null,null,null,null,null,null,null,null,null,null,null,null,null,null,null,null,null,null,null,null,null,null,null,null,null,null,80,null,80,"(81)"]
["81 (73)","Hans Lundqvist","Alvesta",970,null,5,97,null,154,null,null,null,177,null,null,null,227,null,null,197,215,null,null,null,null,null,null,17,"-","-",73,81,81,81,null,null,2,2,1,1,2,2,1,0,2,2,1,2,3,2,0,1,1,1,1,null,2,null,null,227,215,197,177,154,"","","","","","","","","","","","-","-",9,null,970,null,null,null,null,null,null,null,null,null,null,null,null,null,null,null,null,null,null,null,null,null,null,null,null,null,null,null,null,null,null,null,null,null,null,null,null,null,null,null,null,null,null,null,null,null,null,null,null,null,null,null,null,null,null,null,null,null,null,null,null,null,null,81,null,81,"(73)"]
["82 (82)","Michael Karlsson","Hsk Tingzås",934,null,6,77.833333333333329,null,144,null,null,null,null,null,null,null,null,null,null,129,128,202,null,152,null,179,null,17,"-","-",82,82,82,82,null,null,2,2,1,1,1,1,1,0,1,1,1,2,3,3,1,2,2,2,2,null,2,null,null,202,179,152,144,129,128,"","","","","","","","","","","-","-",8,null,934,null,null,null,null,null,null,null,null,null,null,null,null,null,null,null,null,null,null,null,null,null,null,null,null,null,null,null,null,null,null,null,null,null,null,null,null,null,null,null,null,null,null,null,null,null,null,null,null,null,null,null,null,null,null,null,null,null,null,null,null,null,null,82,null,82,"(82)"]
["83 (73)","Inga-Lill Stühr","Lessebo",927,null,4,115.875,null,null,null,null,null,162,null,null,null,null,null,216,297,252,null,null,null,null,null,null,17,"-","-",73,83,83,83,null,null,1,1,1,1,2,2,1,0,1,1,2,3,3,2,0,1,1,1,1,null,2,null,null,297,252,216,162,"","","","","","","","","","","","","-","-",10,null,927,null,null,null,null,null,null,null,null,null,null,null,null,null,null,null,null,null,null,null,null,null,null,null,null,null,null,null,null,null,null,null,null,null,null,null,null,null,null,null,null,null,null,null,null,null,null,null,null,null,null,null,null,null,null,null,null,null,null,null,null,null,null,83,null,83,"(73)"]
["84 (96)","Stephan Gervide","Korpen Nybro",902,null,4,112.75,null,null,null,248,209,null,null,null,null,null,null,null,218,null,null,null,null,null,null,227,17,"-","-",96,84,84,84,null,null,1,1,2,3,2,1,1,0,1,1,1,2,2,1,0,1,1,1,2,null,2,null,null,248,227,218,209,"","","","","","","","","","","","","-","-",10,null,902,null,null,null,null,null,null,null,null,null,null,null,null,null,null,null,null,null,null,null,null,null,null,null,null,null,null,null,null,null,null,null,null,null,null,null,null,null,null,null,null,null,null,null,null,null,null,null,null,null,null,null,null,null,null,null,null,null,null,null,null,null,null,84,null,84,"(96)"]
["85 (89)","Gunnar Lundbeck","Tingsryd",888,null,6,74,null,115,76,null,null,null,null,null,null,null,null,175,159,156,null,null,null,null,null,207,17,"-","-",89,85,85,85,null,null,2,3,2,1,1,1,1,0,1,1,2,3,3,2,0,1,1,1,2,null,2,null,null,207,175,159,156,115,76,"","","","","","","","","","","-","-",8,null,888,null,null,null,null,null,null,null,null,null,null,null,null,null,null,null,null,null,null,null,null,null,null,null,null,null,null,null,null,null,null,null,null,null,null,null,null,null,null,null,null,null,null,null,null,null,null,null,null,null,null,null,null,null,null,null,null,null,null,null,null,null,null,85,null,85,"(89)"]
["86 (85)","Bo Fransson","Lessebo",887,null,3,147.83333333333334,null,null,null,330,316,null,null,null,null,null,null,null,null,241,null,null,null,null,null,null,17,"-","-",85,86,86,86,null,null,1,1,2,3,2,1,1,0,1,1,1,1,2,2,0,1,1,1,1,null,2,null,null,330,316,241,"","","","","","","","","","","","","","-","-",11,null,887,null,null,null,null,null,null,null,null,null,null,null,null,null,null,null,null,null,null,null,null,null,null,null,null,null,null,null,null,null,null,null,null,null,null,null,null,null,null,null,null,null,null,null,null,null,null,null,null,null,null,null,null,null,null,null,null,null,null,null,null,null,null,86,null,86,"(85)"]
["87 (86)","Åke Bergqvist","Tingsryd",884,null,6,73.666666666666671,null,172,null,null,152,null,null,null,null,null,null,127,145,152,null,null,null,null,null,136,17,"-","-",86,87,87,87,null,null,2,2,1,2,2,1,1,0,1,1,2,3,3,2,0,1,1,1,2,null,2,null,null,172,152,152,145,136,127,"","","","","","","","","","","-","-",8,null,884,null,null,null,null,null,null,null,null,null,null,null,null,null,null,null,null,null,null,null,null,null,null,null,null,null,null,null,null,null,null,null,null,null,null,null,null,null,null,null,null,null,null,null,null,null,null,null,null,null,null,null,null,null,null,null,null,null,null,null,null,null,null,87,null,87,"(86)"]
["88 (89)","Jonas Klarström","Team Småland Hsk",876,null,7,62.571428571428569,null,null,null,153,147,null,null,null,null,121,null,null,112,127,118,null,null,null,null,98,17,"-","-",89,88,88,88,null,null,1,1,2,3,2,1,1,0,2,2,1,2,3,3,1,1,1,1,2,null,2,null,null,153,147,127,121,118,112,98,"","","","","","","","","","-","-",7,null,876,null,null,null,null,null,null,null,null,null,null,null,null,null,null,null,null,null,null,null,null,null,null,null,null,null,null,null,null,null,null,null,null,null,null,null,null,null,null,null,null,null,null,null,null,null,null,null,null,null,null,null,null,null,null,null,null,null,null,null,null,null,null,88,null,88,"(89)"]
[{"$f":"IF(BE93>1,AF93&\" (\"&AE93&\")\",AF93&\" (\"&AG93&\")\")","v":"89 (87)"},"Alexander Lundqvist","Alvesta",875,null,3,145.83333333333334,null,null,null,null,null,null,null,null,null,296,null,null,369,210,null,null,null,null,null,null,17,"-","-",87,{"$f":"IF(D93<D92,AH93,AF92)","v":89},89,89,null,null,{"$f":"COUNT($I$3,I93,H93)","v":1},{"$f":"COUNT($J$3,J93,I93)","v":1},{"$f":"COUNT($K$3,K93,J93)","v":1},{"$f":"COUNT($L$3,L93,K93)","v":1},{"$f":"COUNT($M$3,M93,L93)","v":1},{"$f":"COUNT($N$3,N93,M93)","v":1},{"$f":"COUNT($O$3,O93,N93)","v":1},{"$f":"COUNT($P$3,P93,O93)","v":0},{"$f":"COUNT($Q$3,Q93,P93)","v":2},{"$f":"COUNT($R$3,R93,Q93)","v":2},{"$f":"COUNT($S$3,S93,R93)","v":1},{"$f":"COUNT($T$3,T93,S93)","v":2},{"$f":"COUNT($U$3,U93,T93)","v":3},{"$f":"COUNT($V$3,V93,U93)","v":2},{"$f":"COUNT($W$3,W93,V93)","v":0},{"$f":"COUNT($X$3,X93,W93)","v":1},{"$f":"COUNT($Y$3,Y93,X93)","v":1},{"$f":"COUNT($Z$3,Z93,Y93)","v":1},{"$f":"COUNT($AA$3,AA93,Z93)","v":1},null,{"$f":"IF(H93=\"x\",1,2)","v":2},null,null,{"$f":"IF($F93>0,LARGE($I93:$AA93,1),\"\")","v":369},{"$f":"IF($F93>1,LARGE($I93:$AA93,2),\"\")","v":296},{"$f":"IF($F93>2,LARGE($I93:$AA93,3),\"\")","v":210},{"$f":"IF($F93>3,LARGE($I93:$AA93,4),\"\")","v":""},{"$f":"IF($F93>4,LARGE($I93:$AA93,5),\"\")","v":""},{"$f":"IF($F93>5,LARGE($I93:$AA93,6),\"\")","v":""},{"$f":"IF($F93>6,LARGE($I93:$AA93,7),\"\")","v":""},{"$f":"IF($F93>7,LARGE($I93:$AA93,8),\"\")","v":""},{"$f":"IF($F93>8,LARGE($I93:$AA93,9),\"\")","v":""},{"$f":"IF($F93>9,LARGE($I93:$AA93,10),\"\")","v":""},{"$f":"IF($F93>10,LARGE($I93:$AA93,11),\"\")","v":""},{"$f":"IF($F93>11,LARGE($I93:$AA93,12),\"\")","v":""},{"$f":"IF($F93>12,LARGE($I93:$AA93,13),\"\")","v":""},{"$f":"IF($F93>13,LARGE($I93:$AA93,14),\"\")","v":""},{"$f":"IF($F93>14,LARGE($I93:$AA93,15),\"\")","v":""},"","-","-",11,null,875,null,null,null,null,null,null,null,null,null,null,null,null,null,null,null,null,null,null,null,null,null,null,null,null,null,null,null,null,null,null,null,null,null,null,null,null,null,null,null,null,null,null,null,null,null,null,null,null,null,null,null,null,null,null,null,null,null,null,null,null,null,null,90,null,89,"(87)"]
["90 (76)","Kerstin Johansson","Lessebo",871,null,4,108.875,null,null,null,null,null,122,null,null,null,null,null,286,177,286,null,null,null,null,null,null,17,"-","-",76,90,90,90,null,null,1,1,1,1,2,2,1,0,1,1,2,3,3,2,0,1,1,1,1,null,2,null,null,286,286,177,122,"","","","","","","","","","","","","-","-",10,null,871,null,null,null,null,null,null,null,null,null,null,null,null,null,null,null,null,null,null,null,null,null,null,null,null,null,null,null,null,null,null,null,null,null,null,null,null,null,null,null,null,null,null,null,null,null,null,null,null,null,null,null,null,null,null,null,null,null,null,null,null,null,null,91,null,90,"(76)"]
["91 (94)","Karin Gullbrand","Värends Hsk",856,null,7,61.142857142857146,null,null,null,null,null,null,144,null,null,null,null,null,112,90,218,null,108,null,52,132,17,"-","-",94,91,91,91,null,null,1,1,1,1,1,2,2,0,1,1,1,2,3,3,1,2,2,2,3,null,2,null,null,218,144,132,112,108,90,52,"","","","","","","","","","-","-",7,null,856,null,null,null,null,null,null,null,null,null,null,null,null,null,null,null,null,null,null,null,null,null,null,null,null,null,null,null,null,null,null,null,null,null,null,null,null,null,null,null,null,null,null,null,null,null,null,null,null,null,null,null,null,null,null,null,null,null,null,null,null,null,null,92,null,91,"(94)"]
["92 (82)","Rolf Johannesson","Värends Hsk",792,null,5,79.2,null,154,null,null,null,null,null,null,null,null,null,null,null,134,188,null,177,null,139,null,17,"-","-",82,92,92,92,null,null,2,2,1,1,1,1,1,0,1,1,1,1,2,3,1,2,2,2,2,null,2,null,null,188,177,154,139,134,"","","","","","","","","","","","-","-",9,null,792,null,null,null,null,null,null,null,null,null,null,null,null,null,null,null,null,null,null,null,null,null,null,null,null,null,null,null,null,null,null,null,null,null,null,null,null,null,null,null,null,null,null,null,null,null,null,null,null,null,null,null,null,null,null,null,null,null,null,null,null,null,null,93,null,92,"(82)"]
["93 (92)","Kjell Åkesson","Lanternan",791,null,6,65.916666666666671,null,null,175,123,119,null,null,null,null,157,null,null,null,null,129,null,null,88,null,null,17,"-","-",92,93,93,93,null,null,1,2,3,3,2,1,1,0,2,2,1,1,1,2,1,1,2,2,1,null,2,null,null,175,157,129,123,119,88,"","","","","","","","","","","-","-",8,null,791,null,null,null,null,null,null,null,null,null,null,null,null,null,null,null,null,null,null,null,null,null,null,null,null,null,null,null,null,null,null,null,null,null,null,null,null,null,null,null,null,null,null,null,null,null,null,null,null,null,null,null,null,null,null,null,null,null,null,null,null,null,null,89,null,93,"(92)"]
["94 (93)","Jim Rådström","Jämjö Hsk",758,null,5,75.8,null,null,null,null,null,null,197,null,null,180,114,null,null,131,136,null,null,null,null,null,17,"-","-",93,94,94,94,null,null,1,1,1,1,1,2,2,0,2,3,2,1,2,3,1,1,1,1,1,null,2,null,null,197,180,136,131,114,"","","","","","","","","","","","-","-",9,null,758,null,null,null,null,null,null,null,null,null,null,null,null,null,null,null,null,null,null,null,null,null,null,null,null,null,null,null,null,null,null,null,null,null,null,null,null,null,null,null,null,null,null,null,null,null,null,null,null,null,null,null,null,null,null,null,null,null,null,null,null,null,null,94,null,94,"(93)"]
["95 (94)","Hans Johansson","Tingsryd",715,null,3,119.16666666666667,null,null,null,null,null,null,null,null,null,null,null,274,164,null,null,null,null,null,null,277,17,"-","-",94,95,95,95,null,null,1,1,1,1,1,1,1,0,1,1,2,3,2,1,0,1,1,1,2,null,2,null,null,277,274,164,"","","","","","","","","","","","","","-","-",11,null,715,null,null,null,null,null,null,null,null,null,null,null,null,null,null,null,null,null,null,null,null,null,null,null,null,null,null,null,null,null,null,null,null,null,null,null,null,null,null,null,null,null,null,null,null,null,null,null,null,null,null,null,null,null,null,null,null,null,null,null,null,null,null,95,null,95,"(94)"]
["96 (89)","Ulrika Rydell","Värends Hsk",682,null,4,85.25,null,94,null,192,262,null,null,null,null,null,null,null,null,134,null,null,null,null,null,null,17,"-","-",89,96,96,96,null,null,2,2,2,3,2,1,1,0,1,1,1,1,2,2,0,1,1,1,1,null,2,null,null,262,192,134,94,"","","","","","","","","","","","","-","-",10,null,682,null,null,null,null,null,null,null,null,null,null,null,null,null,null,null,null,null,null,null,null,null,null,null,null,null,null,null,null,null,null,null,null,null,null,null,null,null,null,null,null,null,null,null,null,null,null,null,null,null,null,null,null,null,null,null,null,null,null,null,null,null,null,96,null,96,"(89)"]
["97 (98)","Linnea Gneupel","Sibbamåla",655,null,4,81.875,null,null,null,197,132,null,null,null,null,156,170,null,null,null,null,null,null,null,null,null,17,"-","-",98,97,{"$f":"IF(F101>1,ROW(97:97),\"-\")","v":97},97,null,null,1,1,2,3,2,1,1,0,2,3,2,1,1,1,0,1,1,1,1,null,2,null,null,197,170,156,132,"","","","","","","","","","","","","-","-",10,null,655,null,null,null,null,null,null,null,null,null,null,null,null,null,null,null,null,null,null,null,null,null,null,null,null,null,null,null,null,null,null,null,null,null,null,null,null,null,null,null,null,null,null,null,null,null,null,null,null,null,null,null,null,null,null,null,null,null,null,null,null,null,null,97,null,{"$f":"IF(BE101>=1,AF101,\"\")","v":97},"(98)"]
["98 (99)","Leif Ahlex","Lessebo Hsk",652,null,2,163,null,null,null,310,342,null,null,null,null,null,null,null,null,null,null,null,null,null,null,null,17,"-","-",99,98,98,98,null,null,1,1,2,3,2,1,1,0,1,1,1,1,1,1,0,1,1,1,1,null,2,null,null,342,310,"","","","","","","","","","","","","","","-","-",12,null,652,null,null,null,null,null,null,null,null,null,null,null,null,null,null,null,null,null,null,null,null,null,null,null,null,null,null,null,null,null,null,null,null,null,null,null,null,null,null,null,null,null,null,null,null,null,null,null,null,null,null,null,null,null,null,null,null,null,null,null,null,null,null,98,null,98,"(99)"]
["98 (99)","Jörgen Holmqvist","Lessebo Hsk",652,null,2,163,null,null,null,314,null,null,null,null,null,null,null,null,null,338,null,null,null,null,null,null,17,"-","-",99,98,99,99,null,null,1,1,2,2,1,1,1,0,1,1,1,1,2,2,0,1,1,1,1,null,2,null,null,338,314,"","","","","","","","","","","","","","","-","-",12,null,652,null,null,null,null,null,null,null,null,null,null,null,null,null,null,null,null,null,null,null,null,null,null,null,null,null,null,null,null,null,null,null,null,null,null,null,null,null,null,null,null,null,null,null,null,null,null,null,null,null,null,null,null,null,null,null,null,null,null,null,null,null,null,99,null,98,"(99)"]
["100 (101)","Krister Nygren","Korpen Åseda",651,null,3,108.5,null,null,null,null,null,197,null,null,null,null,null,258,null,null,null,null,196,null,null,null,17,"-","-",101,100,100,100,null,null,1,1,1,1,2,2,1,0,1,1,2,2,1,1,0,2,2,1,1,null,2,null,null,258,197,196,"","","","","","","","","","","","","","-","-",11,null,651,null,null,null,null,null,null,null,null,null,null,null,null,null,null,null,null,null,null,null,null,null,null,null,null,null,null,null,null,null,null,null,null,null,null,null,null,null,null,null,null,null,null,null,null,null,null,null,null,null,null,null,null,null,null,null,null,null,null,null,null,null,null,100,null,100,"(101)"]
["101 (102)","Inge Skoglöv","Jämjö Hsk",650,null,4,81.25,null,null,131,null,null,null,null,null,null,null,169,null,150,null,null,null,null,null,200,null,17,"-","-",102,101,101,101,null,null,1,2,2,1,1,1,1,0,1,2,2,2,2,1,0,1,1,2,2,null,2,null,null,200,169,150,131,"","","","","","","","","","","","","-","-",10,null,650,null,null,null,null,null,null,null,null,null,null,null,null,null,null,null,null,null,null,null,null,null,null,null,null,null,null,null,null,null,null,null,null,null,null,null,null,null,null,null,null,null,null,null,null,null,null,null,null,null,null,null,null,null,null,null,null,null,null,null,null,null,null,101,null,101,"(102)"]
["102 (103)","Mimmi Hansson","Korpen Nybro",647,null,4,80.875,null,null,184,157,171,null,null,null,null,null,null,null,null,null,null,null,135,null,null,null,17,"-","-",103,102,102,102,null,null,1,2,3,3,2,1,1,0,1,1,1,1,1,1,0,2,2,1,1,null,2,null,null,184,171,157,135,"","","","","","","","","","","","","-","-",10,null,647,null,null,null,null,null,null,null,null,null,null,null,null,null,null,null,null,null,null,null,null,null,null,null,null,null,null,null,null,null,null,null,null,null,null,null,null,null,null,null,null,null,null,null,null,null,null,null,null,null,null,null,null,null,null,null,null,null,null,null,null,null,null,103,null,102,"(103)"]
["103 (104)","Eva Åkesson","Lanternan",592,null,4,74,null,null,null,null,125,null,null,null,null,197,null,null,null,null,99,null,null,171,null,null,17,"-","-",104,103,103,103,null,null,1,1,1,2,2,1,1,0,2,2,1,1,1,2,1,1,2,2,1,null,2,null,null,197,171,125,99,"","","","","","","","","","","","","-","-",10,null,592,null,null,null,null,null,null,null,null,null,null,null,null,null,null,null,null,null,null,null,null,null,null,null,null,null,null,null,null,null,null,null,null,null,null,null,null,null,null,null,null,null,null,null,null,null,null,null,null,null,null,null,null,null,null,null,null,null,null,null,null,null,null,104,null,103,"(104)"]
["104 (105)","Bo Trulsson","Korpen Åseda",588,null,3,98,null,null,null,null,null,null,null,null,null,null,null,267,161,null,null,null,160,null,null,null,17,"-","-",105,104,104,104,null,null,1,1,1,1,1,1,1,0,1,1,2,3,2,1,0,2,2,1,1,null,2,null,null,267,161,160,"","","","","","","","","","","","","","-","-",11,null,588,null,null,null,null,null,null,null,null,null,null,null,null,null,null,null,null,null,null,null,null,null,null,null,null,null,null,null,null,null,null,null,null,null,null,null,null,null,null,null,null,null,null,null,null,null,null,null,null,null,null,null,null,null,null,null,null,null,null,null,null,null,null,105,null,104,"(105)"]
["105 (116)","Daniel Mårtensson","Jämjö Hsk",555,null,5,55.5,null,null,null,null,null,null,88,null,null,45,null,null,null,null,115,null,null,null,161,146,17,"-","-",116,105,105,105,null,null,1,1,1,1,1,2,2,0,2,2,1,1,1,2,1,1,1,2,3,null,2,null,null,161,146,115,88,45,"","","","","","","","","","","","-","-",9,null,555,null,null,null,null,null,null,null,null,null,null,null,null,null,null,null,null,null,null,null,null,null,null,null,null,null,null,null,null,null,null,null,null,null,null,null,null,null,null,null,null,null,null,null,null,null,null,null,null,null,null,null,null,null,null,null,null,null,null,null,null,null,null,106,null,105,"(116)"]
["106 (129)","Kennarth Axelsson","Alvesta",551,null,2,137.75,null,null,null,null,null,null,null,null,null,null,null,null,null,null,null,null,null,null,241,310,17,"-","-",129,106,106,106,null,null,1,1,1,1,1,1,1,0,1,1,1,1,1,1,0,1,1,2,3,null,2,null,null,310,241,"","","","","","","","","","","","","","","-","-",12,null,551,null,null,null,null,null,null,null,null,null,null,null,null,null,null,null,null,null,null,null,null,null,null,null,null,null,null,null,null,null,null,null,null,null,null,null,null,null,null,null,null,null,null,null,null,null,null,null,null,null,null,null,null,null,null,null,null,null,null,null,null,null,null,107,null,106,"(129)"]
["107 (106)","Lisbeth Blihd","Lanternan",509,null,3,84.833333333333329,null,null,null,null,null,null,null,null,null,179,null,null,null,null,164,null,null,166,null,null,17,"-","-",106,107,107,107,null,null,1,1,1,1,1,1,1,0,2,2,1,1,1,2,1,1,2,2,1,null,2,null,null,179,166,164,"","","","","","","","","","","","","","-","-",11,null,509,null,null,null,null,null,null,null,null,null,null,null,null,null,null,null,null,null,null,null,null,null,null,null,null,null,null,null,null,null,null,null,null,null,null,null,null,null,null,null,null,null,null,null,null,null,null,null,null,null,null,null,null,null,null,null,null,null,null,null,null,null,null,108,null,107,"(106)"]
["108 (96)","Risto Selming","Korpen Nybro",499,null,4,62.375,null,null,null,113,163,null,null,null,null,null,null,null,144,null,79,null,null,null,null,null,17,"-","-",96,108,108,108,null,null,1,1,2,3,2,1,1,0,1,1,1,2,2,2,1,1,1,1,1,null,2,null,null,163,144,113,79,"","","","","","","","","","","","","-","-",10,null,499,null,null,null,null,null,null,null,null,null,null,null,null,null,null,null,null,null,null,null,null,null,null,null,null,null,null,null,null,null,null,null,null,null,null,null,null,null,null,null,null,null,null,null,null,null,null,null,null,null,null,null,null,null,null,null,null,null,null,null,null,null,null,102,null,108,"(96)"]
["109 (108)","Robert Lermalm","Jämjö Hsk",496,null,2,124,null,null,null,null,null,null,226,null,null,null,null,null,null,null,null,null,null,270,null,null,17,"-","-",108,109,109,109,null,null,1,1,1,1,1,2,2,0,1,1,1,1,1,1,0,1,2,2,1,null,2,null,null,270,226,"","","","","","","","","","","","","","","-","-",12,null,496,null,null,null,null,null,null,null,null,null,null,null,null,null,null,null,null,null,null,null,null,null,null,null,null,null,null,null,null,null,null,null,null,null,null,null,null,null,null,null,null,null,null,null,null,null,null,null,null,null,null,null,null,null,null,null,null,null,null,null,null,null,null,109,null,109,"(108)"]
["110 (110)","Jerry Viksten","Korpen Åseda",490,null,3,81.666666666666671,null,null,null,null,null,151,null,null,null,null,null,239,null,null,null,null,100,null,null,null,17,"-","-",110,110,110,110,null,null,1,1,1,1,2,2,1,0,1,1,2,2,1,1,0,2,2,1,1,null,2,null,null,239,151,100,"","","","","","","","","","","","","","-","-",11,null,490,null,null,null,null,null,null,null,null,null,null,null,null,null,null,null,null,null,null,null,null,null,null,null,null,null,null,null,null,null,null,null,null,null,null,null,null,null,null,null,null,null,null,null,null,null,null,null,null,null,null,null,null,null,null,null,null,null,null,null,null,null,null,110,null,110,"(110)"]
["111 (111)","Tommy Svensson","Värends Hsk",475,null,3,79.166666666666671,null,null,null,null,null,null,null,null,null,null,null,null,null,124,166,null,null,null,185,null,17,"-","-",111,111,111,111,null,null,1,1,1,1,1,1,1,0,1,1,1,1,2,3,1,1,1,2,2,null,2,null,null,185,166,124,"","","","","","","","","","","","","","-","-",11,null,475,null,null,null,null,null,null,null,null,null,null,null,null,null,null,null,null,null,null,null,null,null,null,null,null,null,null,null,null,null,null,null,null,null,null,null,null,null,null,null,null,null,null,null,null,null,null,null,null,null,null,null,null,null,null,null,null,null,null,null,null,null,null,116,null,111,"(111)"]
["112 (113)","Arne Blihd","Lanternan",462,null,4,57.75,null,null,108,null,null,null,null,null,null,120,null,null,null,null,114,null,null,120,null,null,17,"-","-",113,112,112,112,null,null,1,2,2,1,1,1,1,0,2,2,1,1,1,2,1,1,2,2,1,null,2,null,null,120,120,114,108,"","","","","","","","","","","","","-","-",10,null,462,null,null,null,null,null,null,null,null,null,null,null,null,null,null,null,null,null,null,null,null,null,null,null,null,null,null,null,null,null,null,null,null,null,null,null,null,null,null,null,null,null,null,null,null,null,null,null,null,null,null,null,null,null,null,null,null,null,null,null,null,null,null,111,null,112,"(113)"]
["113 (114)","Arne Nygren","Korpen Åseda",454,null,3,75.666666666666671,null,null,null,null,null,128,null,null,null,null,null,192,null,null,null,null,134,null,null,null,17,"-","-",114,113,113,113,null,null,1,1,1,1,2,2,1,0,1,1,2,2,1,1,0,2,2,1,1,null,2,null,null,192,134,128,"","","","","","","","","","","","","","-","-",11,null,454,null,null,null,null,null,null,null,null,null,null,null,null,null,null,null,null,null,null,null,null,null,null,null,null,null,null,null,null,null,null,null,null,null,null,null,null,null,null,null,null,null,null,null,null,null,null,null,null,null,null,null,null,null,null,null,null,null,null,null,null,null,null,112,null,113,"(114)"]
["114 (108)","Lars-Erik Green","Team Småland Hsk",450,null,4,56.25,null,84,null,null,null,null,null,null,null,101,null,null,null,181,null,null,null,null,null,84,17,"-","-",108,114,114,114,null,null,2,2,1,1,1,1,1,0,2,2,1,1,2,2,0,1,1,1,2,null,2,null,null,181,101,84,84,"","","","","","","","","","","","","-","-",10,null,450,null,null,null,null,null,null,null,null,null,null,null,null,null,null,null,null,null,null,null,null,null,null,null,null,null,null,null,null,null,null,null,null,null,null,null,null,null,null,null,null,null,null,null,null,null,null,null,null,null,null,null,null,null,null,null,null,null,null,null,null,null,null,114,null,114,"(108)"]
["115 (115)","Rickard Holgersson","Sketnabäck",423,null,2,105.75,null,null,null,166,257,null,null,null,null,null,null,null,null,null,null,null,null,null,null,null,17,"-","-",115,115,115,115,null,null,1,1,2,3,2,1,1,0,1,1,1,1,1,1,0,1,1,1,1,null,2,null,null,257,166,"","","","","","","","","","","","","","","-","-",12,null,423,null,null,null,null,null,null,null,null,null,null,null,null,null,null,null,null,null,null,null,null,null,null,null,null,null,null,null,null,null,null,null,null,null,null,null,null,null,null,null,null,null,null,null,null,null,null,null,null,null,null,null,null,null,null,null,null,null,null,null,null,null,null,115,null,115,"(115)"]
["116 (116)","Ingegärd Holmqvist","Lanternan",417,null,3,69.5,null,null,null,null,107,null,null,null,null,null,135,175,null,null,null,null,null,null,null,null,17,"-","-",116,116,116,116,null,null,1,1,1,2,2,1,1,0,1,2,3,2,1,1,0,1,1,1,1,null,2,null,null,175,135,107,"","","","","","","","","","","","","","-","-",11,null,417,null,null,null,null,null,null,null,null,null,null,null,null,null,null,null,null,null,null,null,null,null,null,null,null,null,null,null,null,null,null,null,null,null,null,null,null,null,null,null,null,null,null,null,null,null,null,null,null,null,null,null,null,null,null,null,null,null,null,null,null,null,null,117,null,116,"(116)"]
["117 (118)","Kasper Sjöberg","Sketnabäck",375,null,2,93.75,null,null,null,191,184,null,null,null,null,null,null,null,null,null,null,null,null,null,null,null,17,"-","-",118,117,117,117,null,null,1,1,2,3,2,1,1,0,1,1,1,1,1,1,0,1,1,1,1,null,2,null,null,191,184,"","","","","","","","","","","","","","","-","-",12,null,375,null,null,null,null,null,null,null,null,null,null,null,null,null,null,null,null,null,null,null,null,null,null,null,null,null,null,null,null,null,null,null,null,null,null,null,null,null,null,null,null,null,null,null,null,null,null,null,null,null,null,null,null,null,null,null,null,null,null,null,null,null,null,118,null,117,"(118)"]
["118 (120)","Solveig Brincner","Värends Hsk",358,null,5,35.799999999999997,null,28,null,82,50,130,null,68,null,null,null,null,null,null,null,null,null,null,null,null,17,"-","-",120,118,118,118,null,null,2,2,2,3,3,2,2,1,1,1,1,1,1,1,0,1,1,1,1,null,2,null,null,130,82,68,50,28,"","","","","","","","","","","","-","-",9,null,358,null,null,null,null,null,null,null,null,null,null,null,null,null,null,null,null,null,null,null,null,null,null,null,null,null,null,null,null,null,null,null,null,null,null,null,null,null,null,null,null,null,null,null,null,null,null,null,null,null,null,null,null,null,null,null,null,null,null,null,null,null,null,119,null,118,"(120)"]
["119 (111)","Susanne Andersson","Team Småland Hsk",344,null,3,57.333333333333336,null,82,null,null,null,null,null,null,null,132,null,null,null,130,null,null,null,null,null,null,17,"-","-",111,119,119,119,null,null,2,2,1,1,1,1,1,0,2,2,1,1,2,2,0,1,1,1,1,null,2,null,null,132,130,82,"","","","","","","","","","","","","","-","-",11,null,344,null,null,null,null,null,null,null,null,null,null,null,null,null,null,null,null,null,null,null,null,null,null,null,null,null,null,null,null,null,null,null,null,null,null,null,null,null,null,null,null,null,null,null,null,null,null,null,null,null,null,null,null,null,null,null,null,null,null,null,null,null,null,120,null,119,"(111)"]
["120 (106)","Ronnie Pettersson","Växjö Hsk",325,null,2,81.25,null,166,null,null,null,null,null,null,null,null,null,159,null,null,null,null,null,null,null,null,17,"-","-",106,120,120,120,null,null,2,2,1,1,1,1,1,0,1,1,2,2,1,1,0,1,1,1,1,null,2,null,null,166,159,"","","","","","","","","","","","","","","-","-",12,null,325,null,null,null,null,null,null,null,null,null,null,null,null,null,null,null,null,null,null,null,null,null,null,null,null,null,null,null,null,null,null,null,null,null,null,null,null,null,null,null,null,null,null,null,null,null,null,null,null,null,null,null,null,null,null,null,null,null,null,null,null,null,null,121,null,120,"(106)"]
[{"$f":"IF(BE125>1,AF125&\" (\"&AE125&\")\",AF125&\" (\"&AG125&\")\")","v":"121 (121)"},"Robert Sjöberg","Sketnabäck",316,null,2,79,null,null,null,189,127,null,null,null,null,null,null,null,null,null,null,null,null,null,null,null,17,"-","-",121,{"$f":"IF(D125<D124,AH125,AF124)","v":121},121,121,null,null,{"$f":"COUNT($I$3,I125,H125)","v":1},{"$f":"COUNT($J$3,J125,I125)","v":1},{"$f":"COUNT($K$3,K125,J125)","v":2},{"$f":"COUNT($L$3,L125,K125)","v":3},{"$f":"COUNT($M$3,M125,L125)","v":2},{"$f":"COUNT($N$3,N125,M125)","v":1},{"$f":"COUNT($O$3,O125,N125)","v":1},{"$f":"COUNT($P$3,P125,O125)","v":0},{"$f":"COUNT($Q$3,Q125,P125)","v":1},{"$f":"COUNT($R$3,R125,Q125)","v":1},{"$f":"COUNT($S$3,S125,R125)","v":1},{"$f":"COUNT($T$3,T125,S125)","v":1},{"$f":"COUNT($U$3,U125,T125)","v":1},{"$f":"COUNT($V$3,V125,U125)","v":1},{"$f":"COUNT($W$3,W125,V125)","v":0},{"$f":"COUNT($X$3,X125,W125)","v":1},{"$f":"COUNT($Y$3,Y125,X125)","v":1},{"$f":"COUNT($Z$3,Z125,Y125)","v":1},{"$f":"COUNT($AA$3,AA125,Z125)","v":1},null,{"$f":"IF(H125=\"x\",1,2)","v":2},null,null,{"$f":"IF($F125>0,LARGE($I125:$AA125,1),\"\")","v":189},{"$f":"IF($F125>1,LARGE($I125:$AA125,2),\"\")","v":127},{"$f":"IF($F125>2,LARGE($I125:$AA125,3),\"\")","v":""},{"$f":"IF($F125>3,LARGE($I125:$AA125,4),\"\")","v":""},{"$f":"IF($F125>4,LARGE($I125:$AA125,5),\"\")","v":""},{"$f":"IF($F125>5,LARGE($I125:$AA125,6),\"\")","v":""},{"$f":"IF($F125>6,LARGE($I125:$AA125,7),\"\")","v":""},{"$f":"IF($F125>7,LARGE($I125:$AA125,8),\"\")","v":""},{"$f":"IF($F125>8,LARGE($I125:$AA125,9),\"\")","v":""},{"$f":"IF($F125>9,LARGE($I125:$AA125,10),\"\")","v":""},{"$f":"IF($F125>10,LARGE($I125:$AA125,11),\"\")","v":""},{"$f":"IF($F125>11,LARGE($I125:$AA125,12),\"\")","v":""},{"$f":"IF($F125>12,LARGE($I125:$AA125,13),\"\")","v":""},{"$f":"IF($F125>13,LARGE($I125:$AA125,14),\"\")","v":""},{"$f":"IF($F125>14,LARGE($I125:$AA125,15),\"\")","v":""},"","-","-",12,null,316,null,null,null,null,null,null,null,null,null,null,null,null,null,null,null,null,null,null,null,null,null,null,null,null,null,null,null,null,null,null,null,null,null,null,null,null,null,null,null,null,null,null,null,null,null,null,null,null,null,null,null,null,null,null,null,null,null,null,null,null,null,null,127,null,121,"(121)"]
["122 (122)","Oscar Stener","Alvesta",303,null,3,50.5,null,null,null,null,null,64,null,null,null,null,null,null,89,150,null,null,null,null,null,null,17,"-","-",122,122,122,122,null,null,1,1,1,1,2,2,1,0,1,1,1,2,3,2,0,1,1,1,1,null,2,null,null,150,89,64,"","","","","","","","","","","","","","-","-",11,null,303,null,null,null,null,null,null,null,null,null,null,null,null,null,null,null,null,null,null,null,null,null,null,null,null,null,null,null,null,null,null,null,null,null,null,null,null,null,null,null,null,null,null,null,null,null,null,null,null,null,null,null,null,null,null,null,null,null,null,null,null,null,null,122,null,122,"(122)"]
["123 (123)","Kerstin Magnusson","Växjö Hsk",295,null,2,73.75,null,null,null,null,null,null,186,null,null,null,null,null,null,109,null,null,null,null,null,null,17,"-","-",123,123,123,123,null,null,1,1,1,1,1,2,2,0,1,1,1,1,2,2,0,1,1,1,1,null,2,null,null,186,109,"","","","","","","","","","","","","","","-","-",12,null,295,null,null,null,null,null,null,null,null,null,null,null,null,null,null,null,null,null,null,null,null,null,null,null,null,null,null,null,null,null,null,null,null,null,null,null,null,null,null,null,null,null,null,null,null,null,null,null,null,null,null,null,null,null,null,null,null,null,null,null,null,null,null,123,null,123,"(123)"]
["124 (124)","Johannes Engkvist","Alvesta",288,null,4,36,null,null,null,55,65,124,null,44,null,null,null,null,null,null,null,null,null,null,null,null,17,"-","-",124,124,124,124,null,null,1,1,2,3,3,2,2,1,1,1,1,1,1,1,0,1,1,1,1,null,2,null,null,124,65,55,44,"","","","","","","","","","","","","-","-",10,null,288,null,null,null,null,null,null,null,null,null,null,null,null,null,null,null,null,null,null,null,null,null,null,null,null,null,null,null,null,null,null,null,null,null,null,null,null,null,null,null,null,null,null,null,null,null,null,null,null,null,null,null,null,null,null,null,null,null,null,null,null,null,null,124,null,124,"(124)"]
["125 (125)","Jonathan Rådström","Jämjö Hsk",278,null,2,69.5,null,null,null,null,null,null,null,null,null,null,null,null,null,142,136,null,null,null,null,null,17,"-","-",125,125,125,125,null,null,1,1,1,1,1,1,1,0,1,1,1,1,2,3,1,1,1,1,1,null,2,null,null,142,136,"","","","","","","","","","","","","","","-","-",12,null,278,null,null,null,null,null,null,null,null,null,null,null,null,null,null,null,null,null,null,null,null,null,null,null,null,null,null,null,null,null,null,null,null,null,null,null,null,null,null,null,null,null,null,null,null,null,null,null,null,null,null,null,null,null,null,null,null,null,null,null,null,null,null,125,null,125,"(125)"]
["126 (126)","Lennart Karlsson","Lanternan",275,null,3,45.833333333333336,null,null,null,null,null,null,71,null,null,null,null,null,105,null,99,null,null,null,null,null,17,"-","-",126,126,126,126,null,null,1,1,1,1,1,2,2,0,1,1,1,2,2,2,1,1,1,1,1,null,2,null,null,105,99,71,"","","","","","","","","","","","","","-","-",11,null,275,null,null,null,null,null,null,null,null,null,null,null,null,null,null,null,null,null,null,null,null,null,null,null,null,null,null,null,null,null,null,null,null,null,null,null,null,null,null,null,null,null,null,null,null,null,null,null,null,null,null,null,null,null,null,null,null,null,null,null,null,null,null,126,null,126,"(126)"]
["127 (127)","Idah Strandberg","Jämjö Hsk",272,null,3,45.333333333333336,null,null,null,null,null,null,106,null,null,82,null,null,null,84,null,null,null,null,null,null,17,"-","-",127,127,127,127,null,null,1,1,1,1,1,2,2,0,2,2,1,1,2,2,0,1,1,1,1,null,2,null,null,106,84,82,"","","","","","","","","","","","","","-","-",11,null,272,null,null,null,null,null,null,null,null,null,null,null,null,null,null,null,null,null,null,null,null,null,null,null,null,null,null,null,null,null,null,null,null,null,null,null,null,null,null,null,null,null,null,null,null,null,null,null,null,null,null,null,null,null,null,null,null,null,null,null,null,null,null,113,null,127,"(127)"]
["128 (128)","Malin Lundqvist","Alvesta",270,null,2,67.5,null,null,null,null,null,79,null,null,null,191,null,null,null,null,null,null,null,null,null,null,17,"-","-",128,128,128,128,null,null,1,1,1,1,2,2,1,0,2,2,1,1,1,1,0,1,1,1,1,null,2,null,null,191,79,"","","","","","","","","","","","","","","-","-",12,null,270,null,null,null,null,null,null,null,null,null,null,null,null,null,null,null,null,null,null,null,null,null,null,null,null,null,null,null,null,null,null,null,null,null,null,null,null,null,null,null,null,null,null,null,null,null,null,null,null,null,null,null,null,null,null,null,null,null,null,null,null,null,null,128,null,128,"(128)"]
["129 (129)","Towe Danielsson","Korpen Nybro",{"$f":"SUM(BH133:BT133)","v":249},null,{"$f":"COUNT(I133:AA133)","v":1},{"$f":"SUM((CB133)/(F133*2))","v":124.5},null,null,null,null,null,null,null,null,null,null,null,null,249,null,null,null,null,null,null,null,{"$f":"SUM($I$3:$AA$3)","v":17},{"$f":"BX133","v":"-"},{"$f":"BY133","v":"-"},129,129,{"$f":"IF(F133>1,ROW(129:129),\"-\")","v":"-"},129,null,null,1,1,1,1,1,1,1,0,1,1,1,2,2,1,0,1,1,1,1,null,2,null,null,249,"","","","","","","","","","","","","","","","-","-",{"$f":"SUM(AB133-F133)-3","v":13},null,{"$f":"SUM(BH133:BW133)","v":249},null,null,null,null,null,null,null,null,null,null,null,null,null,null,null,null,null,null,null,null,null,null,null,null,null,null,null,null,null,null,null,null,null,null,null,null,null,null,null,null,null,null,null,null,null,null,null,null,null,null,null,null,null,null,null,null,null,null,null,null,null,null,129,null,{"$f":"IF(BE133>=1,AF133,\"\")","v":129},{"$f":"IF(BE133>1,\"(\"&AE133&\")\",\"(\"&AG133&\")\")","v":"(129)"}]
["130 (131)","Martin Björklund","Sketnabäck",240,null,1,120,null,null,null,240,null,null,null,null,null,null,null,null,null,null,null,null,null,null,null,null,17,"-","-",131,130,"-",130,null,null,1,1,2,2,1,1,1,0,1,1,1,1,1,1,0,1,1,1,1,null,2,null,null,240,"","","","","","","","","","","","","","",{"$f":"IF($F134>15,LARGE($I134:$AA134,16),\"\")","v":""},{"$f":"IF($F134>13,LARGE($I134:$AA134,14),\"-\")","v":"-"},{"$f":"IF($F134>14,LARGE($I134:$AA134,15),\"-\")","v":"-"},13,null,240,null,null,null,null,null,null,null,null,null,null,null,null,null,null,null,null,null,null,null,null,null,null,null,null,null,null,null,null,null,null,null,null,null,null,null,null,null,null,null,null,null,null,null,null,null,null,null,null,null,null,null,null,null,null,null,null,null,null,null,null,null,null,130,null,130,"(131)"]
["131 (132)","Rikard Åberg","Alvesta",225,null,2,56.25,null,null,null,null,null,102,null,null,null,123,null,null,null,null,null,null,null,null,null,null,17,"-","-",132,131,131,131,null,null,1,1,1,1,2,2,1,0,2,2,1,1,1,1,0,1,1,1,1,null,2,null,null,123,102,"","","","","","","","","","","","","","","-","-",12,null,225,null,null,null,null,null,null,null,null,null,null,null,null,null,null,null,null,null,null,null,null,null,null,null,null,null,null,null,null,null,null,null,null,null,null,null,null,null,null,null,null,null,null,null,null,null,null,null,null,null,null,null,null,null,null,null,null,null,null,null,null,null,null,131,null,131,"(132)"]
["132 (133)","Johan Karlsson","Korpen Åseda",218,null,1,109,null,null,null,null,null,null,null,null,null,null,null,218,null,null,null,null,null,null,null,null,17,"-","-",133,132,"-",132,null,null,1,1,1,1,1,1,1,0,1,1,2,2,1,1,0,1,1,1,1,null,2,null,null,218,"","","","","","","","","","","","","","","","-","-",13,null,218,null,null,null,null,null,null,null,null,null,null,null,null,null,null,null,null,null,null,null,null,null,null,null,null,null,null,null,null,null,null,null,null,null,null,null,null,null,null,null,null,null,null,null,null,null,null,null,null,null,null,null,null,null,null,null,null,null,null,null,null,null,null,132,null,132,"(133)"]
["133 (134)","Börje Carlsson","Korpen Åseda",214,null,2,53.5,null,null,104,null,null,110,null,null,null,null,null,null,null,null,null,null,null,null,null,null,17,"-","-",134,133,133,133,null,null,1,2,2,1,2,2,1,0,1,1,1,1,1,1,0,1,1,1,1,null,2,null,null,110,104,"","","","","","","","","","","","","","","-","-",12,null,214,null,null,null,null,null,null,null,null,null,null,null,null,null,null,null,null,null,null,null,null,null,null,null,null,null,null,null,null,null,null,null,null,null,null,null,null,null,null,null,null,null,null,null,null,null,null,null,null,null,null,null,null,null,null,null,null,null,null,null,null,null,null,133,null,133,"(134)"]
["134 (136)","Kjell Rydh","Korpen Nybro",213,null,1,106.5,null,null,null,null,null,null,null,null,null,null,null,null,213,null,null,null,null,null,null,null,17,"-","-",136,134,"-",134,null,null,1,1,1,1,1,1,1,0,1,1,1,2,2,1,0,1,1,1,1,null,2,null,null,213,"","","","","","","","","","","","","","","","-","-",13,null,213,null,null,null,null,null,null,null,null,null,null,null,null,null,null,null,null,null,null,null,null,null,null,null,null,null,null,null,null,null,null,null,null,null,null,null,null,null,null,null,null,null,null,null,null,null,null,null,null,null,null,null,null,null,null,null,null,null,null,null,null,null,null,135,null,134,"(136)"]
["135 (137)","Anders Alriksson","Dynapac ",211,null,1,105.5,null,null,null,null,null,null,null,null,null,211,null,null,null,null,null,null,null,null,null,null,17,"-","-",137,135,"-",135,null,null,1,1,1,1,1,1,1,0,2,2,1,1,1,1,0,1,1,1,1,null,2,null,null,211,"","","","","","","","","","","","","","","","-","-",13,null,211,null,null,null,null,null,null,null,null,null,null,null,null,null,null,null,null,null,null,null,null,null,null,null,null,null,null,null,null,null,null,null,null,null,null,null,null,null,null,null,null,null,null,null,null,null,null,null,null,null,null,null,null,null,null,null,null,null,null,null,null,null,null,136,null,135,"(137)"]
["136 (138)","Roland Andreasson","Lanternan",210,null,1,105,null,null,null,null,null,null,null,null,null,null,null,null,null,null,null,null,null,210,null,null,17,"-","-",138,136,"-",136,null,null,1,1,1,1,1,1,1,0,1,1,1,1,1,1,0,1,2,2,1,null,2,null,null,210,"","","","","","","","","","","","","","","","-","-",13,null,210,null,null,null,null,null,null,null,null,null,null,null,null,null,null,null,null,null,null,null,null,null,null,null,null,null,null,null,null,null,null,null,null,null,null,null,null,null,null,null,null,null,null,null,null,null,null,null,null,null,null,null,null,null,null,null,null,null,null,null,null,null,null,137,null,136,"(138)"]
["137 (139)","Magnus Stenberg","Hsk Tingzås",195,null,1,97.5,null,null,null,null,null,null,null,195,null,null,null,null,null,null,null,null,null,null,null,null,17,"-","-",139,137,"-",137,null,null,1,1,1,1,1,1,2,1,1,1,1,1,1,1,0,1,1,1,1,null,2,null,null,195,"","","","","","","","","","","","","","","","-","-",13,null,195,null,null,null,null,null,null,null,null,null,null,null,null,null,null,null,null,null,null,null,null,null,null,null,null,null,null,null,null,null,null,null,null,null,null,null,null,null,null,null,null,null,null,null,null,null,null,null,null,null,null,null,null,null,null,null,null,null,null,null,null,null,null,138,null,137,"(139)"]
["138 (140)","Roy Johansson","Lanternan",194,null,1,97,null,null,194,null,null,null,null,null,null,null,null,null,null,null,null,null,null,null,null,null,17,"-","-",140,138,"-",138,null,null,1,2,2,1,1,1,1,0,1,1,1,1,1,1,0,1,1,1,1,null,2,null,null,194,"","","","","","","","","","","","","","","","-","-",13,null,194,null,null,null,null,null,null,null,null,null,null,null,null,null,null,null,null,null,null,null,null,null,null,null,null,null,null,null,null,null,null,null,null,null,null,null,null,null,null,null,null,null,null,null,null,null,null,null,null,null,null,null,null,null,null,null,null,null,null,null,null,null,null,167,null,167,"(140)"]
["139 (141)","Kenneth Andersson","Dynapac ",193,null,1,96.5,null,null,null,null,null,null,null,null,null,null,null,null,null,null,193,null,null,null,null,null,17,"-","-",141,139,"-",139,null,null,1,1,1,1,1,1,1,0,1,1,1,1,1,2,1,1,1,1,1,null,2,null,null,193,"","","","","","","","","","","","","","","","-","-",13,null,193,null,null,null,null,null,null,null,null,null,null,null,null,null,null,null,null,null,null,null,null,null,null,null,null,null,null,null,null,null,null,null,null,null,null,null,null,null,null,null,null,null,null,null,null,null,null,null,null,null,null,null,null,null,null,null,null,null,null,null,null,null,null,139,null,{"$f":"IF(BE143>=1,AF143,\"\")","v":139},"(141)"]
["140 (142)","Susanne Simonsson","Lanternan",187,null,1,93.5,null,null,null,null,null,null,null,null,null,null,null,null,null,null,null,null,null,187,null,null,17,"-","-",142,140,"-",140,null,null,1,1,1,1,1,1,1,0,1,1,1,1,1,1,0,1,2,2,1,null,2,null,null,187,"","","","","","","","","","","","","","","","-","-",13,null,187,null,null,null,null,null,null,null,null,null,null,null,null,null,null,null,null,null,null,null,null,null,null,null,null,null,null,null,null,null,null,null,null,null,null,null,null,null,null,null,null,null,null,null,null,null,null,null,null,null,null,null,null,null,null,null,null,null,null,null,null,null,null,140,null,{"$f":"IF(BE144>1,AF144,\"\")","v":140},"(142)"]
["141 (143)","Allan Persson","Tingsryd",184,null,2,46,null,null,null,null,null,null,null,null,null,null,null,null,null,102,null,null,null,null,null,82,17,"-","-",143,141,141,141,null,null,1,1,1,1,1,1,1,0,1,1,1,1,2,2,0,1,1,1,2,null,2,null,null,102,82,"","","","","","","","","","","","","","","-","-",12,null,184,null,null,null,null,null,null,null,null,null,null,null,null,null,null,null,null,null,null,null,null,null,null,null,null,null,null,null,null,null,null,null,null,null,null,null,null,null,null,null,null,null,null,null,null,null,null,null,null,null,null,null,null,null,null,null,null,null,null,null,null,null,null,141,null,{"$f":"IF(BE145>=1,AF145,\"\")","v":141},"(143)"]
["142 (144)","Anna Stenberg","Hsk Tingzås",182,null,1,91,null,null,null,null,null,null,null,182,null,null,null,null,null,null,null,null,null,null,null,null,17,"-","-",144,142,"-",142,null,null,1,1,1,1,1,1,2,1,1,1,1,1,1,1,0,1,1,1,1,null,2,null,null,182,"","","","","","","","","","","","","","","","-","-",13,null,182,null,null,null,null,null,null,null,null,null,null,null,null,null,null,null,null,null,null,null,null,null,null,null,null,null,null,null,null,null,null,null,null,null,null,null,null,null,null,null,null,null,null,null,null,null,null,null,null,null,null,null,null,null,null,null,null,null,null,null,null,null,null,142,null,{"$f":"IF(BE146>=1,AF146,\"\")","v":142},"(144)"]
["142 (144)","Bertil Westergren","Växjö Hsk",182,null,1,91,null,null,null,null,null,null,null,null,null,null,null,182,null,null,null,null,null,null,null,null,17,"-","-",144,142,"-",143,null,null,1,1,1,1,1,1,1,0,1,1,2,2,1,1,0,1,1,1,1,null,2,null,null,182,"","","","","","","","","","","","","","","","-","-",13,null,182,null,null,null,null,null,null,null,null,null,null,null,null,null,null,null,null,null,null,null,null,null,null,null,null,null,null,null,null,null,null,null,null,null,null,null,null,null,null,null,null,null,null,null,null,null,null,null,null,null,null,null,null,null,null,null,null,null,null,null,null,null,null,143,null,{"$f":"IF(BE147>=1,AF147,\"\")","v":142},"(144)"]
["144 (146)","Ida Johansson","Jämjö Hsk",177,null,2,44.25,null,null,null,null,null,null,null,null,null,116,61,null,null,null,null,null,null,null,null,null,17,"-","-",146,144,144,144,null,null,1,1,1,1,1,1,1,0,2,3,2,1,1,1,0,1,1,1,1,null,2,null,null,116,61,"","","","","","","","","","","","","","","-","-",12,null,177,null,null,null,null,null,null,null,null,null,null,null,null,null,null,null,null,null,null,null,null,null,null,null,null,null,null,null,null,null,null,null,null,null,null,null,null,null,null,null,null,null,null,null,null,null,null,null,null,null,null,null,null,null,null,null,null,null,null,null,null,null,null,144,null,{"$f":"IF(BE148>=1,AF148,\"\")","v":144},"(146)"]
["145 (147)","Andreas Holmberg","Jämjö Hsk",169,null,1,84.5,null,null,null,169,null,null,null,null,null,null,null,null,null,null,null,null,null,null,null,null,17,"-","-",147,145,"-",145,null,null,1,1,2,2,1,1,1,0,1,1,1,1,1,1,0,1,1,1,1,null,2,null,null,169,"","","","","","","","","","","","","","","","-","-",13,null,169,null,null,null,null,null,null,null,null,null,null,null,null,null,null,null,null,null,null,null,null,null,null,null,null,null,null,null,null,null,null,null,null,null,null,null,null,null,null,null,null,null,null,null,null,null,null,null,null,null,null,null,null,null,null,null,null,null,null,null,null,null,null,145,null,{"$f":"IF(BE149>=1,AF149,\"\")","v":145},"(147)"]
["146 (148)","Mikael Grönskog","Sibbamåla",167,null,1,83.5,null,null,null,null,null,null,null,null,null,null,null,null,null,null,null,null,null,null,167,null,17,"-","-",148,146,"-",146,null,null,1,1,1,1,1,1,1,0,1,1,1,1,1,1,0,1,1,2,2,null,2,null,null,167,"","","","","","","","","","","","","","","","-","-",13,null,167,null,null,null,null,null,null,null,null,null,null,null,null,null,null,null,null,null,null,null,null,null,null,null,null,null,null,null,null,null,null,null,null,null,null,null,null,null,null,null,null,null,null,null,null,null,null,null,null,null,null,null,null,null,null,null,null,null,null,null,null,null,null,175,null,{"$f":"IF(BE150>1,AF150,\"\")","v":146},"(148)"]
["147 (118)","Christina Holmberg","Tingsryd",165,null,1,82.5,null,null,null,null,null,null,null,165,null,null,null,null,null,null,null,null,null,null,null,null,17,"-","-",118,147,"-",147,null,null,1,1,1,1,1,1,2,1,1,1,1,1,1,1,0,1,1,1,1,null,2,null,null,165,"","","","","","","","","","","","","","","","-","-",13,null,165,null,null,null,null,null,null,null,null,null,null,null,null,null,null,null,null,null,null,null,null,null,null,null,null,null,null,null,null,null,null,null,null,null,null,null,null,null,null,null,null,null,null,null,null,null,null,null,null,null,null,null,null,null,null,null,null,null,null,null,null,null,null,146,null,{"$f":"IF(BE151>=1,AF151,\"\")","v":147},"(118)"]
["148 (149)","Ola Holgersson","Holmsjö Youngster",158,null,1,79,null,null,null,null,null,null,null,158,null,null,null,null,null,null,null,null,null,null,null,null,17,"-","-",149,148,"-",148,null,null,1,1,1,1,1,1,2,1,1,1,1,1,1,1,0,1,1,1,1,null,2,null,null,158,"","","","","","","","","","","","","","","","-","-",13,null,158,null,null,null,null,null,null,null,null,null,null,null,null,null,null,null,null,null,null,null,null,null,null,null,null,null,null,null,null,null,null,null,null,null,null,null,null,null,null,null,null,null,null,null,null,null,null,null,null,null,null,null,null,null,null,null,null,null,null,null,null,null,null,147,null,148,"(149)"]
["149 (150)","Kerstin Petersen","Växjö",154,null,1,77,null,null,null,null,null,154,null,null,null,null,null,null,null,null,null,null,null,null,null,null,17,"-","-",150,149,"-",149,null,null,1,1,1,1,2,2,1,0,1,1,1,1,1,1,0,1,1,1,1,null,2,null,null,154,"","","","","","","","","","","","","","","","-","-",13,null,154,null,null,null,null,null,null,null,null,null,null,null,null,null,null,null,null,null,null,null,null,null,null,null,null,null,null,null,null,null,null,null,null,null,null,null,null,null,null,null,null,null,null,null,null,null,null,null,null,null,null,null,null,null,null,null,null,null,null,null,null,null,null,148,null,149,"(150)"]
["150 (151)","Ulrich Hofer","Lanternan",150,null,1,75,null,null,150,null,null,null,null,null,null,null,null,null,null,null,null,null,null,null,null,null,17,"-","-",151,150,"-",150,null,null,1,2,2,1,1,1,1,0,1,1,1,1,1,1,0,1,1,1,1,null,2,null,null,150,"","","","","","","","","","","","","","","","-","-",13,null,150,null,null,null,null,null,null,null,null,null,null,null,null,null,null,null,null,null,null,null,null,null,null,null,null,null,null,null,null,null,null,null,null,null,null,null,null,null,null,null,null,null,null,null,null,null,null,null,null,null,null,null,null,null,null,null,null,null,null,null,null,null,null,149,null,150,"(151)"]
["151 (152)","Irené Pettersson","Lanternan",147,null,1,73.5,null,null,147,null,null,null,null,null,null,null,null,null,null,null,null,null,null,null,null,null,17,"-","-",152,151,"-",151,null,null,1,2,2,1,1,1,1,0,1,1,1,1,1,1,0,1,1,1,1,null,2,null,null,147,"","","","","","","","","","","","","","","","-","-",13,null,147,null,null,null,null,null,null,null,null,null,null,null,null,null,null,null,null,null,null,null,null,null,null,null,null,null,null,null,null,null,null,null,null,null,null,null,null,null,null,null,null,null,null,null,null,null,null,null,null,null,null,null,null,null,null,null,null,null,null,null,null,null,null,150,null,151,"(152)"]
["152 (153)","Henry Johansson","Korpen Åseda",141,null,1,70.5,null,null,null,null,null,null,null,null,null,null,null,141,null,null,null,null,null,null,null,null,17,"-","-",153,152,"-",152,null,null,1,1,1,1,1,1,1,0,1,1,2,2,1,1,0,1,1,1,1,null,2,null,null,141,"","","","","","","","","","","","","","","","-","-",13,null,141,null,null,null,null,null,null,null,null,null,null,null,null,null,null,null,null,null,null,null,null,null,null,null,null,null,null,null,null,null,null,null,null,null,null,null,null,null,null,null,null,null,null,null,null,null,null,null,null,null,null,null,null,null,null,null,null,null,null,null,null,null,null,151,null,152,"(153)"]
[{"$f":"IF(BE157>1,AF157&\" (\"&AE157&\")\",AF157&\" (\"&AG157&\")\")","v":"153 (154)"},"Kent Vikström","Växjö",140,null,1,70,null,null,null,null,null,140,null,null,null,null,null,null,null,null,null,null,null,null,null,null,17,"-","-",154,{"$f":"IF(D157<D156,AH157,AF156)","v":153},"-",153,null,null,{"$f":"COUNT($I$3,I157,H157)","v":1},{"$f":"COUNT($J$3,J157,I157)","v":1},{"$f":"COUNT($K$3,K157,J157)","v":1},{"$f":"COUNT($L$3,L157,K157)","v":1},{"$f":"COUNT($M$3,M157,L157)","v":2},{"$f":"COUNT($N$3,N157,M157)","v":2},{"$f":"COUNT($O$3,O157,N157)","v":1},{"$f":"COUNT($P$3,P157,O157)","v":0},{"$f":"COUNT($Q$3,Q157,P157)","v":1},{"$f":"COUNT($R$3,R157,Q157)","v":1},{"$f":"COUNT($S$3,S157,R157)","v":1},{"$f":"COUNT($T$3,T157,S157)","v":1},{"$f":"COUNT($U$3,U157,T157)","v":1},{"$f":"COUNT($V$3,V157,U157)","v":1},{"$f":"COUNT($W$3,W157,V157)","v":0},{"$f":"COUNT($X$3,X157,W157)","v":1},{"$f":"COUNT($Y$3,Y157,X157)","v":1},{"$f":"COUNT($Z$3,Z157,Y157)","v":1},{"$f":"COUNT($AA$3,AA157,Z157)","v":1},null,{"$f":"IF(H157=\"x\",1,2)","v":2},null,null,{"$f":"IF($F157>0,LARGE($I157:$AA157,1),\"\")","v":140},{"$f":"IF($F157>1,LARGE($I157:$AA157,2),\"\")","v":""},{"$f":"IF($F157>2,LARGE($I157:$AA157,3),\"\")","v":""},{"$f":"IF($F157>3,LARGE($I157:$AA157,4),\"\")","v":""},{"$f":"IF($F157>4,LARGE($I157:$AA157,5),\"\")","v":""},{"$f":"IF($F157>5,LARGE($I157:$AA157,6),\"\")","v":""},{"$f":"IF($F157>6,LARGE($I157:$AA157,7),\"\")","v":""},{"$f":"IF($F157>7,LARGE($I157:$AA157,8),\"\")","v":""},{"$f":"IF($F157>8,LARGE($I157:$AA157,9),\"\")","v":""},{"$f":"IF($F157>9,LARGE($I157:$AA157,10),\"\")","v":""},{"$f":"IF($F157>10,LARGE($I157:$AA157,11),\"\")","v":""},{"$f":"IF($F157>11,LARGE($I157:$AA157,12),\"\")","v":""},{"$f":"IF($F157>12,LARGE($I157:$AA157,13),\"\")","v":""},{"$f":"IF($F157>13,LARGE($I157:$AA157,14),\"\")","v":""},{"$f":"IF($F157>14,LARGE($I157:$AA157,15),\"\")","v":""},"","-","-",13,null,140,null,null,null,null,null,null,null,null,null,null,null,null,null,null,null,null,null,null,null,null,null,null,null,null,null,null,null,null,null,null,null,null,null,null,null,null,null,null,null,null,null,null,null,null,null,null,null,null,null,null,null,null,null,null,null,null,null,null,null,null,null,null,184,null,{"$f":"IF(BE157>1,AF157,\"\")","v":153},"(154)"]
["154 (155)","Andreas Collin","Hsk Tingzås",135,null,1,67.5,null,135,null,null,null,null,null,null,null,null,null,null,null,null,null,null,null,null,null,null,17,"-","-",155,154,"-",154,null,null,2,2,1,1,1,1,1,0,1,1,1,1,1,1,0,1,1,1,1,null,2,null,null,135,"","","","","","","","","","","","","","","","-","-",13,null,135,null,null,null,null,null,null,null,null,null,null,null,null,null,null,null,null,null,null,null,null,null,null,null,null,null,null,null,null,null,null,null,null,null,null,null,null,null,null,null,null,null,null,null,null,null,null,null,null,null,null,null,null,null,null,null,null,null,null,null,null,null,null,152,null,{"$f":"IF(BE158>=1,AF158,\"\")","v":154},"(155)"]
["154 (155)","Ivar Lindstedt","Cementa IF",135,null,1,67.5,null,null,null,null,null,null,null,135,null,null,null,null,null,null,null,null,null,null,null,null,17,"-","-",155,154,"-",155,null,null,1,1,1,1,1,1,2,1,1,1,1,1,1,1,0,1,1,1,1,null,2,null,null,135,"","","","","","","","","","","","","","","","-","-",13,null,135,null,null,null,null,null,null,null,null,null,null,null,null,null,null,null,null,null,null,null,null,null,null,null,null,null,null,null,null,null,null,null,null,null,null,null,null,null,null,null,null,null,null,null,null,null,null,null,null,null,null,null,null,null,null,null,null,null,null,null,null,null,null,153,null,154,"(155)"]
["156 (157)","Neo Rådström","Jämjö Hsk",128,null,1,64,null,null,null,null,null,null,null,null,null,null,null,null,null,128,null,null,null,null,null,null,17,"-","-",157,156,"-",156,null,null,1,1,1,1,1,1,1,0,1,1,1,1,2,2,0,1,1,1,1,null,2,null,null,128,"","","","","","","","","","","","","","","","-","-",13,null,128,null,null,null,null,null,null,null,null,null,null,null,null,null,null,null,null,null,null,null,null,null,null,null,null,null,null,null,null,null,null,null,null,null,null,null,null,null,null,null,null,null,null,null,null,null,null,null,null,null,null,null,null,null,null,null,null,null,null,null,null,null,null,154,null,156,"(157)"]
["157 (158)","Per Blihd","Niklassons Glas",120,null,1,60,null,null,120,null,null,null,null,null,null,null,null,null,null,null,null,null,null,null,null,null,17,"-","-",158,157,"-",157,null,null,1,2,2,1,1,1,1,0,1,1,1,1,1,1,0,1,1,1,1,null,2,null,null,120,"","","","","","","","","","","","","","","","-","-",13,null,120,null,null,null,null,null,null,null,null,null,null,null,null,null,null,null,null,null,null,null,null,null,null,null,null,null,null,null,null,null,null,null,null,null,null,null,null,null,null,null,null,null,null,null,null,null,null,null,null,null,null,null,null,null,null,null,null,null,null,null,null,null,null,156,null,157,"(158)"]
["158 (159)","Elin Edlund","Dynapac ",116,null,1,58,null,null,null,null,null,null,null,null,null,116,null,null,null,null,null,null,null,null,null,null,17,"-","-",159,158,"-",158,null,null,1,1,1,1,1,1,1,0,2,2,1,1,1,1,0,1,1,1,1,null,2,null,null,116,"","","","","","","","","","","","","","","","-","-",13,null,116,null,null,null,null,null,null,null,null,null,null,null,null,null,null,null,null,null,null,null,null,null,null,null,null,null,null,null,null,null,null,null,null,null,null,null,null,null,null,null,null,null,null,null,null,null,null,null,null,null,null,null,null,null,null,null,null,null,null,null,null,null,null,157,null,158,"(159)"]
["159 (160)","Mikaela Haraldsson","Niklassons Glas",115,null,1,57.5,null,null,115,null,null,null,null,null,null,null,null,null,null,null,null,null,null,null,null,null,17,"-","-",160,159,"-",159,null,null,1,2,2,1,1,1,1,0,1,1,1,1,1,1,0,1,1,1,1,null,2,null,null,115,"","","","","","","","","","","","","","","","-","-",13,null,115,null,null,null,null,null,null,null,null,null,null,null,null,null,null,null,null,null,null,null,null,null,null,null,null,null,null,null,null,null,null,null,null,null,null,null,null,null,null,null,null,null,null,null,null,null,null,null,null,null,null,null,null,null,null,null,null,null,null,null,null,null,null,158,null,159,"(160)"]
["160 (161)","Morgan Atle","Dynapac ",113,null,1,56.5,null,null,113,null,null,null,null,null,null,null,null,null,null,null,null,null,null,null,null,null,17,"-","-",161,160,"-",160,null,null,1,2,2,1,1,1,1,0,1,1,1,1,1,1,0,1,1,1,1,null,2,null,null,113,"","","","","","","","","","","","","","","","-","-",13,null,113,null,null,null,null,null,null,null,null,null,null,null,null,null,null,null,null,null,null,null,null,null,null,null,null,null,null,null,null,null,null,null,null,null,null,null,null,null,null,null,null,null,null,null,null,null,null,null,null,null,null,null,null,null,null,null,null,null,null,null,null,null,null,159,null,160,"(161)"]
["161 (162)","Bill Bergman","Boge Sels",112,null,1,56,null,null,null,null,null,null,null,112,null,null,null,null,null,null,null,null,null,null,null,null,17,"-","-",162,161,{"$f":"IF(F165>1,ROW(161:161),\"-\")","v":"-"},161,null,null,1,1,1,1,1,1,2,1,1,1,1,1,1,1,0,1,1,1,1,null,2,null,null,112,"","","","","","","","","","","","","","","","-","-",13,null,112,null,null,null,null,null,null,null,null,null,null,null,null,null,null,null,null,null,null,null,null,null,null,null,null,null,null,null,null,null,null,null,null,null,null,null,null,null,null,null,null,null,null,null,null,null,null,null,null,null,null,null,null,null,null,null,null,null,null,null,null,null,null,206,null,{"$f":"IF(BE165>1,AF165,\"\")","v":161},"(162)"]
["162 (163)","Emil Pettersson","Lanternan",110,null,1,55,null,110,null,null,null,null,null,null,null,null,null,null,null,null,null,null,null,null,null,null,17,"-","-",163,162,"-",162,null,null,2,2,1,1,1,1,1,0,1,1,1,1,1,1,0,1,1,1,1,null,2,null,null,110,"","","","","","","","","","","","","","","","-","-",13,null,110,null,null,null,null,null,null,null,null,null,null,null,null,null,null,null,null,null,null,null,null,null,null,null,null,null,null,null,null,null,null,null,null,null,null,null,null,null,null,null,null,null,null,null,null,null,null,null,null,null,null,null,null,null,null,null,null,null,null,null,null,null,null,160,null,{"$f":"IF(BE166>=1,AF166,\"\")","v":162},"(163)"]
["163 (164)","Sanne Bergman","Boge Sels",103,null,1,51.5,null,null,null,null,null,null,null,103,null,null,null,null,null,null,null,null,null,null,null,null,17,"-","-",164,163,"-",163,null,null,1,1,1,1,1,1,2,1,1,1,1,1,1,1,0,1,1,1,1,null,2,null,null,103,"","","","","","","","","","","","","","","","-","-",13,null,103,null,null,null,null,null,null,null,null,null,null,null,null,null,null,null,null,null,null,null,null,null,null,null,null,null,null,null,null,null,null,null,null,null,null,null,null,null,null,null,null,null,null,null,null,null,null,null,null,null,null,null,null,null,null,null,null,null,null,null,null,null,null,161,null,161,"(164)"]
["164 (165)","Per-Åke Södergren","Cementa IF",100,null,1,50,null,null,null,null,null,null,null,100,null,null,null,null,null,null,null,null,null,null,null,null,17,"-","-",165,164,"-",164,null,null,1,1,1,1,1,1,2,1,1,1,1,1,1,1,0,1,1,1,1,null,2,null,null,100,"","","","","","","","","","","","","","","","-","-",13,null,100,null,null,null,null,null,null,null,null,null,null,null,null,null,null,null,null,null,null,null,null,null,null,null,null,null,null,null,null,null,null,null,null,null,null,null,null,null,null,null,null,null,null,null,null,null,null,null,null,null,null,null,null,null,null,null,null,null,null,null,null,null,null,162,null,{"$f":"IF(BE168>1,AF168,\"\")","v":164},"(165)"]
["165 (166)","Klas-Åke Lindström","Hsk Tingzås",94,null,1,47,null,null,null,null,null,null,null,94,null,null,null,null,null,null,null,null,null,null,null,null,17,"-","-",166,165,"-",165,null,null,1,1,1,1,1,1,2,1,1,1,1,1,1,1,0,1,1,1,1,null,2,null,null,94,"","","","","","","","","","","","","","","","-","-",13,null,94,null,null,null,null,null,null,null,null,null,null,null,null,null,null,null,null,null,null,null,null,null,null,null,null,null,null,null,null,null,null,null,null,null,null,null,null,null,null,null,null,null,null,null,null,null,null,null,null,null,null,null,null,null,null,null,null,null,null,null,null,null,null,163,null,{"$f":"IF(BE169>1,AF169,\"\")","v":165},"(166)"]
["165 (166)","John Norrby","Team Vitviken",94,null,1,47,null,null,null,null,null,null,null,94,null,null,null,null,null,null,null,null,null,null,null,null,17,"-","-",166,165,"-",166,null,null,1,1,1,1,1,1,2,1,1,1,1,1,1,1,0,1,1,1,1,null,2,null,null,94,"","","","","","","","","","","","","","","","-","-",13,null,94,null,null,null,null,null,null,null,null,null,null,null,null,null,null,null,null,null,null,null,null,null,null,null,null,null,null,null,null,null,null,null,null,null,null,null,null,null,null,null,null,null,null,null,null,null,null,null,null,null,null,null,null,null,null,null,null,null,null,null,null,null,null,164,null,{"$f":"IF(BE170>1,AF170,\"\")","v":165},"(166)"]
["167 (168)","Gunnel Karlsson","Hsk Tingzås",92,null,1,46,null,92,null,null,null,null,null,null,null,null,null,null,null,null,null,null,null,null,null,null,17,"-","-",168,167,"-",167,null,null,2,2,1,1,1,1,1,0,1,1,1,1,1,1,0,1,1,1,1,null,2,null,null,92,"","","","","","","","","","","","","","","","-","-",13,null,92,null,null,null,null,null,null,null,null,null,null,null,null,null,null,null,null,null,null,null,null,null,null,null,null,null,null,null,null,null,null,null,null,null,null,null,null,null,null,null,null,null,null,null,null,null,null,null,null,null,null,null,null,null,null,null,null,null,null,null,null,null,null,165,null,{"$f":"IF(BE171>1,AF171,\"\")","v":167},"(168)"]
["167 (168)","Anne-Lie Laholm","Laholm",92,null,1,46,null,null,null,null,null,null,null,92,null,null,null,null,null,null,null,null,null,null,null,null,17,"-","-",168,167,"-",168,null,null,1,1,1,1,1,1,2,1,1,1,1,1,1,1,0,1,1,1,1,null,2,null,null,92,"","","","","","","","","","","","","","","","-","-",13,null,92,null,null,null,null,null,null,null,null,null,null,null,null,null,null,null,null,null,null,null,null,null,null,null,null,null,null,null,null,null,null,null,null,null,null,null,null,null,null,null,null,null,null,null,null,null,null,null,null,null,null,null,null,null,null,null,null,null,null,null,null,null,null,195,null,{"$f":"IF(BE172>1,AF172,\"\")","v":167},"(168)"]
["169 (170)","Helen Andersson","Carlskrona",90,null,1,45,null,null,null,null,null,null,null,null,null,null,90,null,null,null,null,null,null,null,null,null,17,"-","-",170,169,"-",169,null,null,1,1,1,1,1,1,1,0,1,2,2,1,1,1,0,1,1,1,1,null,2,null,null,90,"","","","","","","","","","","","","","","","-","-",13,null,90,null,null,null,null,null,null,null,null,null,null,null,null,null,null,null,null,null,null,null,null,null,null,null,null,null,null,null,null,null,null,null,null,null,null,null,null,null,null,null,null,null,null,null,null,null,null,null,null,null,null,null,null,null,null,null,null,null,null,null,null,null,null,134,null,{"$f":"IF(BE173>=1,AF173,\"\")","v":169},"(170)"]
["170 (171)","Judith Karlsson","Växjö Hsk",88,null,1,44,null,null,null,null,null,88,null,null,null,null,null,null,null,null,null,null,null,null,null,null,17,"-","-",171,170,"-",170,null,null,1,1,1,1,2,2,1,0,1,1,1,1,1,1,0,1,1,1,1,null,2,null,null,88,"","","","","","","","","","","","","","","","-","-",13,null,88,null,null,null,null,null,null,null,null,null,null,null,null,null,null,null,null,null,null,null,null,null,null,null,null,null,null,null,null,null,null,null,null,null,null,null,null,null,null,null,null,null,null,null,null,null,null,null,null,null,null,null,null,null,null,null,null,null,null,null,null,null,null,166,null,{"$f":"IF(BE174>1,AF174,\"\")","v":170},"(171)"]
["171 (172)","Göran Brincner","Värends Hsk",78,null,1,39,null,null,null,null,null,null,null,78,null,null,null,null,null,null,null,null,null,null,null,null,17,"-","-",172,171,"-",171,null,null,1,1,1,1,1,1,2,1,1,1,1,1,1,1,0,1,1,1,1,null,2,null,null,78,"","","","","","","","","","","","","","","","-","-",13,null,78,null,null,null,null,null,null,null,null,null,null,null,null,null,null,null,null,null,null,null,null,null,null,null,null,null,null,null,null,null,null,null,null,null,null,null,null,null,null,null,null,null,null,null,null,null,null,null,null,null,null,null,null,null,null,null,null,null,null,null,null,null,null,168,null,168,"(172)"]
["172 (173)","Rebecka Hulten","Holmsjö Youngster",74,null,1,37,null,null,null,null,null,null,null,74,null,null,null,null,null,null,null,null,null,null,null,null,17,"-","-",173,172,"-",172,null,null,1,1,1,1,1,1,2,1,1,1,1,1,1,1,0,1,1,1,1,null,2,null,null,74,null,null,null,null,null,null,null,null,null,null,null,null,null,null,"","-","-",13,null,74,null,null,null,null,null,null,null,null,null,null,null,null,null,null,null,null,null,null,null,null,null,null,null,null,null,null,null,null,null,null,null,null,null,null,null,null,null,null,null,null,null,null,null,null,null,null,null,null,null,null,null,null,null,null,null,null,null,null,null,null,null,null,215,null,{"$f":"IF(BE176>1,AF176,\"\")","v":172},"(173)"]
["173 (174)","Lovisa Marlowe","Team Vitviken",72,null,1,36,null,null,null,null,null,null,null,72,null,null,null,null,null,null,null,null,null,null,null,null,17,"-","-",174,173,"-",173,null,null,1,1,1,1,1,1,2,1,1,1,1,1,1,1,0,1,1,1,1,null,2,null,null,72,{"$f":"IF($F177>1,LARGE($I177:$AA177,2),\"\")","v":""},{"$f":"IF($F177>2,LARGE($I177:$AA177,3),\"\")","v":""},{"$f":"IF($F177>3,LARGE($I177:$AA177,4),\"\")","v":""},{"$f":"IF($F177>4,LARGE($I177:$AA177,5),\"\")","v":""},{"$f":"IF($F177>5,LARGE($I177:$AA177,6),\"\")","v":""},{"$f":"IF($F177>6,LARGE($I177:$AA177,7),\"\")","v":""},{"$f":"IF($F177>7,LARGE($I177:$AA177,8),\"\")","v":""},{"$f":"IF($F177>8,LARGE($I177:$AA177,9),\"\")","v":""},{"$f":"IF($F177>9,LARGE($I177:$AA177,10),\"\")","v":""},{"$f":"IF($F177>10,LARGE($I177:$AA177,11),\"\")","v":""},{"$f":"IF($F177>11,LARGE($I177:$AA177,12),\"\")","v":""},{"$f":"IF($F177>12,LARGE($I177:$AA177,13),\"\")","v":""},{"$f":"IF($F177>13,LARGE($I177:$AA177,14),\"\")","v":""},{"$f":"IF($F177>14,LARGE($I177:$AA177,15),\"\")","v":""},"","-","-",13,null,72,null,null,null,null,null,null,null,null,null,null,null,null,null,null,null,null,null,null,null,null,null,null,null,null,null,null,null,null,null,null,null,null,null,null,null,null,null,null,null,null,null,null,null,null,null,null,null,null,null,null,null,null,null,null,null,null,null,null,null,null,null,null,188,null,188,"(174)"]
["174 (175)","Jörgen Laholm","Laholm",71,null,1,35.5,null,null,null,null,null,null,null,71,null,null,null,null,null,null,null,null,null,null,null,null,17,"-","-",175,174,"-",174,null,null,1,1,1,1,1,1,2,1,1,1,1,1,1,1,0,1,1,1,1,null,2,null,null,71,"","","","","","","","","","","","","","","","-","-",13,null,71,null,null,null,null,null,null,null,null,null,null,null,null,null,null,null,null,null,null,null,null,null,null,null,null,null,null,null,null,null,null,null,null,null,null,null,null,null,null,null,null,null,null,null,null,null,null,null,null,null,null,null,null,null,null,null,null,null,null,null,null,null,null,170,null,{"$f":"IF(BE178>1,AF178,\"\")","v":174},"(175)"]
["175 (176)","Bert-Åke Sandelius","Boge Sels",51,null,1,25.5,null,null,null,null,null,null,null,51,null,null,null,null,null,null,null,null,null,null,null,null,17,"-","-",176,175,"-",175,null,null,1,1,1,1,1,1,2,1,1,1,1,1,1,1,0,1,1,1,1,null,2,null,null,51,"","","","","","","","","","","","","","","","-","-",13,null,51,null,null,null,null,null,null,null,null,null,null,null,null,null,null,null,null,null,null,null,null,null,null,null,null,null,null,null,null,null,null,null,null,null,null,null,null,null,null,null,null,null,null,null,null,null,null,null,null,null,null,null,null,null,null,null,null,null,null,null,null,null,null,171,null,175,"(176)"]
["176 (177)","Johanna Olausson","Holmsjö Youngster",47,null,1,23.5,null,null,null,null,null,null,null,47,null,null,null,null,null,null,null,null,null,null,null,null,17,"-","-",177,176,"-",176,null,null,1,1,1,1,1,1,2,1,1,1,1,1,1,1,0,1,1,1,1,null,2,null,null,47,"","","","","","","","","","","","","","","","-","-",13,null,47,null,null,null,null,null,null,null,null,null,null,null,null,null,null,null,null,null,null,null,null,null,null,null,null,null,null,null,null,null,null,null,null,null,null,null,null,null,null,null,null,null,null,null,null,null,null,null,null,null,null,null,null,null,null,null,null,null,null,null,null,null,null,172,null,176,"(177)"]
["176 (177)","Jan Näslund","Team Vitviken",47,null,1,23.5,null,null,null,null,null,null,null,47,null,null,null,null,null,null,null,null,null,null,null,null,17,"-","-",177,176,"-",177,null,null,1,1,1,1,1,1,2,1,1,1,1,1,1,1,0,1,1,1,1,null,2,null,null,47,"","","","","","","","","","","","","","","","-","-",13,null,47,null,null,null,null,null,null,null,null,null,null,null,null,null,null,null,null,null,null,null,null,null,null,null,null,null,null,null,null,null,null,null,null,null,null,null,null,null,null,null,null,null,null,null,null,null,null,null,null,null,null,null,null,null,null,null,null,null,null,null,null,null,null,173,null,176,"(177)"]
["178 (179)","Sofie Laholm","Laholm",45,null,1,22.5,null,null,null,null,null,null,null,45,null,null,null,null,null,null,null,null,null,null,null,null,17,"-","-",179,178,"-",178,null,null,1,1,1,1,1,1,2,1,1,1,1,1,1,1,0,1,1,1,1,null,2,null,null,45,"","","","","","","","","","","","","","","","-","-",13,null,45,null,null,null,null,null,null,null,null,null,null,null,null,null,null,null,null,null,null,null,null,null,null,null,null,null,null,null,null,null,null,null,null,null,null,null,null,null,null,null,null,null,null,null,null,null,null,null,null,null,null,null,null,null,null,null,null,null,null,null,null,null,null,174,null,178,"(179)"]
["179 (180)","Ewa Sandelius","Boge Sels",28,null,1,14,null,null,null,null,null,null,null,28,null,null,null,null,null,null,null,null,null,null,null,null,17,"-","-",180,179,"-",179,null,null,1,1,1,1,1,1,2,1,1,1,1,1,1,1,0,1,1,1,1,null,2,null,null,28,"","","","","","","","","","","","","","","","-","-",13,null,28,null,null,null,null,null,null,null,null,null,null,null,null,null,null,null,null,null,null,null,null,null,null,null,null,null,null,null,null,null,null,null,null,null,null,null,null,null,null,null,null,null,null,null,null,null,null,null,null,null,null,null,null,null,null,null,null,null,null,null,null,null,null,182,null,179,"(180)"]
["180 (181)","Gunnar Norrby","Team Vitviken",23,null,1,11.5,null,null,null,null,null,null,null,23,null,null,null,null,null,null,null,null,null,null,null,null,17,"-","-",181,180,"-",180,null,null,1,1,1,1,1,1,2,1,1,1,1,1,1,1,0,1,1,1,1,null,2,null,null,23,"","","","","","","","","","","","","","","","-","-",13,null,23,null,null,null,null,null,null,null,null,null,null,null,null,null,null,null,null,null,null,null,null,null,null,null,null,null,null,null,null,null,null,null,null,null,null,null,null,null,null,null,null,null,null,null,null,null,null,null,null,null,null,null,null,null,null,null,null,null,null,null,null,null,null,176,null,180,"(181)"]
["181 (134)",null,null,0,null,0,{"$error":"#DIV/0!"},null,null,null,null,null,null,null,null,null,null,null,null,null,null,null,null,null,null,null,null,17,"-","-",134,181,"-",181,null,null,1,1,1,1,1,1,1,0,1,1,1,1,1,1,0,1,1,1,1,null,2,null,null,"","","","","","","","","","","","","","","","","-","-",14,null,0,null,null,null,null,null,null,null,null,null,null,null,null,null,null,null,null,null,null,null,null,null,null,null,null,null,null,null,null,null,null,null,null,null,null,null,null,null,null,null,null,null,null,null,null,null,null,null,null,null,null,null,null,null,null,null,null,null,null,null,null,null,null,202,null,181,"(134)"]
["181 (182)",null,null,0,null,0,{"$error":"#DIV/0!"},null,null,null,null,null,null,null,null,null,null,null,null,null,null,null,null,null,null,null,null,17,"-","-",182,181,"-",182,null,null,1,1,1,1,1,1,1,0,1,1,1,1,1,1,0,1,1,1,1,null,2,null,null,"","","","","","","","","","","","","","","","","-","-",14,null,0,null,null,null,null,null,null,null,null,null,null,null,null,null,null,null,null,null,null,null,null,null,null,null,null,null,null,null,null,null,null,null,null,null,null,null,null,null,null,null,null,null,null,null,null,null,null,null,null,null,null,null,null,null,null,null,null,null,null,null,null,null,null,177,null,177,"(182)"]
["181 (182)",null,null,0,null,0,{"$error":"#DIV/0!"},null,null,null,null,null,null,null,null,null,null,null,null,null,null,null,null,null,null,null,null,17,"-","-",182,181,"-",183,null,null,1,1,1,1,1,1,1,0,1,1,1,1,1,1,0,1,1,1,1,null,2,null,null,"","","","","","","","","","","","","","","","","-","-",14,null,0,null,null,null,null,null,null,null,null,null,null,null,null,null,null,null,null,null,null,null,null,null,null,null,null,null,null,null,null,null,null,null,null,null,null,null,null,null,null,null,null,null,null,null,null,null,null,null,null,null,null,null,null,null,null,null,null,null,null,null,null,null,null,178,null,{"$f":"IF(BE187>1,AF187,\"\")","v":181},"(182)"]
["181 (182)",null,null,0,null,0,{"$error":"#DIV/0!"},null,null,null,null,null,null,null,null,null,null,null,null,null,null,null,null,null,null,null,null,17,"-","-",182,181,"-",184,null,null,1,1,1,1,1,1,1,0,1,1,1,1,1,1,0,1,1,1,1,null,2,null,null,"","","","","","","","","","","","","","","","","-","-",14,null,0,null,null,null,null,null,null,null,null,null,null,null,null,null,null,null,null,null,null,null,null,null,null,null,null,null,null,null,null,null,null,null,null,null,null,null,null,null,null,null,null,null,null,null,null,null,null,null,null,null,null,null,null,null,null,null,null,null,null,null,null,null,null,179,null,179,"(182)"]
[{"$f":"IF(BE189>1,AF189&\" (\"&AE189&\")\",AF189&\" (\"&AG189&\")\")","v":"181 (182)"},null,null,0,null,0,{"$error":"#DIV/0!"},null,null,null,null,null,null,null,null,null,null,null,null,null,null,null,null,null,null,null,null,17,"-","-",182,181,"-",185,null,null,1,1,1,1,1,1,1,0,1,1,1,1,1,1,0,1,1,1,1,null,2,null,null,"","","","","","","","","","","","","","","","","-","-",14,null,0,null,null,null,null,null,null,null,null,null,null,null,null,null,null,null,null,null,null,null,null,null,null,null,null,null,null,null,null,null,null,null,null,null,null,null,null,null,null,null,null,null,null,null,null,null,null,null,null,null,null,null,null,null,null,null,null,null,null,null,null,null,null,180,null,{"$f":"IF(BE189>1,AF189,\"\")","v":181},"(182)"]
["181 (182)",null,null,0,null,0,{"$error":"#DIV/0!"},null,null,null,null,null,null,null,null,null,null,null,null,null,null,null,null,null,null,null,null,17,"-","-",182,181,"-",186,null,null,1,1,1,1,1,1,1,0,1,1,1,1,1,1,0,1,1,1,1,null,2,null,null,"","","","","","","","","","","","","","","","","-","-",14,null,0,null,null,null,null,null,null,null,null,null,null,null,null,null,null,null,null,null,null,null,null,null,null,null,null,null,null,null,null,null,null,null,null,null,null,null,null,null,null,null,null,null,null,null,null,null,null,null,null,null,null,null,null,null,null,null,null,null,null,null,null,null,null,181,null,{"$f":"IF(BE190>1,AF190,\"\")","v":181},"(182)"]
["181 (182)",null,null,0,null,0,{"$error":"#DIV/0!"},null,null,null,null,null,null,null,null,null,null,null,null,null,null,null,null,null,null,null,null,17,"-","-",182,181,"-",187,null,null,1,1,1,1,1,1,1,0,1,1,1,1,1,1,0,1,1,1,1,null,2,null,null,"","","","","","","","","","","","","","","","","-","-",14,null,0,null,null,null,null,null,null,null,null,null,null,null,null,null,null,null,null,null,null,null,null,null,null,null,null,null,null,null,null,null,null,null,null,null,null,null,null,null,null,null,null,null,null,null,null,null,null,null,null,null,null,null,null,null,null,null,null,null,null,null,null,null,null,155,null,{"$f":"IF(BE191>=1,AF191,\"\")","v":181},"(182)"]
["181 (182)",null,null,0,null,0,{"$error":"#DIV/0!"},null,null,null,null,null,null,null,null,null,null,null,null,null,null,null,null,null,null,null,null,17,"-","-",182,181,"-",188,null,null,1,1,1,1,1,1,1,0,1,1,1,1,1,1,0,1,1,1,1,null,2,null,null,"","","","","","","","","","","","","","","","","-","-",14,null,0,null,null,null,null,null,null,null,null,null,null,null,null,null,null,null,null,null,null,null,null,null,null,null,null,null,null,null,null,null,null,null,null,null,null,null,null,null,null,null,null,null,null,null,null,null,null,null,null,null,null,null,null,null,null,null,null,null,null,null,null,null,null,183,null,{"$f":"IF(BE192>1,AF192,\"\")","v":181},"(182)"]
["181 (182)",null,null,0,null,0,{"$error":"#DIV/0!"},null,null,null,null,null,null,null,null,null,null,null,null,null,null,null,null,null,null,null,null,17,"-","-",182,181,"-",189,null,null,1,1,1,1,1,1,1,0,1,1,1,1,1,1,0,1,1,1,1,null,2,null,null,"","","","","","","","","","","","","","","","","-","-",14,null,0,null,null,null,null,null,null,null,null,null,null,null,null,null,null,null,null,null,null,null,null,null,null,null,null,null,null,null,null,null,null,null,null,null,null,null,null,null,null,null,null,null,null,null,null,null,null,null,null,null,null,null,null,null,null,null,null,null,null,null,null,null,null,185,null,181,"(182)"]
["181 (182)",null,null,0,null,0,{"$error":"#DIV/0!"},null,null,null,null,null,null,null,null,null,null,null,null,null,null,null,null,null,null,null,null,17,"-","-",182,181,"-",190,null,null,1,1,1,1,1,1,1,0,1,1,1,1,1,1,0,1,1,1,1,null,2,null,null,"","","","","","","","","","","","","","","","","-","-",14,null,0,null,null,null,null,null,null,null,null,null,null,null,null,null,null,null,null,null,null,null,null,null,null,null,null,null,null,null,null,null,null,null,null,null,null,null,null,null,null,null,null,null,null,null,null,null,null,null,null,null,null,null,null,null,null,null,null,null,null,null,null,null,null,186,null,181,"(182)"]
["181 (182)",null,null,0,null,0,{"$error":"#DIV/0!"},null,null,null,null,null,null,null,null,null,null,null,null,null,null,null,null,null,null,null,null,17,"-","-",182,181,"-",191,null,null,1,1,1,1,1,1,1,0,1,1,1,1,1,1,0,1,1,1,1,null,2,null,null,"","","","","","","","","","","","","","","","","-","-",14,null,0,null,null,null,null,null,null,null,null,null,null,null,null,null,null,null,null,null,null,null,null,null,null,null,null,null,null,null,null,null,null,null,null,null,null,null,null,null,null,null,null,null,null,null,null,null,null,null,null,null,null,null,null,null,null,null,null,null,null,null,null,null,null,187,null,181,"(182)"]
["181 (182)",null,null,0,null,0,{"$error":"#DIV/0!"},null,null,null,null,null,null,null,null,null,null,null,null,null,null,null,null,null,null,null,null,17,"-","-",182,181,"-",192,null,null,1,1,1,1,1,1,1,0,1,1,1,1,1,1,0,1,1,1,1,null,2,null,null,"","","","","","","","","","","","","","","","","-","-",14,null,0,null,null,null,null,null,null,null,null,null,null,null,null,null,null,null,null,null,null,null,null,null,null,null,null,null,null,null,null,null,null,null,null,null,null,null,null,null,null,null,null,null,null,null,null,null,null,null,null,null,null,null,null,null,null,null,null,null,null,null,null,null,null,205,null,181,"(182)"]
["181 (182)",null,null,{"$f":"SUM(BH197:BT197)","v":0},null,{"$f":"COUNT(I197:AA197)","v":0},{"$f":"SUM((CB197)/(F197*2))","v":{"$error":"#DIV/0!"}},null,null,null,null,null,null,null,null,null,null,null,null,null,null,null,null,null,null,null,null,{"$f":"SUM($I$3:$AA$3)","v":17},{"$f":"BX197","v":"-"},{"$f":"BY197","v":"-"},182,181,{"$f":"IF(F197>1,ROW(193:193),\"-\")","v":"-"},193,null,null,1,1,1,1,1,1,1,0,1,1,1,1,1,1,0,1,1,1,1,null,2,null,null,"","","","","","","","","","","","","","","","","-","-",{"$f":"SUM(AB197-F197)-3","v":14},null,{"$f":"SUM(BH197:BW197)","v":0},null,null,null,null,null,null,null,null,null,null,null,null,null,null,null,null,null,null,null,null,null,null,null,null,null,null,null,null,null,null,null,null,null,null,null,null,null,null,null,null,null,null,null,null,null,null,null,null,null,null,null,null,null,null,null,null,null,null,null,null,null,null,216,null,181,{"$f":"IF(BE197>1,\"(\"&AE197&\")\",\"(\"&AG197&\")\")","v":"(182)"}]
["181 (182)",null,null,0,null,0,{"$error":"#DIV/0!"},null,null,null,null,null,null,null,null,null,null,null,null,null,null,null,null,null,null,null,null,17,"-","-",182,181,"-",194,null,null,1,1,1,1,1,1,1,0,1,1,1,1,1,1,0,1,1,1,1,null,2,null,null,"",{"$f":"IF($F198>1,LARGE($I198:$AA198,2),\"\")","v":""},{"$f":"IF($F198>2,LARGE($I198:$AA198,3),\"\")","v":""},{"$f":"IF($F198>3,LARGE($I198:$AA198,4),\"\")","v":""},{"$f":"IF($F198>4,LARGE($I198:$AA198,5),\"\")","v":""},{"$f":"IF($F198>5,LARGE($I198:$AA198,6),\"\")","v":""},{"$f":"IF($F198>6,LARGE($I198:$AA198,7),\"\")","v":""},{"$f":"IF($F198>7,LARGE($I198:$AA198,8),\"\")","v":""},{"$f":"IF($F198>8,LARGE($I198:$AA198,9),\"\")","v":""},{"$f":"IF($F198>9,LARGE($I198:$AA198,10),\"\")","v":""},{"$f":"IF($F198>10,LARGE($I198:$AA198,11),\"\")","v":""},{"$f":"IF($F198>11,LARGE($I198:$AA198,12),\"\")","v":""},{"$f":"IF($F198>12,LARGE($I198:$AA198,13),\"\")","v":""},{"$f":"IF($F198>13,LARGE($I198:$AA198,14),\"\")","v":""},{"$f":"IF($F198>14,LARGE($I198:$AA198,15),\"\")","v":""},{"$f":"IF($F198>15,LARGE($I198:$AA198,16),\"\")","v":""},{"$f":"IF($F198>13,LARGE($I198:$AA198,14),\"-\")","v":"-"},{"$f":"IF($F198>14,LARGE($I198:$AA198,15),\"-\")","v":"-"},14,null,0,null,null,null,null,null,null,null,null,null,null,null,null,null,null,null,null,null,null,null,null,null,null,null,null,null,null,null,null,null,null,null,null,null,null,null,null,null,null,null,null,null,null,null,null,null,null,null,null,null,null,null,null,null,null,null,null,null,null,null,null,null,null,189,null,181,"(182)"]
["181 (182)",null,null,0,null,0,{"$error":"#DIV/0!"},null,null,null,null,null,null,null,null,null,null,null,null,null,null,null,null,null,null,null,null,17,"-","-",182,181,"-",195,null,null,1,1,1,1,1,1,1,0,1,1,1,1,1,1,0,1,1,1,1,null,2,null,null,"","","","","","","","","","","","","","","","","-","-",14,null,0,null,null,null,null,null,null,null,null,null,null,null,null,null,null,null,null,null,null,null,null,null,null,null,null,null,null,null,null,null,null,null,null,null,null,null,null,null,null,null,null,null,null,null,null,null,null,null,null,null,null,null,null,null,null,null,null,null,null,null,null,null,null,190,null,181,"(182)"]
["181 (182)",null,null,0,null,0,{"$error":"#DIV/0!"},null,null,null,null,null,null,null,null,null,null,null,null,null,null,null,null,null,null,null,null,17,"-","-",182,181,"-",196,null,null,1,1,1,1,1,1,1,0,1,1,1,1,1,1,0,1,1,1,1,null,2,null,null,"","","","","","","","","","","","","","","","","-","-",14,null,0,null,null,null,null,null,null,null,null,null,null,null,null,null,null,null,null,null,null,null,null,null,null,null,null,null,null,null,null,null,null,null,null,null,null,null,null,null,null,null,null,null,null,null,null,null,null,null,null,null,null,null,null,null,null,null,null,null,null,null,null,null,null,191,null,181,"(182)"]
["181 (182)",null,null,0,null,0,{"$error":"#DIV/0!"},null,null,null,null,null,null,null,null,null,null,null,null,null,null,null,null,null,null,null,null,17,"-","-",182,181,"-",197,null,null,1,1,1,1,1,1,1,0,1,1,1,1,1,1,0,1,1,1,1,null,2,null,null,"","","","","","","","","","","","","","","","","-","-",14,null,0,null,null,null,null,null,null,null,null,null,null,null,null,null,null,null,null,null,null,null,null,null,null,null,null,null,null,null,null,null,null,null,null,null,null,null,null,null,null,null,null,null,null,null,null,null,null,null,null,null,null,null,null,null,null,null,null,null,null,null,null,null,null,192,null,181,"(182)"]
["181 (182)",null,null,0,null,0,{"$error":"#DIV/0!"},null,null,null,null,null,null,null,null,null,null,null,null,null,null,null,null,null,null,null,null,17,"-","-",182,181,"-",198,null,null,1,1,1,1,1,1,1,0,1,1,1,1,1,1,0,1,1,1,1,null,2,null,null,"","","","","","","","","","","","","","","","","-","-",14,null,0,null,null,null,null,null,null,null,null,null,null,null,null,null,null,null,null,null,null,null,null,null,null,null,null,null,null,null,null,null,null,null,null,null,null,null,null,null,null,null,null,null,null,null,null,null,null,null,null,null,null,null,null,null,null,null,null,null,null,null,null,null,null,193,null,181,"(182)"]
["181 (182)",null,null,0,null,0,{"$error":"#DIV/0!"},null,null,null,null,null,null,null,null,null,null,null,null,null,null,null,null,null,null,null,null,17,"-","-",182,181,"-",199,null,null,1,1,1,1,1,1,1,0,1,1,1,1,1,1,0,1,1,1,1,null,2,null,null,"","","","","","","","","","","","","","","","","-","-",14,null,0,null,null,null,null,null,null,null,null,null,null,null,null,null,null,null,null,null,null,null,null,null,null,null,null,null,null,null,null,null,null,null,null,null,null,null,null,null,null,null,null,null,null,null,null,null,null,null,null,null,null,null,null,null,null,null,null,null,null,null,null,null,null,169,null,181,"(182)"]
["181 (182)",null,null,0,null,0,{"$error":"#DIV/0!"},null,null,null,null,null,null,null,null,null,null,null,null,null,null,null,null,null,null,null,null,17,"-","-",182,{"$f":"IF(D204<D203,AH204,AF203)","v":181},"-",200,null,null,{"$f":"COUNT($I$3,I204,H204)","v":1},{"$f":"COUNT($J$3,J204,I204)","v":1},{"$f":"COUNT($K$3,K204,J204)","v":1},{"$f":"COUNT($L$3,L204,K204)","v":1},{"$f":"COUNT($M$3,M204,L204)","v":1},{"$f":"COUNT($N$3,N204,M204)","v":1},{"$f":"COUNT($O$3,O204,N204)","v":1},{"$f":"COUNT($P$3,P204,O204)","v":0},{"$f":"COUNT($Q$3,Q204,P204)","v":1},{"$f":"COUNT($R$3,R204,Q204)","v":1},{"$f":"COUNT($S$3,S204,R204)","v":1},{"$f":"COUNT($T$3,T204,S204)","v":1},{"$f":"COUNT($U$3,U204,T204)","v":1},{"$f":"COUNT($V$3,V204,U204)","v":1},{"$f":"COUNT($W$3,W204,V204)","v":0},{"$f":"COUNT($X$3,X204,W204)","v":1},{"$f":"COUNT($Y$3,Y204,X204)","v":1},{"$f":"COUNT($Z$3,Z204,Y204)","v":1},{"$f":"COUNT($AA$3,AA204,Z204)","v":1},null,{"$f":"IF(H204=\"x\",1,2)","v":2},null,null,{"$f":"IF($F204>0,LARGE($I204:$AA204,1),\"\")","v":""},{"$f":"IF($F204>1,LARGE($I204:$AA204,2),\"\")","v":""},{"$f":"IF($F204>2,LARGE($I204:$AA204,3),\"\")","v":""},{"$f":"IF($F204>3,LARGE($I204:$AA204,4),\"\")","v":""},{"$f":"IF($F204>4,LARGE($I204:$AA204,5),\"\")","v":""},{"$f":"IF($F204>5,LARGE($I204:$AA204,6),\"\")","v":""},{"$f":"IF($F204>6,LARGE($I204:$AA204,7),\"\")","v":""},{"$f":"IF($F204>7,LARGE($I204:$AA204,8),\"\")","v":""},{"$f":"IF($F204>8,LARGE($I204:$AA204,9),\"\")","v":""},{"$f":"IF($F204>9,LARGE($I204:$AA204,10),\"\")","v":""},{"$f":"IF($F204>10,LARGE($I204:$AA204,11),\"\")","v":""},{"$f":"IF($F204>11,LARGE($I204:$AA204,12),\"\")","v":""},{"$f":"IF($F204>12,LARGE($I204:$AA204,13),\"\")","v":""},{"$f":"IF($F204>13,LARGE($I204:$AA204,14),\"\")","v":""},{"$f":"IF($F204>14,LARGE($I204:$AA204,15),\"\")","v":""},"","-","-",14,null,0,null,null,null,null,null,null,null,null,null,null,null,null,null,null,null,null,null,null,null,null,null,null,null,null,null,null,null,null,null,null,null,null,null,null,null,null,null,null,null,null,null,null,null,null,null,null,null,null,null,null,null,null,null,null,null,null,null,null,null,null,null,null,194,null,181,"(182)"]
["181 (182)",null,null,0,null,0,{"$error":"#DIV/0!"},null,null,null,null,null,null,null,null,null,null,null,null,null,null,null,null,null,null,null,null,17,"-","-",182,181,"-",201,null,null,1,1,1,1,1,1,1,0,1,1,1,1,1,1,0,1,1,1,1,null,2,null,null,"","","","","","","","","","","","","","","","","-","-",14,null,0,null,null,null,null,null,null,null,null,null,null,null,null,null,null,null,null,null,null,null,null,null,null,null,null,null,null,null,null,null,null,null,null,null,null,null,null,null,null,null,null,null,null,null,null,null,null,null,null,null,null,null,null,null,null,null,null,null,null,null,null,null,null,196,null,181,"(182)"]
["181 (182)",null,null,0,null,0,{"$error":"#DIV/0!"},null,null,null,null,null,null,null,null,null,null,null,null,null,null,null,null,null,null,null,null,17,"-","-",182,181,"-",202,null,null,1,1,1,1,1,1,1,0,1,1,1,1,1,1,0,1,1,1,1,null,2,null,null,"","","","","","","","","","","","","","","","","-","-",14,null,0,null,null,null,null,null,null,null,null,null,null,null,null,null,null,null,null,null,null,null,null,null,null,null,null,null,null,null,null,null,null,null,null,null,null,null,null,null,null,null,null,null,null,null,null,null,null,null,null,null,null,null,null,null,null,null,null,null,null,null,null,null,null,197,null,181,"(182)"]
["181 (182)",null,null,0,null,0,{"$error":"#DIV/0!"},null,null,null,null,null,null,null,null,null,null,null,null,null,null,null,null,null,null,null,null,17,"-","-",182,181,"-",203,null,null,1,1,1,1,1,1,1,0,1,1,1,1,1,1,0,1,1,1,1,null,2,null,null,"","","","","","","","","","","","","","","","","-","-",14,null,0,null,null,null,null,null,null,null,null,null,null,null,null,null,null,null,null,null,null,null,null,null,null,null,null,null,null,null,null,null,null,null,null,null,null,null,null,null,null,null,null,null,null,null,null,null,null,null,null,null,null,null,null,null,null,null,null,null,null,null,null,null,null,207,null,181,"(182)"]
["181 (182)",null,null,0,null,0,{"$error":"#DIV/0!"},null,null,null,null,null,null,null,null,null,null,null,null,null,null,null,null,null,null,null,null,17,"-","-",182,181,"-",204,null,null,1,1,1,1,1,1,1,0,1,1,1,1,1,1,0,1,1,1,1,null,2,null,null,"","","","","","","","","","","","","","","","","-","-",14,null,0,null,null,null,null,null,null,null,null,null,null,null,null,null,null,null,null,null,null,null,null,null,null,null,null,null,null,null,null,null,null,null,null,null,null,null,null,null,null,null,null,null,null,null,null,null,null,null,null,null,null,null,null,null,null,null,null,null,null,null,null,null,null,198,null,181,"(182)"]
["181 (182)",null,null,0,null,0,{"$error":"#DIV/0!"},null,null,null,null,null,null,null,null,null,null,null,null,null,null,null,null,null,null,null,null,17,"-","-",182,181,"-",205,null,null,1,1,1,1,1,1,1,0,1,1,1,1,1,1,0,1,1,1,1,null,2,null,null,"","","","","","","","","","","","","","","","","-","-",14,null,0,null,null,null,null,null,null,null,null,null,null,null,null,null,null,null,null,null,null,null,null,null,null,null,null,null,null,null,null,null,null,null,null,null,null,null,null,null,null,null,null,null,null,null,null,null,null,null,null,null,null,null,null,null,null,null,null,null,null,null,null,null,null,199,null,181,"(182)"]
["181 (182)",null,null,0,null,0,{"$error":"#DIV/0!"},null,null,null,null,null,null,null,null,null,null,null,null,null,null,null,null,null,null,null,null,17,"-","-",182,181,"-",206,null,null,1,1,1,1,1,1,1,0,1,1,1,1,1,1,0,1,1,1,1,null,2,null,null,"","","","","","","","","","","","","","","","","-","-",14,null,0,null,null,null,null,null,null,null,null,null,null,null,null,null,null,null,null,null,null,null,null,null,null,null,null,null,null,null,null,null,null,null,null,null,null,null,null,null,null,null,null,null,null,null,null,null,null,null,null,null,null,null,null,null,null,null,null,null,null,null,null,null,null,200,null,181,"(182)"]
["181 (182)",null,null,0,null,0,{"$error":"#DIV/0!"},null,null,null,null,null,null,null,null,null,null,null,null,null,null,null,null,null,null,null,null,17,"-","-",182,181,"-",207,null,null,1,1,1,1,1,1,1,0,1,1,1,1,1,1,0,1,1,1,1,null,2,null,null,"","","","","","","","","","","","","","","","","-","-",14,null,0,null,null,null,null,null,null,null,null,null,null,null,null,null,null,null,null,null,null,null,null,null,null,null,null,null,null,null,null,null,null,null,null,null,null,null,null,null,null,null,null,null,null,null,null,null,null,null,null,null,null,null,null,null,null,null,null,null,null,null,null,null,null,201,null,181,"(182)"]
["181 (182)",null,null,0,null,0,{"$error":"#DIV/0!"},null,null,null,null,null,null,null,null,null,null,null,null,null,null,null,null,null,null,null,null,17,"-","-",182,181,"-",208,null,null,1,1,1,1,1,1,1,0,1,1,1,1,1,1,0,1,1,1,1,null,2,null,null,"","","","","","","","","","","","","","","","","-","-",14,null,0,null,null,null,null,null,null,null,null,null,null,null,null,null,null,null,null,null,null,null,null,null,null,null,null,null,null,null,null,null,null,null,null,null,null,null,null,null,null,null,null,null,null,null,null,null,null,null,null,null,null,null,null,null,null,null,null,null,null,null,null,null,null,203,null,181,"(182)"]
["181 (182)",null,null,0,null,0,{"$error":"#DIV/0!"},null,null,null,null,null,null,null,null,null,null,null,null,null,null,null,null,null,null,null,null,17,"-","-",182,181,"-",209,null,null,1,1,1,1,1,1,1,0,1,1,1,1,1,1,0,1,1,1,1,null,2,null,null,"","","","","","","","","","","","","","","","","-","-",14,null,0,null,null,null,null,null,null,null,null,null,null,null,null,null,null,null,null,null,null,null,null,null,null,null,null,null,null,null,null,null,null,null,null,null,null,null,null,null,null,null,null,null,null,null,null,null,null,null,null,null,null,null,null,null,null,null,null,null,null,null,null,null,null,204,null,181,"(182)"]
[{"$f":"IF(BE214>1,AF214&\" (\"&AE214&\")\",AF214&\" (\"&AG214&\")\")","v":"181 (182)"},null,null,0,null,0,{"$error":"#DIV/0!"},null,null,null,null,null,null,null,null,null,null,null,null,null,null,null,null,null,null,null,null,17,"-","-",182,{"$f":"IF(D214<D213,AH214,AF213)","v":181},"-",210,null,null,{"$f":"COUNT($I$3,I214,H214)","v":1},{"$f":"COUNT($J$3,J214,I214)","v":1},{"$f":"COUNT($K$3,K214,J214)","v":1},{"$f":"COUNT($L$3,L214,K214)","v":1},{"$f":"COUNT($M$3,M214,L214)","v":1},{"$f":"COUNT($N$3,N214,M214)","v":1},{"$f":"COUNT($O$3,O214,N214)","v":1},{"$f":"COUNT($P$3,P214,O214)","v":0},{"$f":"COUNT($Q$3,Q214,P214)","v":1},{"$f":"COUNT($R$3,R214,Q214)","v":1},{"$f":"COUNT($S$3,S214,R214)","v":1},{"$f":"COUNT($T$3,T214,S214)","v":1},{"$f":"COUNT($U$3,U214,T214)","v":1},{"$f":"COUNT($V$3,V214,U214)","v":1},{"$f":"COUNT($W$3,W214,V214)","v":0},{"$f":"COUNT($X$3,X214,W214)","v":1},{"$f":"COUNT($Y$3,Y214,X214)","v":1},{"$f":"COUNT($Z$3,Z214,Y214)","v":1},{"$f":"COUNT($AA$3,AA214,Z214)","v":1},null,{"$f":"IF(H214=\"x\",1,2)","v":2},null,null,{"$f":"IF($F214>0,LARGE($I214:$AA214,1),\"\")","v":""},{"$f":"IF($F214>1,LARGE($I214:$AA214,2),\"\")","v":""},{"$f":"IF($F214>2,LARGE($I214:$AA214,3),\"\")","v":""},{"$f":"IF($F214>3,LARGE($I214:$AA214,4),\"\")","v":""},{"$f":"IF($F214>4,LARGE($I214:$AA214,5),\"\")","v":""},{"$f":"IF($F214>5,LARGE($I214:$AA214,6),\"\")","v":""},{"$f":"IF($F214>6,LARGE($I214:$AA214,7),\"\")","v":""},{"$f":"IF($F214>7,LARGE($I214:$AA214,8),\"\")","v":""},{"$f":"IF($F214>8,LARGE($I214:$AA214,9),\"\")","v":""},{"$f":"IF($F214>9,LARGE($I214:$AA214,10),\"\")","v":""},{"$f":"IF($F214>10,LARGE($I214:$AA214,11),\"\")","v":""},{"$f":"IF($F214>11,LARGE($I214:$AA214,12),\"\")","v":""},{"$f":"IF($F214>12,LARGE($I214:$AA214,13),\"\")","v":""},{"$f":"IF($F214>13,LARGE($I214:$AA214,14),\"\")","v":""},{"$f":"IF($F214>14,LARGE($I214:$AA214,15),\"\")","v":""},"","-","-",{"$f":"SUM(AB214-F214)-3","v":14},null,{"$f":"SUM(BH214:BW214)","v":0},null,null,null,null,null,null,null,null,null,null,null,null,null,null,null,null,null,null,null,null,null,null,null,null,null,null,null,null,null,null,null,null,null,null,null,null,null,null,null,null,null,null,null,null,null,null,null,null,null,null,null,null,null,null,null,null,null,null,null,null,null,null,208,null,{"$f":"IF(BE214>1,AF214,\"\")","v":181},{"$f":"IF(BE214>1,\"(\"&AE214&\")\",\"(\"&AG214&\")\")","v":"(182)"}]
["181 (182)",null,null,0,null,0,{"$error":"#DIV/0!"},null,null,null,null,null,null,null,null,null,null,null,null,null,null,null,null,null,null,null,null,17,"-","-",182,181,"-",211,null,null,1,1,1,1,1,1,1,0,1,1,1,1,1,1,0,1,1,1,1,null,2,null,null,"","","","","","","","","","","","","","","","","-","-",14,null,0,null,null,null,null,null,null,null,null,null,null,null,null,null,null,null,null,null,null,null,null,null,null,null,null,null,null,null,null,null,null,null,null,null,null,null,null,null,null,null,null,null,null,null,null,null,null,null,null,null,null,null,null,null,null,null,null,null,null,null,null,null,null,209,null,181,"(182)"]
["181 (182)",null,null,0,null,0,{"$error":"#DIV/0!"},null,null,null,null,null,null,null,null,null,null,null,null,null,null,null,null,null,null,null,null,17,"-","-",182,181,"-",212,null,null,1,1,1,1,1,1,1,0,1,1,1,1,1,1,0,1,1,1,1,null,2,null,null,"","","","","","","","","","","","","","","","","-","-",14,null,0,null,null,null,null,null,null,null,null,null,null,null,null,null,null,null,null,null,null,null,null,null,null,null,null,null,null,null,null,null,null,null,null,null,null,null,null,null,null,null,null,null,null,null,null,null,null,null,null,null,null,null,null,null,null,null,null,null,null,null,null,null,null,210,null,181,"(182)"]
["181 (182)",null,null,0,null,0,{"$error":"#DIV/0!"},null,null,null,null,null,null,null,null,null,null,null,null,null,null,null,null,null,null,null,null,17,"-","-",182,181,"-",213,null,null,1,1,1,1,1,1,1,0,1,1,1,1,1,1,0,1,1,1,1,null,2,null,null,"",null,null,null,null,null,null,null,null,null,null,null,null,null,null,"","-","-",14,null,0,null,null,null,null,null,null,null,null,null,null,null,null,null,null,null,null,null,null,null,null,null,null,null,null,null,null,null,null,null,null,null,null,null,null,null,null,null,null,null,null,null,null,null,null,null,null,null,null,null,null,null,null,null,null,null,null,null,null,null,null,null,null,211,null,181,"(182)"]
["181 (182)",null,null,0,null,0,{"$error":"#DIV/0!"},null,null,null,null,null,null,null,null,null,null,null,null,null,null,null,null,null,null,null,null,17,"-","-",182,181,"-",214,null,null,1,1,1,1,1,1,1,0,1,1,1,1,1,1,0,1,1,1,1,null,2,null,null,"",null,null,null,null,null,null,null,null,null,null,null,null,null,null,"","-","-",14,null,0,null,null,null,null,null,null,null,null,null,null,null,null,null,null,null,null,null,null,null,null,null,null,null,null,null,null,null,null,null,null,null,null,null,null,null,null,null,null,null,null,null,null,null,null,null,null,null,null,null,null,null,null,null,null,null,null,null,null,null,null,null,null,212,null,181,"(182)"]
["181 (182)",null,null,0,null,0,{"$error":"#DIV/0!"},null,null,null,null,null,null,null,null,null,null,null,null,null,null,null,null,null,null,null,null,17,"-","-",182,181,"-",215,null,null,1,1,1,1,1,1,1,0,1,1,1,1,1,1,0,1,1,1,1,null,2,null,null,"",null,null,null,null,null,null,null,null,null,null,null,null,null,null,"","-","-",14,null,0,null,null,null,null,null,null,null,null,null,null,null,null,null,null,null,null,null,null,null,null,null,null,null,null,null,null,null,null,null,null,null,null,null,null,null,null,null,null,null,null,null,null,null,null,null,null,null,null,null,null,null,null,null,null,null,null,null,null,null,null,null,null,213,null,181,"(182)"]
["181 (182)",null,null,0,null,0,{"$error":"#DIV/0!"},null,null,null,null,null,null,null,null,null,null,null,null,null,null,null,null,null,null,null,null,17,"-","-",182,181,"-",216,null,null,1,1,1,1,1,1,1,0,1,1,1,1,1,1,0,1,1,1,1,null,2,null,null,"",null,null,null,null,null,null,null,null,null,null,null,null,null,null,"","-","-",14,null,0,null,null,null,null,null,null,null,null,null,null,null,null,null,null,null,null,null,null,null,null,null,null,null,null,null,null,null,null,null,null,null,null,null,null,null,null,null,null,null,null,null,null,null,null,null,null,null,null,null,null,null,null,null,null,null,null,null,null,null,null,null,null,214,null,181,"(182)"]

{"sheet":"Regler","index":1,"n_rows":29,"n_cols":1,"rows_kept":29,"cut":false,"hidden":false,"merged":[]}
["Regler för Sverige-,Junior- o Miniorranking"]
[]
["Rankingpoäng utgör den totala poängen från rankingtävlingar under säsongen "]
["som varje enskild kastare har fått ihop."]
["Max från 13 tävlingar kan medräknas, och då räknas de 13 med högst resultat."]
[]
["Den som har högst poäng när säsongen är över vinner."]
[]
["Skulle det vara kastare som hamnar på samma poäng när säsongen är över, och är bland de"]
["tre bästa så gäller detta för att skilja dem åt."]
[]
["1. Högst snitt per serie"]
["2. Högst poäng på en tävling, sedan näst högst osv."]
["3. Högsta poängen på senaste tävlingen, sedan den dessför innan osv.(DM-tävlingar ej inräknade) "]
["4. Skulle det fortfarande inte gå att skilja dem åt, så blir de på samma plats."]
[]
[]
["Seriespelsranking"]
[]
["Alla individuella seriespelsresultaten under säsongen räknas in."]
["Den som har högst snitt när säsongen är över vinner. "]
[]
["För att kunna vara bland de tre pristagarna, måste man spelat minst 7 serier."]
[]
["Skulle det vara kastare som hamnar på samma snitt när säsongen är över, och är bland de"]
["tre bästa så gäller detta för att skilja dem åt."]
[]
["1. Det högsta serieresultatet, sedan näst högsta osv."]
["2. Skulle det fortfarande inte gå att skilja dem åt, så blir de på samma plats."]

{"sheet":"Miniorranking","index":2,"n_rows":47,"n_cols":141,"rows_kept":47,"cut":false,"hidden":false,"merged":[]}
[null,"Svenska Hästskokastarförbundets Sverigeranking"]
[null,null,"MINIOR"]
[null,null,"SLUTSTÄLLNING 2017/2018",null,null,null,null,null,{"$f":"IF(SUM(I5:I407)>100,1,\"\")","v":1},"","",1,"","",1,"",1,1,"","","",1,"","","","",""]
["Plac.","Kastare ","Klubb","Ranking-poäng",null,"Antal täv-lingar","Snitt per serie",null,"Växjö Open","Björkenäs Open","Utomhus-SM Dag 1","Utomhus-SM Dag 2","Utomhus Smålandsmästaren","Carlskrona Cup","Gotland Open","Septemberskon","Dynapac Open","Blekinge-DM Ute","Åseda Open","Höstskon Nybro","Novemberkampen","Inomhus-SM","Gotlands-DM inne","Inomhus Smålandsmästaren ","Blekinge DM Inne","Värendspokalen","Tingsryds Open"]
[{"$f":"EJ5&EK5","v":"1(1)"},"Julius Gneupel","Sibbamåla",{"$f":"SUM(I5:AA5)","v":522},null,{"$f":"COUNT(I5:AA5)","v":4},{"$f":"SUM((D5)/(F5*2))","v":65.25},null,null,null,null,151,null,null,133,null,158,80,null,null,null,null,null,null,null,null,null,null,null,1,{"$f":"IF(D5>1,ROW(1:1),\"-\")","v":1},{"$f":"IF(F5>1,ROW(1:1),\"-\")","v":1},null,null,null,{"$f":"COUNT($I$3,I5,H5)","v":1},{"$f":"COUNT($J$3,J5,I5)","v":0},{"$f":"COUNT($K$3,K5,J5)","v":0},{"$f":"COUNT($L$3,L5,K5)","v":2},{"$f":"COUNT($M$3,M5,L5)","v":1},{"$f":"COUNT($N$3,N5,M5)","v":0},{"$f":"COUNT($O$3,O5,N5)","v":2},{"$f":"COUNT($P$3,P5,O5)","v":1},{"$f":"COUNT($Q$3,Q5,P5)","v":2},{"$f":"COUNT($R$3,R5,Q5)","v":3},{"$f":"COUNT($S$3,S5,R5)","v":1},{"$f":"COUNT($T$3,T5,S5)","v":0},{"$f":"COUNT($U$3,U5,T5)","v":0},{"$f":"COUNT($V$3,V5,U5)","v":1},{"$f":"COUNT($W$3,W5,V5)","v":0},{"$f":"COUNT($X$3,X5,W5)","v":0},{"$f":"COUNT($Y$3,Y5,X5)","v":0},{"$f":"COUNT($Z$3,Z5,Y5)","v":0},{"$f":"COUNT($AA$3,AA5,Z5)","v":0},null,{"$f":"COUNTIF(AI5:BC5,\">1\")","v":4},{"$f":"IF(H5=\"x\",1,2)","v":2},null,null,null,null,null,null,null,null,null,null,null,null,null,null,null,null,null,null,null,null,null,null,null,null,null,null,null,null,null,null,null,null,null,null,null,null,null,null,null,null,null,null,null,null,null,null,null,null,null,null,null,null,null,null,null,null,null,null,null,null,null,null,null,null,null,null,null,null,null,null,null,null,null,null,null,null,null,null,null,null,1,null,{"$f":"IF(BD5>=1,AE5,\"\")","v":1},{"$f":"IF(BE5>1,\"(\"&AD5&\")\",\"(\"&AF5&\")\")","v":"(1)"}]
["2(2)","Filip Thomsson","Sibbamåla",191,null,2,47.75,null,null,null,null,24,null,null,null,null,167,null,null,null,null,null,null,null,null,null,null,null,null,2,{"$f":"IF(AND(D6=D5,D6=D4),ROW(#REF!),IF(D6=D5,ROW(1:1),IF(D6>1,ROW(2:2),\"-\")))","v":2},2,null,null,null,1,0,0,2,1,0,1,0,2,2,0,0,0,1,0,0,0,0,0,null,3,2,null,null,null,null,null,null,null,null,null,null,null,null,null,null,null,null,null,null,null,null,null,null,null,null,null,null,null,null,null,null,null,null,null,null,null,null,null,null,null,null,null,null,null,null,null,null,null,null,null,null,null,null,null,null,null,null,null,null,null,null,null,null,null,null,null,null,null,null,null,null,null,null,null,null,null,null,null,null,null,null,3,null,2,"(2)"]
["3(3)","Albin Larsson","Sibbamåla",148,null,1,74,null,null,null,null,null,null,null,null,null,148,null,null,null,null,null,null,null,null,null,null,null,null,3,{"$f":"IF(AND(D7=D6,D7=D5,D7=D4),ROW(#REF!),IF(AND(D7=D6,D7=D5),ROW(1:1),IF(D7=D6,ROW(2:2),IF(D7>1,ROW(3:3),\"-\"))))","v":3},"-",null,null,null,1,0,0,1,0,0,1,0,2,2,0,0,0,1,0,0,0,0,0,null,2,2,null,null,null,null,null,null,null,null,null,null,null,null,null,null,null,null,null,null,null,null,null,null,null,null,null,null,null,null,null,null,null,null,null,null,null,null,null,null,null,null,null,null,null,null,null,null,null,null,null,null,null,null,null,null,null,null,null,null,null,null,null,null,null,null,null,null,null,null,null,null,null,null,null,null,null,null,null,null,null,null,4,null,3,"(3)"]
["4(4)","Kevin Rydell","Värends Hsk",120,null,1,60,null,120,null,null,null,null,null,null,null,null,null,null,null,null,null,null,null,null,null,null,null,null,4,{"$f":"IF(AND(D8=D7,D8=D6,D8=D5,D8=D4),ROW(#REF!),IF(AND(D8=D7,D8=D6,D8=D5),ROW(1:1),IF(AND(D8=D7,D8=D6),ROW(2:2),IF(D8=D7,ROW(3:3),IF(D8>1,ROW(4:4),\"-\")))))","v":4},"-",null,null,null,2,1,0,1,0,0,1,0,1,1,0,0,0,1,0,0,0,0,0,null,1,2,null,null,null,null,null,null,null,null,null,null,null,null,null,null,null,null,null,null,null,null,null,null,null,null,null,null,null,null,null,null,null,null,null,null,null,null,null,null,null,null,null,null,null,null,null,null,null,null,null,null,null,null,null,null,null,null,null,null,null,null,null,null,null,null,null,null,null,null,null,null,null,null,null,null,null,null,null,null,null,null,5,null,4,"(4)"]
["5(5)","Neo Rådström","Jämjö Hsk",119,null,1,59.5,null,null,null,null,null,null,null,null,null,null,null,null,null,null,119,null,null,null,null,null,null,null,5,{"$f":"IF(AND(D9=D8,D9=D7,D9=D6,D9=D5),ROW(1:1),IF(AND(D9=D8,D9=D7,D9=D6),ROW(2:2),IF(AND(D9=D8,D9=D7),ROW(3:3),IF(D9=D8,ROW(4:4),IF(D9>1,ROW(5:5),\"-\")))))","v":5},"-",null,null,null,1,0,0,1,0,0,1,0,1,1,0,0,0,2,1,0,0,0,0,null,1,2,null,null,null,null,null,null,null,null,null,null,null,null,null,null,null,null,null,null,null,null,null,null,null,null,null,null,null,null,null,null,null,null,null,null,null,null,null,null,null,null,null,null,null,null,null,null,null,null,null,null,null,null,null,null,null,null,null,null,null,null,null,null,null,null,null,null,null,null,null,null,null,null,null,null,null,null,null,null,null,null,6,null,5,"(5)"]
["6(6)","Elias Thomsson","Sibbamåla",91,null,1,45.5,null,null,null,null,91,null,null,null,null,null,null,null,null,null,null,null,null,null,null,null,null,null,6,{"$f":"IF(AND(D10=D9,D10=D8,D10=D7,D10=D6),ROW(2:2),IF(AND(D10=D9,D10=D8,D10=D7),ROW(3:3),IF(AND(D10=D9,D10=D8),ROW(4:4),IF(D10=D9,ROW(5:5),IF(D10>1,ROW(6:6),\"-\")))))","v":6},"-",null,null,null,1,0,0,2,1,0,1,0,1,1,0,0,0,1,0,0,0,0,0,null,1,2,null,null,null,null,null,null,null,null,null,null,null,null,null,null,null,null,null,null,null,null,null,null,null,null,null,null,null,null,null,null,null,null,null,null,null,null,null,null,null,null,null,null,null,null,null,null,null,null,null,null,null,null,null,null,null,null,null,null,null,null,null,null,null,null,null,null,null,null,null,null,null,null,null,null,null,null,null,null,null,null,7,null,6,"(6)"]
["7(7)","Tilde Strandberg","Jämjö Hsk",77,null,1,38.5,null,null,null,null,null,null,null,null,null,null,null,null,null,null,77,null,null,null,null,null,null,null,7,{"$f":"IF(AND(D11=D10,D11=D9,D11=D8,D11=D7),ROW(3:3),IF(AND(D11=D10,D11=D9,D11=D8),ROW(4:4),IF(AND(D11=D10,D11=D9),ROW(5:5),IF(D11=D10,ROW(6:6),IF(D11>1,ROW(7:7),\"-\")))))","v":7},"-",null,null,null,1,0,0,1,0,0,1,0,1,1,0,0,0,2,1,0,0,0,0,null,1,2,null,null,null,null,null,null,null,null,null,null,null,null,null,null,null,null,null,null,null,null,null,null,null,null,null,null,null,null,null,null,null,null,null,null,null,null,null,null,null,null,null,null,null,null,null,null,null,null,null,null,null,null,null,null,null,null,null,null,null,null,null,null,null,null,null,null,null,null,null,null,null,null,null,null,null,null,null,null,null,null,8,null,7,"(7)"]
["8(8)","Linus Israelsson","Sibbamåla",72,null,1,36,null,null,null,null,72,null,null,null,null,null,null,null,null,null,null,null,null,null,null,null,null,null,8,{"$f":"IF(AND(D12=D11,D12=D10,D12=D9,D12=D8),ROW(4:4),IF(AND(D12=D11,D12=D10,D12=D9),ROW(5:5),IF(AND(D12=D11,D12=D10),ROW(6:6),IF(D12=D11,ROW(7:7),IF(D12>1,ROW(8:8),\"-\")))))","v":8},"-",null,null,null,1,0,0,2,1,0,1,0,1,1,0,0,0,1,0,0,0,0,0,null,1,2,null,null,null,null,null,null,null,null,null,null,null,null,null,null,null,null,null,null,null,null,null,null,null,null,null,null,null,null,null,null,null,null,null,null,null,null,null,null,null,null,null,null,null,null,null,null,null,null,null,null,null,null,null,null,null,null,null,null,null,null,null,null,null,null,null,null,null,null,null,null,null,null,null,null,null,null,null,null,null,null,9,null,8,"(8)"]
["9(9)","Abbe Johansson","Dynapac ",64,null,1,32,null,null,null,null,null,null,null,null,null,null,64,null,null,null,null,null,null,null,null,null,null,null,9,{"$f":"IF(D13=D12,ROW(8:8),IF(D13>1,ROW(9:9),\"-\"))","v":9},"-",null,null,null,1,0,0,1,0,0,1,0,1,2,1,0,0,1,0,0,0,0,0,null,1,2,null,null,null,null,null,null,null,null,null,null,null,null,null,null,null,null,null,null,null,null,null,null,null,null,null,null,null,null,null,null,null,null,null,null,null,null,null,null,null,null,null,null,null,null,null,null,null,null,null,null,null,null,null,null,null,null,null,null,null,null,null,null,null,null,null,null,null,null,null,null,null,null,null,null,null,null,null,null,null,null,2,null,9,"(9)"]
[{"$f":"EJ14&EK14","v":"(-)"},null,null,0,null,0,{"$error":"#DIV/0!"},null,null,null,null,null,null,null,null,null,null,null,null,null,null,null,null,null,null,null,null,null,null,"-",{"$f":"IF(AND(D14=D13,D14=D12,D14=D11,D14=D10),ROW(6:6),IF(AND(D14=D13,D14=D12,D14=D11),ROW(7:7),IF(AND(D14=D13,D14=D12),ROW(8:8),IF(D14=D13,ROW(9:9),IF(D14>1,ROW(10:10),\"-\")))))","v":"-"},{"$f":"IF(F14>1,ROW(10:10),\"-\")","v":"-"},null,null,null,{"$f":"COUNT($I$3,I14,H14)","v":1},{"$f":"COUNT($J$3,J14,I14)","v":0},{"$f":"COUNT($K$3,K14,J14)","v":0},{"$f":"COUNT($L$3,L14,K14)","v":1},{"$f":"COUNT($M$3,M14,L14)","v":0},{"$f":"COUNT($N$3,N14,M14)","v":0},{"$f":"COUNT($O$3,O14,N14)","v":1},{"$f":"COUNT($P$3,P14,O14)","v":0},{"$f":"COUNT($Q$3,Q14,P14)","v":1},{"$f":"COUNT($R$3,R14,Q14)","v":1},{"$f":"COUNT($S$3,S14,R14)","v":0},{"$f":"COUNT($T$3,T14,S14)","v":0},{"$f":"COUNT($U$3,U14,T14)","v":0},{"$f":"COUNT($V$3,V14,U14)","v":1},{"$f":"COUNT($W$3,W14,V14)","v":0},{"$f":"COUNT($X$3,X14,W14)","v":0},{"$f":"COUNT($Y$3,Y14,X14)","v":0},{"$f":"COUNT($Z$3,Z14,Y14)","v":0},{"$f":"COUNT($AA$3,AA14,Z14)","v":0},null,{"$f":"COUNTIF(AI14:BC14,\">1\")","v":0},{"$f":"IF(H14=\"x\",1,2)","v":2},null,null,null,null,null,null,null,null,null,null,null,null,null,null,null,null,null,null,null,null,null,null,null,null,null,null,null,null,null,null,null,null,null,null,null,null,null,null,null,null,null,null,null,null,null,null,null,null,null,null,null,null,null,null,null,null,null,null,null,null,null,null,null,null,null,null,null,null,null,null,null,null,null,null,null,null,null,null,null,null,10,null,{"$f":"IF(BD14>=1,AE14,\"\")","v":""},{"$f":"IF(BE14>1,\"(\"&AD14&\")\",\"(\"&AF14&\")\")","v":"(-)"}]
["(10)",null,null,0,null,0,{"$error":"#DIV/0!"},null,null,null,null,null,null,null,null,null,null,null,null,null,null,null,null,null,null,null,null,null,null,10,10,"-",null,null,null,1,0,0,1,0,0,1,0,1,1,0,0,0,1,0,0,0,0,0,null,0,2,null,null,null,null,null,null,null,null,null,null,null,null,null,null,null,null,null,null,null,null,null,null,null,null,null,null,null,null,null,null,null,null,null,null,null,null,null,null,null,null,null,null,null,null,null,null,null,null,null,null,null,null,null,null,null,null,null,null,null,null,null,null,null,null,null,null,null,null,null,null,null,null,null,null,null,null,null,null,null,null,11,null,"","(10)"]
["(10)",null,null,0,null,0,{"$error":"#DIV/0!"},null,null,null,null,null,null,null,null,null,null,null,null,null,null,null,null,null,null,null,null,null,null,10,10,"-",null,null,null,1,0,0,1,0,0,1,0,1,1,0,0,0,1,0,0,0,0,0,null,0,2,null,null,null,null,null,null,null,null,null,null,null,null,null,null,null,null,null,null,null,null,null,null,null,null,null,null,null,null,null,null,null,null,null,null,null,null,null,null,null,null,null,null,null,null,null,null,null,null,null,null,null,null,null,null,null,null,null,null,null,null,null,null,null,null,null,null,null,null,null,null,null,null,null,null,null,null,null,null,null,null,12,null,"","(10)"]
["(10)",null,null,0,null,0,{"$error":"#DIV/0!"},null,null,null,null,null,null,null,null,null,null,null,null,null,null,null,null,null,null,null,null,null,null,10,10,"-",null,null,null,1,0,0,1,0,0,1,0,1,1,0,0,0,1,0,0,0,0,0,null,0,2,null,null,null,null,null,null,null,null,null,null,null,null,null,null,null,null,null,null,null,null,null,null,null,null,null,null,null,null,null,null,null,null,null,null,null,null,null,null,null,null,null,null,null,null,null,null,null,null,null,null,null,null,null,null,null,null,null,null,null,null,null,null,null,null,null,null,null,null,null,null,null,null,null,null,null,null,null,null,null,null,13,null,"","(10)"]
["(10)",null,null,0,null,0,{"$error":"#DIV/0!"},null,null,null,null,null,null,null,null,null,null,null,null,null,null,null,null,null,null,null,null,null,null,10,10,"-",null,null,null,1,0,0,1,0,0,1,0,1,1,0,0,0,1,0,0,0,0,0,null,0,2,null,null,null,null,null,null,null,null,null,null,null,null,null,null,null,null,null,null,null,null,null,null,null,null,null,null,null,null,null,null,null,null,null,null,null,null,null,null,null,null,null,null,null,null,null,null,null,null,null,null,null,null,null,null,null,null,null,null,null,null,null,null,null,null,null,null,null,null,null,null,null,null,null,null,null,null,null,null,null,null,14,null,{"$f":"IF(BD18>=1,AE18,\"\")","v":""},"(10)"]
["(11)",null,null,0,null,0,{"$error":"#DIV/0!"},null,null,null,null,null,null,null,null,null,null,null,null,null,null,null,null,null,null,null,null,null,null,11,11,"-",null,null,null,1,0,0,1,0,0,1,0,1,1,0,0,0,1,0,0,0,0,0,null,0,2,null,null,null,null,null,null,null,null,null,null,null,null,null,null,null,null,null,null,null,null,null,null,null,null,null,null,null,null,null,null,null,null,null,null,null,null,null,null,null,null,null,null,null,null,null,null,null,null,null,null,null,null,null,null,null,null,null,null,null,null,null,null,null,null,null,null,null,null,null,null,null,null,null,null,null,null,null,null,null,null,15,null,"","(11)"]
["(12)",null,null,0,null,0,{"$error":"#DIV/0!"},null,null,null,null,null,null,null,null,null,null,null,null,null,null,null,null,null,null,null,null,null,null,12,12,"-",null,null,null,1,0,0,1,0,0,1,0,1,1,0,0,0,1,0,0,0,0,0,null,0,2,null,null,null,null,null,null,null,null,null,null,null,null,null,null,null,null,null,null,null,null,null,null,null,null,null,null,null,null,null,null,null,null,null,null,null,null,null,null,null,null,null,null,null,null,null,null,null,null,null,null,null,null,null,null,null,null,null,null,null,null,null,null,null,null,null,null,null,null,null,null,null,null,null,null,null,null,null,null,null,null,16,null,{"$f":"IF(BD20>=1,AE20,\"\")","v":""},"(12)"]
["(13)",null,null,0,null,0,{"$error":"#DIV/0!"},null,null,null,null,null,null,null,null,null,null,null,null,null,null,null,null,null,null,null,null,null,null,13,13,"-",null,null,null,1,0,0,1,0,0,1,0,1,1,0,0,0,1,0,0,0,0,0,null,0,2,null,null,null,null,null,null,null,null,null,null,null,null,null,null,null,null,null,null,null,null,null,null,null,null,null,null,null,null,null,null,null,null,null,null,null,null,null,null,null,null,null,null,null,null,null,null,null,null,null,null,null,null,null,null,null,null,null,null,null,null,null,null,null,null,null,null,null,null,null,null,null,null,null,null,null,null,null,null,null,null,17,null,"","(13)"]
[{"$f":"EJ22&EK22","v":"(14)"},null,null,0,null,0,{"$error":"#DIV/0!"},null,null,null,null,null,null,null,null,null,null,null,null,null,null,null,null,null,null,null,null,null,null,14,14,"-",null,null,null,1,0,0,1,0,0,1,0,1,1,0,0,0,1,0,0,0,0,0,null,0,2,null,null,null,null,null,null,null,null,null,null,null,null,null,null,null,null,null,null,null,null,null,null,null,null,null,null,null,null,null,null,null,null,null,null,null,null,null,null,null,null,null,null,null,null,null,null,null,null,null,null,null,null,null,null,null,null,null,null,null,null,null,null,null,null,null,null,null,null,null,null,null,null,null,null,null,null,null,null,null,null,18,null,"","(14)"]
[{"$f":"EJ23&EK23","v":"(15)"},null,null,0,null,0,{"$error":"#DIV/0!"},null,null,null,null,null,null,null,null,null,null,null,null,null,null,null,null,null,null,null,null,null,null,15,{"$f":"IF(AND(D23=D22,D23=D21,D23=D20,D23=D19),ROW(15:15),IF(AND(D23=D22,D23=D21,D23=D20),ROW(16:16),IF(AND(D23=D22,D23=D21),ROW(17:17),IF(D23=D22,ROW(18:18),IF(D23>1,ROW(19:19),\"-\")))))","v":15},{"$f":"IF(F23>1,ROW(19:19),\"-\")","v":"-"},null,null,null,{"$f":"COUNT($I$3,I23,H23)","v":1},{"$f":"COUNT($J$3,J23,I23)","v":0},{"$f":"COUNT($K$3,K23,J23)","v":0},{"$f":"COUNT($L$3,L23,K23)","v":1},{"$f":"COUNT($M$3,M23,L23)","v":0},{"$f":"COUNT($N$3,N23,M23)","v":0},{"$f":"COUNT($O$3,O23,N23)","v":1},{"$f":"COUNT($P$3,P23,O23)","v":0},{"$f":"COUNT($Q$3,Q23,P23)","v":1},{"$f":"COUNT($R$3,R23,Q23)","v":1},{"$f":"COUNT($S$3,S23,R23)","v":0},{"$f":"COUNT($T$3,T23,S23)","v":0},{"$f":"COUNT($U$3,U23,T23)","v":0},{"$f":"COUNT($V$3,V23,U23)","v":1},{"$f":"COUNT($W$3,W23,V23)","v":0},{"$f":"COUNT($X$3,X23,W23)","v":0},{"$f":"COUNT($Y$3,Y23,X23)","v":0},{"$f":"COUNT($Z$3,Z23,Y23)","v":0},{"$f":"COUNT($AA$3,AA23,Z23)","v":0},null,{"$f":"COUNTIF(AI23:BC23,\">1\")","v":0},{"$f":"IF(H23=\"x\",1,2)","v":2},null,null,null,null,null,null,null,null,null,null,null,null,null,null,null,null,null,null,null,null,null,null,null,null,null,null,null,null,null,null,null,null,null,null,null,null,null,null,null,null,null,null,null,null,null,null,null,null,null,null,null,null,null,null,null,null,null,null,null,null,null,null,null,null,null,null,null,null,null,null,null,null,null,null,null,null,null,null,null,null,19,null,"",{"$f":"IF(BE23>1,\"(\"&AD23&\")\",\"(\"&AF23&\")\")","v":"(15)"}]
["(16)",null,null,0,null,0,{"$error":"#DIV/0!"},null,null,null,null,null,null,null,null,null,null,null,null,null,null,null,null,null,null,null,null,null,null,16,16,"-",null,null,null,1,0,0,1,0,0,1,0,1,1,0,0,0,1,0,0,0,0,0,null,0,2,null,null,null,null,null,null,null,null,null,null,null,null,null,null,null,null,null,null,null,null,null,null,null,null,null,null,null,null,null,null,null,null,null,null,null,null,null,null,null,null,null,null,null,null,null,null,null,null,null,null,null,null,null,null,null,null,null,null,null,null,null,null,null,null,null,null,null,null,null,null,null,null,null,null,null,null,null,null,null,null,20,null,"","(16)"]
[{"$f":"EJ25&EK25","v":"(17)"},null,null,0,null,0,{"$error":"#DIV/0!"},null,null,null,null,null,null,null,null,null,null,null,null,null,null,null,null,null,null,null,null,null,null,17,{"$f":"IF(AND(D25=D24,D25=D23,D25=D22,D25=D21),ROW(17:17),IF(AND(D25=D24,D25=D23,D25=D22),ROW(18:18),IF(AND(D25=D24,D25=D23),ROW(19:19),IF(D25=D24,ROW(20:20),IF(D25>1,ROW(21:21),\"-\")))))","v":17},{"$f":"IF(F25>1,ROW(21:21),\"-\")","v":"-"},null,null,null,{"$f":"COUNT($I$3,I25,H25)","v":1},{"$f":"COUNT($J$3,J25,I25)","v":0},{"$f":"COUNT($K$3,K25,J25)","v":0},{"$f":"COUNT($L$3,L25,K25)","v":1},{"$f":"COUNT($M$3,M25,L25)","v":0},{"$f":"COUNT($N$3,N25,M25)","v":0},{"$f":"COUNT($O$3,O25,N25)","v":1},{"$f":"COUNT($P$3,P25,O25)","v":0},{"$f":"COUNT($Q$3,Q25,P25)","v":1},{"$f":"COUNT($R$3,R25,Q25)","v":1},{"$f":"COUNT($S$3,S25,R25)","v":0},{"$f":"COUNT($T$3,T25,S25)","v":0},{"$f":"COUNT($U$3,U25,T25)","v":0},{"$f":"COUNT($V$3,V25,U25)","v":1},{"$f":"COUNT($W$3,W25,V25)","v":0},{"$f":"COUNT($X$3,X25,W25)","v":0},{"$f":"COUNT($Y$3,Y25,X25)","v":0},{"$f":"COUNT($Z$3,Z25,Y25)","v":0},{"$f":"COUNT($AA$3,AA25,Z25)","v":0},null,{"$f":"COUNTIF(AI25:BC25,\">1\")","v":0},{"$f":"IF(H25=\"x\",1,2)","v":2},null,null,null,null,null,null,null,null,null,null,null,null,null,null,null,null,null,null,null,null,null,null,null,null,null,null,null,null,null,null,null,null,null,null,null,null,null,null,null,null,null,null,null,null,null,null,null,null,null,null,null,null,null,null,null,null,null,null,null,null,null,null,null,null,null,null,null,null,null,null,null,null,null,null,null,null,null,null,null,null,21,null,"",{"$f":"IF(BE25>1,\"(\"&AD25&\")\",\"(\"&AF25&\")\")","v":"(17)"}]
[]
[]
[null,null,null,null,null,null,null,null,null,null,null,null,null,null,null,null,null,null,null,null,null,null,null,null,null,null,null,null,null,null,null,null,null,null,null,null,null,null,null,null,null,null,null,null,null,null,null,null,null,null,null,null,null,null,null,null,null,null,null,null,null,null,null,null,null,null,null,null,null,null,null,null,null,null,null,null,null,null,null,null,null,null,null,null,null,null,null,null,null,null,null,null,null,null,null,null,null,null,null,null,null,null,null,null,null,null,null,null,null,null,null,null,null,null,null,null,null,null,null,null,null,null,null,null,null,null,null,null,null,null,null,null,null,null,null,null,null,1,null,{"$f":"IF(BD28>=1,AE28,\"\")","v":""},{"$f":"IF(BD28>1,\"(\"&AD28&\")\",\"(\"&AF28&\")\")","v":"()"}]
[null,null,null,null,null,null,null,null,null,null,null,null,null,null,null,null,null,null,null,null,null,null,null,null,null,null,null,null,null,null,null,null,null,null,null,null,null,null,null,null,null,null,null,null,null,null,null,null,null,null,null,null,null,null,null,null,null,null,null,null,null,null,null,null,null,null,null,null,null,null,null,null,null,null,null,null,null,null,null,null,null,null,null,null,null,null,null,null,null,null,null,null,null,null,null,null,null,null,null,null,null,null,null,null,null,null,null,null,null,null,null,null,null,null,null,null,null,null,null,null,null,null,null,null,null,null,null,null,null,null,null,null,null,null,null,null,null,3,null,"","()"]
[null,null,null,null,null,null,null,null,null,null,null,null,null,null,null,null,null,null,null,null,null,null,null,null,null,null,null,null,null,null,null,null,null,null,null,null,null,null,null,null,null,null,null,null,null,null,null,null,null,null,null,null,null,null,null,null,null,null,null,null,null,null,null,null,null,null,null,null,null,null,null,null,null,null,null,null,null,null,null,null,null,null,null,null,null,null,null,null,null,null,null,null,null,null,null,null,null,null,null,null,null,null,null,null,null,null,null,null,null,null,null,null,null,null,null,null,null,null,null,null,null,null,null,null,null,null,null,null,null,null,null,null,null,null,null,null,null,4,null,"","()"]
[null,null,null,null,null,null,null,null,null,null,null,null,null,null,null,null,null,null,null,null,null,null,null,null,null,null,null,null,null,null,null,null,null,null,null,null,null,null,null,null,null,null,null,null,null,null,null,null,null,null,null,null,null,null,null,null,null,null,null,null,null,null,null,null,null,null,null,null,null,null,null,null,null,null,null,null,null,null,null,null,null,null,null,null,null,null,null,null,null,null,null,null,null,null,null,null,null,null,null,null,null,null,null,null,null,null,null,null,null,null,null,null,null,null,null,null,null,null,null,null,null,null,null,null,null,null,null,null,null,null,null,null,null,null,null,null,null,5,null,"","()"]
[null,null,null,null,null,null,null,null,null,null,null,null,null,null,null,null,null,null,null,null,null,null,null,null,null,null,null,null,null,null,null,null,null,null,null,null,null,null,null,null,null,null,null,null,null,null,null,null,null,null,null,null,null,null,null,null,null,null,null,null,null,null,null,null,null,null,null,null,null,null,null,null,null,null,null,null,null,null,null,null,null,null,null,null,null,null,null,null,null,null,null,null,null,null,null,null,null,null,null,null,null,null,null,null,null,null,null,null,null,null,null,null,null,null,null,null,null,null,null,null,null,null,null,null,null,null,null,null,null,null,null,null,null,null,null,null,null,6,null,"","()"]
[null,null,null,null,null,null,null,null,null,null,null,null,null,null,null,null,null,null,null,null,null,null,null,null,null,null,null,null,null,null,null,null,null,null,null,null,null,null,null,null,null,null,null,null,null,null,null,null,null,null,null,null,null,null,null,null,null,null,null,null,null,null,null,null,null,null,null,null,null,null,null,null,null,null,null,null,null,null,null,null,null,null,null,null,null,null,null,null,null,null,null,null,null,null,null,null,null,null,null,null,null,null,null,null,null,null,null,null,null,null,null,null,null,null,null,null,null,null,null,null,null,null,null,null,null,null,null,null,null,null,null,null,null,null,null,null,null,7,null,"","()"]
[null,null,null,null,null,null,null,null,null,null,null,null,null,null,null,null,null,null,null,null,null,null,null,null,null,null,null,null,null,null,null,null,null,null,null,null,null,null,null,null,null,null,null,null,null,null,null,null,null,null,null,null,null,null,null,null,null,null,null,null,null,null,null,null,null,null,null,null,null,null,null,null,null,null,null,null,null,null,null,null,null,null,null,null,null,null,null,null,null,null,null,null,null,null,null,null,null,null,null,null,null,null,null,null,null,null,null,null,null,null,null,null,null,null,null,null,null,null,null,null,null,null,null,null,null,null,null,null,null,null,null,null,null,null,null,null,null,8,null,"","()"]
[null,null,null,null,null,null,null,null,null,null,null,null,null,null,null,null,null,null,null,null,null,null,null,null,null,null,null,null,null,null,null,null,null,null,null,null,null,null,null,null,null,null,null,null,null,null,null,null,null,null,null,null,null,null,null,null,null,null,null,null,null,null,null,null,null,null,null,null,null,null,null,null,null,null,null,null,null,null,null,null,null,null,null,null,null,null,null,null,null,null,null,null,null,null,null,null,null,null,null,null,null,null,null,null,null,null,null,null,null,null,null,null,null,null,null,null,null,null,null,null,null,null,null,null,null,null,null,null,null,null,null,null,null,null,null,null,null,9,null,"","()"]
[null,null,null,null,null,null,null,null,null,null,null,null,null,null,null,null,null,null,null,null,null,null,null,null,null,null,null,null,null,null,null,null,null,null,null,null,null,null,null,null,null,null,null,null,null,null,null,null,null,null,null,null,null,null,null,null,null,null,null,null,null,null,null,null,null,null,null,null,null,null,null,null,null,null,null,null,null,null,null,null,null,null,null,null,null,null,null,null,null,null,null,null,null,null,null,null,null,null,null,null,null,null,null,null,null,null,null,null,null,null,null,null,null,null,null,null,null,null,null,null,null,null,null,null,null,null,null,null,null,null,null,null,null,null,null,null,null,10,null,"","()"]
[null,null,null,null,null,null,null,null,null,null,null,null,null,null,null,null,null,null,null,null,null,null,null,null,null,null,null,null,null,null,null,null,null,null,null,null,null,null,null,null,null,null,null,null,null,null,null,null,null,null,null,null,null,null,null,null,null,null,null,null,null,null,null,null,null,null,null,null,null,null,null,null,null,null,null,null,null,null,null,null,null,null,null,null,null,null,null,null,null,null,null,null,null,null,null,null,null,null,null,null,null,null,null,null,null,null,null,null,null,null,null,null,null,null,null,null,null,null,null,null,null,null,null,null,null,null,null,null,null,null,null,null,null,null,null,null,null,11,null,"","()"]
[null,null,null,null,null,null,null,null,null,null,null,null,null,null,null,null,null,null,null,null,null,null,null,null,null,null,null,null,null,null,null,null,null,null,null,null,null,null,null,null,null,null,null,null,null,null,null,null,null,null,null,null,null,null,null,null,null,null,null,null,null,null,null,null,null,null,null,null,null,null,null,null,null,null,null,null,null,null,null,null,null,null,null,null,null,null,null,null,null,null,null,null,null,null,null,null,null,null,null,null,null,null,null,null,null,null,null,null,null,null,null,null,null,null,null,null,null,null,null,null,null,null,null,null,null,null,null,null,null,null,null,null,null,null,null,null,null,12,null,"","()"]
[null,null,null,null,null,null,null,null,null,null,null,null,null,null,null,null,null,null,null,null,null,null,null,null,null,null,null,null,null,null,null,null,null,null,null,null,null,null,null,null,null,null,null,null,null,null,null,null,null,null,null,null,null,null,null,null,null,null,null,null,null,null,null,null,null,null,null,null,null,null,null,null,null,null,null,null,null,null,null,null,null,null,null,null,null,null,null,null,null,null,null,null,null,null,null,null,null,null,null,null,null,null,null,null,null,null,null,null,null,null,null,null,null,null,null,null,null,null,null,null,null,null,null,null,null,null,null,null,null,null,null,null,null,null,null,null,null,13,null,"","()"]
[null,null,null,null,null,null,null,null,null,null,null,null,null,null,null,null,null,null,null,null,null,null,null,null,null,null,null,null,null,null,null,null,null,null,null,null,null,null,null,null,null,null,null,null,null,null,null,null,null,null,null,null,null,null,null,null,null,null,null,null,null,null,null,null,null,null,null,null,null,null,null,null,null,null,null,null,null,null,null,null,null,null,null,null,null,null,null,null,null,null,null,null,null,null,null,null,null,null,null,null,null,null,null,null,null,null,null,null,null,null,null,null,null,null,null,null,null,null,null,null,null,null,null,null,null,null,null,null,null,null,null,null,null,null,null,null,null,14,null,{"$f":"IF(BD40>=1,AE40,14)","v":14},"()"]
[null,null,null,null,null,null,null,null,null,null,null,null,null,null,null,null,null,null,null,null,null,null,null,null,null,null,null,null,null,null,null,null,null,null,null,null,null,null,null,null,null,null,null,null,null,null,null,null,null,null,null,null,null,null,null,null,null,null,null,null,null,null,null,null,null,null,null,null,null,null,null,null,null,null,null,null,null,null,null,null,null,null,null,null,null,null,null,null,null,null,null,null,null,null,null,null,null,null,null,null,null,null,null,null,null,null,null,null,null,null,null,null,null,null,null,null,null,null,null,null,null,null,null,null,null,null,null,null,null,null,null,null,null,null,null,null,null,15,null,{"$f":"IF(BD41>=1,AE41,\"\")","v":""},"()"]
[null,null,null,null,null,null,null,null,null,null,null,null,null,null,null,null,null,null,null,null,null,null,null,null,null,null,null,null,null,null,null,null,null,null,null,null,null,null,null,null,null,null,null,null,null,null,null,null,null,null,null,null,null,null,null,null,null,null,null,null,null,null,null,null,null,null,null,null,null,null,null,null,null,null,null,null,null,null,null,null,null,null,null,null,null,null,null,null,null,null,null,null,null,null,null,null,null,null,null,null,null,null,null,null,null,null,null,null,null,null,null,null,null,null,null,null,null,null,null,null,null,null,null,null,null,null,null,null,null,null,null,null,null,null,null,null,null,16,null,{"$f":"IF(BD42>=1,AE42,\"\")","v":""},"()"]
[null,null,null,null,null,null,null,null,null,null,null,null,null,null,null,null,null,null,null,null,null,null,null,null,null,null,null,null,null,null,null,null,null,null,null,null,null,null,null,null,null,null,null,null,null,null,null,null,null,null,null,null,null,null,null,null,null,null,null,null,null,null,null,null,null,null,null,null,null,null,null,null,null,null,null,null,null,null,null,null,null,null,null,null,null,null,null,null,null,null,null,null,null,null,null,null,null,null,null,null,null,null,null,null,null,null,null,null,null,null,null,null,null,null,null,null,null,null,null,null,null,null,null,null,null,null,null,null,null,null,null,null,null,null,null,null,null,2,null,{"$f":"IF(BD43>=1,AE43,\"\")","v":""},"()"]
[null,null,null,null,null,null,null,null,null,null,null,null,null,null,null,null,null,null,null,null,null,null,null,null,null,null,null,null,null,null,null,null,null,null,null,null,null,null,null,null,null,null,null,null,null,null,null,null,null,null,null,null,null,null,null,null,null,null,null,null,null,null,null,null,null,null,null,null,null,null,null,null,null,null,null,null,null,null,null,null,null,null,null,null,null,null,null,null,null,null,null,null,null,null,null,null,null,null,null,null,null,null,null,null,null,null,null,null,null,null,null,null,null,null,null,null,null,null,null,null,null,null,null,null,null,null,null,null,null,null,null,null,null,null,null,null,null,17,null,{"$f":"IF(BD44>=1,AE44,\"\")","v":""},{"$f":"IF(BD44>2,\"(\"&AD44&\")\",\"(\"&AF44&\")\")","v":"()"}]
[null,null,null,null,null,null,null,null,null,null,null,null,null,null,null,null,null,null,null,null,null,null,null,null,null,null,null,null,null,null,null,null,null,null,null,null,null,null,null,null,null,null,null,null,null,null,null,null,null,null,null,null,null,null,null,null,null,null,null,null,null,null,null,null,null,null,null,null,null,null,null,null,null,null,null,null,null,null,null,null,null,null,null,null,null,null,null,null,null,null,null,null,null,null,null,null,null,null,null,null,null,null,null,null,null,null,null,null,null,null,null,null,null,null,null,null,null,null,null,null,null,null,null,null,null,null,null,null,null,null,null,null,null,null,null,null,null,18,null,18,{"$f":"IF(BD45>1,\"(\"&AD45&\")\",\"(\"&AF45&\")\")","v":"()"}]
[null,null,null,null,null,null,null,null,null,null,null,null,null,null,null,null,null,null,null,null,null,null,null,null,null,null,null,null,null,null,null,null,null,null,null,null,null,null,null,null,null,null,null,null,null,null,null,null,null,null,null,null,null,null,null,null,null,null,null,null,null,null,null,null,null,null,null,null,null,null,null,null,null,null,null,null,null,null,null,null,null,null,null,null,null,null,null,null,null,null,null,null,null,null,null,null,null,null,null,null,null,null,null,null,null,null,null,null,null,null,null,null,null,null,null,null,null,null,null,null,null,null,null,null,null,null,null,null,null,null,null,null,null,null,null,null,null,19,null,19,{"$f":"IF(BD46>1,\"(\"&AD46&\")\",\"(\"&AF46&\")\")","v":"()"}]
[null,null,null,null,null,null,null,null,null,null,null,null,null,null,null,null,null,null,null,null,null,null,null,null,null,null,null,null,null,null,null,null,null,null,null,null,null,null,null,null,null,null,null,null,null,null,null,null,null,null,null,null,null,null,null,null,null,null,null,null,null,null,null,null,null,null,null,null,null,null,null,null,null,null,null,null,null,null,null,null,null,null,null,null,null,null,null,null,null,null,null,null,null,null,null,null,null,null,null,null,null,null,null,null,null,null,null,null,null,null,null,null,null,null,null,null,null,null,null,null,null,null,null,null,null,null,null,null,null,null,null,null,null,null,null,null,null,20,null,20,{"$f":"IF(BD47>1,\"(\"&AD47&\")\",\"(\"&AF47&\")\")","v":"()"}]

{"sheet":"Seriespelsranking","index":3,"n_rows":123,"n_cols":136,"rows_kept":123,"cut":false,"hidden":false,"merged":[]}
[null,"Svenska Hästskokastarförbundets Seriespelsranking"]
[null,"2017_2018"]
[null,"SLUTSTÄLLNING"]
["Plac.","Kastare ","Klubb","Ranking-snitt ",null,"Antal serie-resultat","Total-poäng serie-resultat",null,"Antal vunna dubblar","Antal förlorade dubblar","Antal vunna singlar","Antal förlorade singlar","Antal vunna matcher i %","Inskrivning resultat",null,null,null,null,null,null,null,null,null,null,null,null,null,null,null,null,null,null,null,null,null,null,null,null,null,null,null,null,null,null,null,null,null,null,null,null,null,null,null,null,null,null,null,null,null,null,null,null,null,null,null,null,null,null,"Uträkning   för","statistik vunna resp.","förlorade ","dubblar och singlar."]
[{"$f":"DU5&EF5","v":"1(-)"},"Sandor Bodi","Växjö",{"$f":"IF(F5>0.5,(G5/F5),0)","v":224.44444444444446},null,{"$f":"COUNT(N5:BO5)","v":36},{"$f":"SUM(N5:BO5)","v":8080},null,{"$f":"COUNTIF(BQ5:DR5,2)","v":0},{"$f":"COUNTIF(BQ5:DR5,-2)","v":0},{"$f":"COUNTIF(BQ5:DR5,1)","v":0},{"$f":"COUNTIF(BQ5:DR5,-1)","v":0},{"$f":"IF(F5>0,(I5+K5)/(F5),0)","v":0},184,242,226,246,242,231,218,241,242,203,247,227,196,279,253,204,213,256,194,266,190,208,153,206,223,250,196,214,265,216,224,244,213,213,259,196,null,null,null,null,null,null,null,null,null,null,null,null,null,null,null,null,null,null,null,null,null,null,null,null,null,null,null,null,null,null,null,null,null,null,null,null,null,null,null,null,null,null,null,null,null,null,null,null,null,null,null,null,null,null,null,null,null,null,null,null,null,null,null,null,null,null,null,null,null,null,null,null,null,null,2,{"$f":"IF(AND(D5=D4,D5=D3,D5=D2,D5=D1),ROW(1:1),IF(AND(D5=D4,D5=D3,D5=D2),ROW(1:1),IF(AND(D5=D4,D5=D3),ROW(1:1),IF(D5=D4,ROW(1:1),IF(D5>1,ROW(1:1),\"-\")))))","v":1},{"$f":"IF(DX5=1,ROW(1:1),\"-\")","v":1},null,1,null,null,null,11,null,{"$f":"IF(DX5=1,DU5,IF(DX5=\"\",DU5,\"\"))","v":1},{"$f":"IF(DX5=1,\"(\"&DT5&\")\",\"(\"&DV5&\")\")","v":"(2)"},"(-)"]
[{"$f":"DU6&EF6","v":"2(-)"},"Tobias Gneupel","Sibbamåla",218.94736842105263,null,38,8320,null,0,0,0,0,0,315,259,258,196,249,242,305,188,151,222,211,195,230,231,172,220,242,196,207,158,231,281,207,244,182,215,306,256,188,250,212,186,158,160,162,188,195,252,null,null,null,null,null,null,null,null,null,null,null,null,null,null,null,null,null,null,null,null,null,null,null,null,null,null,null,null,null,null,null,null,null,null,null,null,null,null,null,null,null,null,null,null,null,null,null,null,null,null,null,null,null,null,null,null,null,null,null,null,null,null,null,null,null,null,null,null,null,null,null,null,1,{"$f":"IF(AND(D6=D5,D6=D4,D6=D3,D6=D2),ROW(1:1),IF(AND(D6=D5,D6=D4,D6=D3),ROW(1:1),IF(AND(D6=D5,D6=D4),ROW(1:1),IF(D6=D5,ROW(1:1),IF(D6>1,ROW(2:2),\"-\")))))","v":2},2,null,1,null,null,null,16,null,2,"(1)","(-)"]
[{"$f":"DU7&EF7","v":"3(-)"},"Kent Sundahl","Carlskrona",203.97619047619048,null,42,8567,null,0,0,0,0,0,281,239,179,238,227,176,187,265,219,254,229,203,125,198,213,137,184,174,172,211,185,204,181,207,210,198,198,275,249,211,171,187,209,151,129,208,192,231,302,125,251,182,null,null,null,null,null,null,null,null,null,null,null,null,null,null,null,null,null,null,null,null,null,null,null,null,null,null,null,null,null,null,null,null,null,null,null,null,null,null,null,null,null,null,null,null,null,null,null,null,null,null,null,null,null,null,null,null,null,null,null,null,null,null,null,null,null,null,null,null,3,{"$f":"IF(AND(D7=D6,D7=D5,D7=D4,D7=D3),ROW(1:1),IF(AND(D7=D6,D7=D5,D7=D4),ROW(1:1),IF(AND(D7=D6,D7=D5),ROW(1:1),IF(D7=D6,ROW(2:2),IF(D7>1,ROW(3:3),\"-\")))))","v":3},3,null,1,null,null,null,20,null,3,"(3)","(-)"]
["4(-)","Olle Ottosson","Dynapac Södra",189.89743589743588,null,39,7406,null,0,0,0,0,0,176,185,140,231,226,232,252,222,249,238,135,207,252,234,221,125,231,176,216,160,198,208,158,115,98,182,147,206,184,178,149,192,228,152,163,144,160,222,214,null,null,null,null,null,null,null,null,null,null,null,null,null,null,null,null,null,null,null,null,null,null,null,null,null,null,null,null,null,null,null,null,null,null,null,null,null,null,null,null,null,null,null,null,null,null,null,null,null,null,null,null,null,null,null,null,null,null,null,null,null,null,null,null,null,null,null,null,null,null,null,4,{"$f":"IF(AND(D8=D7,D8=D6,D8=D5),ROW(1:1),IF(AND(D8=D7,D8=D6),ROW(2:2),IF(D8=D7,ROW(3:3),IF(D8>1,ROW(4:4),\"-\"))))","v":4},4,null,1,null,null,null,4,null,4,"(4)","(-)"]
["5(-)","Jörgen Holmqvist","Tingsryd",179.83333333333334,null,6,1079,null,0,0,0,0,0,181,200,175,182,180,161,null,null,null,null,null,null,null,null,null,null,null,null,null,null,null,null,null,null,null,null,null,null,null,null,null,null,null,null,null,null,null,null,null,null,null,null,null,null,null,null,null,null,null,null,null,null,null,null,null,null,null,null,null,null,null,null,null,null,null,null,null,null,null,null,null,null,null,null,null,null,null,null,null,null,null,null,null,null,null,null,null,null,null,null,null,null,null,null,null,null,null,null,null,null,null,null,null,null,null,null,null,null,null,null,5,{"$f":"IF(D9>1,ROW(5:5),\"-\")","v":5},5,null,1,null,null,null,1,null,5,"(5)","(-)"]
["6(-)","Ingvar Eriksson","Carlskrona",176.07894736842104,null,38,6691,null,0,0,0,0,0,145,173,162,126,133,216,212,200,151,139,154,172,120,249,203,197,215,188,104,211,162,133,180,163,185,203,159,187,239,149,167,159,124,215,255,169,136,236,null,null,null,null,null,null,null,null,null,null,null,null,null,null,null,null,null,null,null,null,null,null,null,null,null,null,null,null,null,null,null,null,null,null,null,null,null,null,null,null,null,null,null,null,null,null,null,null,null,null,null,null,null,null,null,null,null,null,null,null,null,null,null,null,null,null,null,null,null,null,null,null,7,{"$f":"IF(D10=D9,ROW(5:5),IF(D10>1,ROW(6:6),\"-\"))","v":6},6,null,1,null,null,null,2,null,6,"(7)","(-)"]
["7(-)","Armin Sisic","Värends Hsk",175.28571428571428,null,21,3681,null,0,0,0,0,0,192,132,155,182,172,153,166,148,196,285,118,132,123,102,143,255,216,223,149,216,223,null,null,null,null,null,null,null,null,null,null,null,null,null,null,null,null,null,null,null,null,null,null,null,null,null,null,null,null,null,null,null,null,null,null,null,null,null,null,null,null,null,null,null,null,null,null,null,null,null,null,null,null,null,null,null,null,null,null,null,null,null,null,null,null,null,null,null,null,null,null,null,null,null,null,null,null,null,null,null,null,null,null,null,null,null,null,null,null,null,9,{"$f":"IF(AND(D11=D10,D11=D9,D11=D8,D11=D7),ROW(3:3),IF(AND(D11=D10,D11=D9,D11=D8),ROW(4:4),IF(AND(D11=D10,D11=D9),ROW(5:5),IF(D11=D10,ROW(6:6),IF(D11>1,ROW(7:7),\"-\")))))","v":7},7,null,1,null,null,null,5,null,7,"(9)","(-)"]
["8(-)","Johan Johansson","Tingsryd",172.75,null,40,6910,null,0,0,0,0,0,162,155,226,157,151,170,177,185,199,239,108,159,202,228,271,155,152,178,162,200,172,171,122,128,155,236,162,159,167,207,138,167,163,190,175,141,129,187,138,167,null,null,null,null,null,null,null,null,null,null,null,null,null,null,null,null,null,null,null,null,null,null,null,null,null,null,null,null,null,null,null,null,null,null,null,null,null,null,null,null,null,null,null,null,null,null,null,null,null,null,null,null,null,null,null,null,null,null,null,null,null,null,null,null,null,null,null,null,null,null,6,8,8,null,1,null,null,null,6,null,8,"(6)","(-)"]
["9(-)","Fredrik Lundin","Lanternan",169.5,null,4,678,null,0,0,0,0,0,178,153,157,190,null,null,null,null,null,null,null,null,null,null,null,null,null,null,null,null,null,null,null,null,null,null,null,null,null,null,null,null,null,null,null,null,null,null,null,null,null,null,null,null,null,null,null,null,null,null,null,null,null,null,null,null,null,null,null,null,null,null,null,null,null,null,null,null,null,null,null,null,null,null,null,null,null,null,null,null,null,null,null,null,null,null,null,null,null,null,null,null,null,null,null,null,null,null,null,null,null,null,null,null,null,null,null,null,null,null,88,9,9,null,1,null,null,null,8,null,9,"(88)","(-)"]
["10(-)","Matz Karlsson","Korpen Åseda",166.69696969696969,null,33,5501,null,0,0,0,0,0,147,145,160,221,150,128,136,185,182,188,164,181,174,130,138,187,210,164,318,198,121,131,146,133,192,144,126,215,196,135,89,158,209,null,null,null,null,null,null,null,null,null,null,null,null,null,null,null,null,null,null,null,null,null,null,null,null,null,null,null,null,null,null,null,null,null,null,null,null,null,null,null,null,null,null,null,null,null,null,null,null,null,null,null,null,null,null,null,null,null,null,null,null,null,null,null,null,null,null,null,null,null,null,null,null,null,null,null,null,null,8,10,10,null,1,null,null,null,12,null,10,"(8)","(-)"]
["11(-)","Magnus Israelsson","Sibbamåla ",157.31428571428572,null,35,5506,null,0,0,0,0,0,199,194,136,122,179,208,179,135,196,138,117,258,120,102,129,138,123,170,118,142,138,190,179,135,138,159,219,149,146,146,130,170,173,194,137,null,null,null,null,null,null,null,null,null,null,null,null,null,null,null,null,null,null,null,null,null,null,null,null,null,null,null,null,null,null,null,null,null,null,null,null,null,null,null,null,null,null,null,null,null,null,null,null,null,null,null,null,null,null,null,null,null,null,null,null,null,null,null,null,null,null,null,null,null,null,null,null,null,null,null,10,11,11,null,1,null,null,null,15,null,11,"(10)","(-)"]
["12(-)","Gert Karlsson","Korpen Åseda",156.57894736842104,null,19,2975,null,0,0,0,0,0,156,219,115,150,168,218,129,160,204,183,175,134,164,126,168,127,96,152,131,null,null,null,null,null,null,null,null,null,null,null,null,null,null,null,null,null,null,null,null,null,null,null,null,null,null,null,null,null,null,null,null,null,null,null,null,null,null,null,null,null,null,null,null,null,null,null,null,null,null,null,null,null,null,null,null,null,null,null,null,null,null,null,null,null,null,null,null,null,null,null,null,null,null,null,null,null,null,null,null,null,null,null,null,null,null,null,null,null,null,null,11,12,12,null,1,null,null,null,21,null,12,"(11)","(-)"]
["13(-)","Christer Eriksson","Korpen Nybro",155.4,null,5,777,null,0,0,0,0,0,129,118,182,179,169,null,null,null,null,null,null,null,null,null,null,null,null,null,null,null,null,null,null,null,null,null,null,null,null,null,null,null,null,null,null,null,null,null,null,null,null,null,null,null,null,null,null,null,null,null,null,null,null,null,null,null,null,null,null,null,null,null,null,null,null,null,null,null,null,null,null,null,null,null,null,null,null,null,null,null,null,null,null,null,null,null,null,null,null,null,null,null,null,null,null,null,null,null,null,null,null,null,null,null,null,null,null,null,null,null,13,13,13,null,1,null,null,null,3,null,13,"(13)","(-)"]
["14(-)","Anders Johansson","Dynapac Södra",153.39393939393941,null,33,5062,null,0,0,0,0,0,202,208,175,135,199,148,164,113,190,139,192,80,97,177,150,177,125,178,205,166,142,202,78,126,118,125,209,134,107,85,149,197,170,null,null,null,null,null,null,null,null,null,null,null,null,null,null,null,null,null,null,null,null,null,null,null,null,null,null,null,null,null,null,null,null,null,null,null,null,null,null,null,null,null,null,null,null,null,null,null,null,null,null,null,null,null,null,null,null,null,null,null,null,null,null,null,null,null,null,null,null,null,null,null,null,null,null,null,null,null,12,14,14,null,1,null,null,null,7,null,14,"(12)","(-)"]
["15(-)","Mattias Gneupel","Sibbamåla",152.83333333333334,null,36,5502,null,0,0,0,0,0,154,212,202,153,138,193,192,183,167,101,128,215,119,201,141,176,189,116,156,151,178,107,146,136,133,160,129,118,145,104,77,186,141,173,145,137,null,null,null,null,null,null,null,null,null,null,null,null,null,null,null,null,null,null,null,null,null,null,null,null,null,null,null,null,null,null,null,null,null,null,null,null,null,null,null,null,null,null,null,null,null,null,null,null,null,null,null,null,null,null,null,null,null,null,null,null,null,null,null,null,null,null,null,null,null,null,null,null,null,null,15,15,15,null,1,null,null,null,17,null,15,"(15)","(-)"]
["16(-)","Gebriela Kostantinos","Korpen Åseda",148.5625,null,32,4754,null,0,0,0,0,0,146,140,170,176,150,156,109,150,135,162,222,197,111,182,98,96,131,190,156,156,137,132,148,86,160,134,131,129,155,135,184,190,null,null,null,null,null,null,null,null,null,null,null,null,null,null,null,null,null,null,null,null,null,null,null,null,null,null,null,null,null,null,null,null,null,null,null,null,null,null,null,null,null,null,null,null,null,null,null,null,null,null,null,null,null,null,null,null,null,null,null,null,null,null,null,null,null,null,null,null,null,null,null,null,null,null,null,null,null,null,17,16,16,null,1,null,null,null,18,null,16,"(17)","(-)"]
["17(-)","Joel Sundahl","Carlskrona",147.33333333333334,null,27,3978,null,0,0,0,0,0,81,65,105,170,91,198,215,130,161,132,203,175,124,151,176,122,145,165,181,204,234,69,127,153,154,105,142,null,null,null,null,null,null,null,null,null,null,null,null,null,null,null,null,null,null,null,null,null,null,null,null,null,null,null,null,null,null,null,null,null,null,null,null,null,null,null,null,null,null,null,null,null,null,null,null,null,null,null,null,null,null,null,null,null,null,null,null,null,null,null,null,null,null,null,null,null,null,null,null,null,null,null,null,null,null,null,null,null,null,null,14,17,17,null,1,null,null,null,24,null,17,"(14)","(-)"]
["18(-)","Leo Andersson","Carlskrona",146.40909090909091,null,22,3221,null,0,0,0,0,0,230,133,141,153,162,165,114,150,122,124,131,197,142,100,156,147,120,185,111,118,181,139,null,null,null,null,null,null,null,null,null,null,null,null,null,null,null,null,null,null,null,null,null,null,null,null,null,null,null,null,null,null,null,null,null,null,null,null,null,null,null,null,null,null,null,null,null,null,null,null,null,null,null,null,null,null,null,null,null,null,null,null,null,null,null,null,null,null,null,null,null,null,null,null,null,null,null,null,null,null,null,null,null,null,null,null,null,null,null,null,18,18,18,null,1,null,null,null,9,null,18,"(18)","(-)"]
["19(-)","Roy Dahlén","Dynapac Södra",145.69444444444446,null,36,5245,null,0,0,0,0,0,205,189,201,154,178,172,237,131,154,148,133,68,151,177,92,119,97,136,118,128,148,101,132,182,121,118,90,161,115,74,154,129,217,197,151,167,null,null,null,null,null,null,null,null,null,null,null,null,null,null,null,null,null,null,null,null,null,null,null,null,null,null,null,null,null,null,null,null,null,null,null,null,null,null,null,null,null,null,null,null,null,null,null,null,null,null,null,null,null,null,null,null,null,null,null,null,null,null,null,null,null,null,null,null,null,null,null,null,null,null,20,19,19,null,1,null,null,null,10,null,19,"(20)","(-)"]
["20(-)","Lisbeth Nygaard-Karlsson","Tingsryd",144.19999999999999,null,35,5047,null,0,0,0,0,0,215,178,162,161,133,210,160,177,175,136,148,117,198,133,181,185,109,154,97,82,156,92,87,98,178,115,162,147,149,143,82,165,121,112,129,null,null,null,null,null,null,null,null,null,null,null,null,null,null,null,null,null,null,null,null,null,null,null,null,null,null,null,null,null,null,null,null,null,null,null,null,null,null,null,null,null,null,null,null,null,null,null,null,null,null,null,null,null,null,null,null,null,null,null,null,null,null,null,null,null,null,null,null,null,null,null,null,null,null,null,16,20,20,null,1,null,null,null,22,null,20,"(16)","(-)"]
["21(-)","Mathias Karlberg","Jämjö Hsk",142.9,null,20,2858,null,0,0,0,0,0,114,101,198,105,83,59,194,134,102,166,146,155,108,165,182,165,200,204,186,91,null,null,null,null,null,null,null,null,null,null,null,null,null,null,null,null,null,null,null,null,null,null,null,null,null,null,null,null,null,null,null,null,null,null,null,null,null,null,null,null,null,null,null,null,null,null,null,null,null,null,null,null,null,null,null,null,null,null,null,null,null,null,null,null,null,null,null,null,null,null,null,null,null,null,null,null,null,null,null,null,null,null,null,null,null,null,null,null,null,null,28,21,21,null,1,null,null,null,14,null,21,"(28)","(-)"]
["22(-)","Dan Hallstan","Växjö",141.34375,null,32,4523,null,0,0,0,0,0,88,165,172,149,144,81,152,97,132,102,134,160,203,181,112,79,115,85,173,181,128,134,126,150,211,115,135,182,152,239,135,111,null,null,null,null,null,null,null,null,null,null,null,null,null,null,null,null,null,null,null,null,null,null,null,null,null,null,null,null,null,null,null,null,null,null,null,null,null,null,null,null,null,null,null,null,null,null,null,null,null,null,null,null,null,null,null,null,null,null,null,null,null,null,null,null,null,null,null,null,null,null,null,null,null,null,null,null,null,null,24,22,22,null,1,null,null,null,13,null,22,"(24)","(-)"]
["23(-)","Dan Madayang","Korpen Åseda",140.47499999999999,null,40,5619,null,0,0,0,0,0,151,159,119,128,88,164,151,190,89,141,134,142,113,192,146,142,150,123,144,123,122,167,147,135,162,177,180,140,81,117,79,137,175,177,160,111,171,94,127,171,null,null,null,null,null,null,null,null,null,null,null,null,null,null,null,null,null,null,null,null,null,null,null,null,null,null,null,null,null,null,null,null,null,null,null,null,null,null,null,null,null,null,null,null,null,null,null,null,null,null,null,null,null,null,null,null,null,null,null,null,null,null,null,null,null,null,null,null,null,null,21,23,23,null,1,null,null,null,19,null,23,"(21)","(-)"]
["24(-)","Bo Petersson","Korpen Nybro",135.7391304347826,null,23,3122,null,0,0,0,0,0,152,160,116,127,199,143,105,167,185,134,163,107,117,109,131,106,159,105,111,161,141,111,113,null,null,null,null,null,null,null,null,null,null,null,null,null,null,null,null,null,null,null,null,null,null,null,null,null,null,null,null,null,null,null,null,null,null,null,null,null,null,null,null,null,null,null,null,null,null,null,null,null,null,null,null,null,null,null,null,null,null,null,null,null,null,null,null,null,null,null,null,null,null,null,null,null,null,null,null,null,null,null,null,null,null,null,null,null,null,null,22,{"$f":"IF(AND(D28=D27,D28=D26,D28=D25,D28=D24),ROW(20:20),IF(AND(D28=D27,D28=D26,D28=D25),ROW(21:21),IF(AND(D28=D27,D28=D26),ROW(22:22),IF(D28=D27,ROW(23:23),IF(D28>1,ROW(24:24),\"-\")))))","v":24},{"$f":"IF(DX28=1,ROW(24:24),\"-\")","v":24},null,1,null,null,null,28,null,{"$f":"IF(DX28=1,DU28,IF(DX28=\"\",DU28,\"\"))","v":24},{"$f":"IF(DX28=1,\"(\"&DT28&\")\",\"(\"&DV28&\")\")","v":"(22)"},"(-)"]
["25(-)","Lukas Bern","Dynapac Södra",135.65625,null,32,4341,null,0,0,0,0,0,136,154,146,155,175,103,114,230,157,125,74,141,86,124,156,162,170,128,129,105,154,105,124,132,138,184,113,158,139,142,58,124,null,null,null,null,null,null,null,null,null,null,null,null,null,null,null,null,null,null,null,null,null,null,null,null,null,null,null,null,null,null,null,null,null,null,null,null,null,null,null,null,null,null,null,null,null,null,null,null,null,null,null,null,null,null,null,null,null,null,null,null,null,null,null,null,null,null,null,null,null,null,null,null,null,null,null,null,null,null,23,{"$f":"IF(AND(D29=D28,D29=D27,D29=D26,D29=D25),ROW(21:21),IF(AND(D29=D28,D29=D27,D29=D26),ROW(22:22),IF(AND(D29=D28,D29=D27),ROW(23:23),IF(D29=D28,ROW(24:24),IF(D29>1,ROW(25:25),\"-\")))))","v":25},{"$f":"IF(DX29=1,ROW(25:25),\"-\")","v":25},null,1,null,null,null,23,null,{"$f":"IF(DX29=1,DU29,IF(DX29=\"\",DU29,\"\"))","v":25},{"$f":"IF(DX29=1,\"(\"&DT29&\")\",\"(\"&DV29&\")\")","v":"(23)"},"(-)"]
["26(-)","Göran Olofsson","Korpen Nybro",134.75,null,24,3234,null,0,0,0,0,0,125,187,138,114,164,125,187,132,153,113,169,144,137,162,175,122,182,116,102,72,141,78,81,115,null,null,null,null,null,null,null,null,null,null,null,null,null,null,null,null,null,null,null,null,null,null,null,null,null,null,null,null,null,null,null,null,null,null,null,null,null,null,null,null,null,null,null,null,null,null,null,null,null,null,null,null,null,null,null,null,null,null,null,null,null,null,null,null,null,null,null,null,null,null,null,null,null,null,null,null,null,null,null,null,null,null,null,null,null,null,19,{"$f":"IF(AND(D30=D29,D30=D28,D30=D27,D30=D26),ROW(22:22),IF(AND(D30=D29,D30=D28,D30=D27),ROW(23:23),IF(AND(D30=D29,D30=D28),ROW(24:24),IF(D30=D29,ROW(25:25),IF(D30>1,ROW(26:26),\"-\")))))","v":26},{"$f":"IF(DX30=1,ROW(26:26),\"-\")","v":26},null,1,null,null,null,25,null,{"$f":"IF(DX30=1,DU30,IF(DX30=\"\",DU30,\"\"))","v":26},{"$f":"IF(DX30=1,\"(\"&DT30&\")\",\"(\"&DV30&\")\")","v":"(19)"},"(-)"]
["27(-)","Anita Fabbeke","Dynapac Södra",133.79310344827587,null,29,3880,null,0,0,0,0,0,122,74,133,144,122,106,200,96,184,148,165,136,147,122,116,104,147,128,149,203,103,115,159,63,162,122,177,111,122,null,null,null,null,null,null,null,null,null,null,null,null,null,null,null,null,null,null,null,null,null,null,null,null,null,null,null,null,null,null,null,null,null,null,null,null,null,null,null,null,null,null,null,null,null,null,null,null,null,null,null,null,null,null,null,null,null,null,null,null,null,null,null,null,null,null,null,null,null,null,null,null,null,null,null,null,null,null,null,null,null,26,{"$f":"IF(AND(D31=D30,D31=D29,D31=D28,D31=D27),ROW(23:23),IF(AND(D31=D30,D31=D29,D31=D28),ROW(24:24),IF(AND(D31=D30,D31=D29),ROW(25:25),IF(D31=D30,ROW(26:26),IF(D31>1,ROW(27:27),\"-\")))))","v":27},{"$f":"IF(DX31=1,ROW(27:27),\"-\")","v":27},null,1,null,null,null,26,null,{"$f":"IF(DX31=1,DU31,IF(DX31=\"\",DU31,\"\"))","v":27},{"$f":"IF(DX31=1,\"(\"&DT31&\")\",\"(\"&DV31&\")\")","v":"(26)"},"(-)"]
["28(-)","Bo Fransson","Tingsryd",132.33333333333334,null,6,794,null,0,0,0,0,0,150,143,126,107,172,96,null,null,null,null,null,null,null,null,null,null,null,null,null,null,null,null,null,null,null,null,null,null,null,null,null,null,null,null,null,null,null,null,null,null,null,null,null,null,null,null,null,null,null,null,null,null,null,null,null,null,null,null,null,null,null,null,null,null,null,null,null,null,null,null,null,null,null,null,null,null,null,null,null,null,null,null,null,null,null,null,null,null,null,null,null,null,null,null,null,null,null,null,null,null,null,null,null,null,null,null,null,null,null,null,27,{"$f":"IF(AND(D32=D31,D32=D30,D32=D29,D32=D28),ROW(24:24),IF(AND(D32=D31,D32=D30,D32=D29),ROW(25:25),IF(AND(D32=D31,D32=D30),ROW(26:26),IF(D32=D31,ROW(27:27),IF(D32>1,ROW(28:28),\"-\")))))","v":28},{"$f":"IF(DX32=1,ROW(28:28),\"-\")","v":28},null,1,null,null,null,27,null,{"$f":"IF(DX32=1,DU32,IF(DX32=\"\",DU32,\"\"))","v":28},{"$f":"IF(DX32=1,\"(\"&DT32&\")\",\"(\"&DV32&\")\")","v":"(27)"},"(-)"]
["29(-)","Lasse Brincner","Värends Hsk",132.03333333333333,null,30,3961,null,0,0,0,0,0,95,116,125,125,132,122,161,171,163,159,129,209,99,128,100,131,177,63,101,129,115,131,165,108,201,155,142,96,132,81,null,null,null,null,null,null,null,null,null,null,null,null,null,null,null,null,null,null,null,null,null,null,null,null,null,null,null,null,null,null,null,null,null,null,null,null,null,null,null,null,null,null,null,null,null,null,null,null,null,null,null,null,null,null,null,null,null,null,null,null,null,null,null,null,null,null,null,null,null,null,null,null,null,null,null,null,null,null,null,null,25,29,29,null,1,null,null,null,29,null,29,"(25)","(-)"]
["30(-)","Sebastian Israelsson","Sibbamåla",128.24242424242425,null,33,4232,null,0,0,0,0,0,143,143,105,121,109,129,142,103,197,66,120,143,112,95,99,106,60,119,165,111,177,144,197,128,166,158,173,97,82,123,124,125,150,null,null,null,null,null,null,null,null,null,null,null,null,null,null,null,null,null,null,null,null,null,null,null,null,null,null,null,null,null,null,null,null,null,null,null,null,null,null,null,null,null,null,null,null,null,null,null,null,null,null,null,null,null,null,null,null,null,null,null,null,null,null,null,null,null,null,null,null,null,null,null,null,null,null,null,null,null,29,30,30,null,1,null,null,null,30,null,30,"(29)","(-)"]
["31(-)","Maire Johansson","Växjö",126.91428571428571,null,35,4442,null,0,0,0,0,0,172,78,139,111,149,94,128,101,120,131,194,116,117,170,186,124,147,175,93,146,80,95,143,98,87,93,109,114,132,209,117,115,111,111,137,null,null,null,null,null,null,null,null,null,null,null,null,null,null,null,null,null,null,null,null,null,null,null,null,null,null,null,null,null,null,null,null,null,null,null,null,null,null,null,null,null,null,null,null,null,null,null,null,null,null,null,null,null,null,null,null,null,null,null,null,null,null,null,null,null,null,null,null,null,null,null,null,null,null,null,30,31,31,null,1,null,null,null,31,null,31,"(30)","(-)"]
["32(-)","Ronny Lundberg","Lanternan",126.39285714285714,null,28,3539,null,0,0,0,0,0,131,130,136,138,120,99,64,102,157,170,160,138,150,115,106,65,95,184,95,129,70,141,146,142,144,188,163,61,null,null,null,null,null,null,null,null,null,null,null,null,null,null,null,null,null,null,null,null,null,null,null,null,null,null,null,null,null,null,null,null,null,null,null,null,null,null,null,null,null,null,null,null,null,null,null,null,null,null,null,null,null,null,null,null,null,null,null,null,null,null,null,null,null,null,null,null,null,null,null,null,null,null,null,null,null,null,null,null,null,null,36,32,32,null,1,null,null,null,32,null,32,"(36)","(-)"]
["33(-)","Hans Johansson","Tingsryd",{"$f":"IF(F37>0.5,(G37/F37),0)","v":125.32432432432432},null,{"$f":"COUNT(N37:BO37)","v":37},{"$f":"SUM(N37:BO37)","v":4637},null,{"$f":"COUNTIF(BQ37:DR37,2)","v":0},{"$f":"COUNTIF(BQ37:DR37,-2)","v":0},{"$f":"COUNTIF(BQ37:DR37,1)","v":0},{"$f":"COUNTIF(BQ37:DR37,-1)","v":0},{"$f":"IF(F37>0,(I37+K37)/(F37),0)","v":0},125,113,167,130,93,74,170,81,113,127,167,108,123,152,80,165,89,87,204,135,139,133,85,161,154,143,99,145,95,128,113,103,109,166,82,126,153,null,null,null,null,null,null,null,null,null,null,null,null,null,null,null,null,null,null,null,null,null,null,null,null,null,null,null,null,null,null,null,null,null,null,null,null,null,null,null,null,null,null,null,null,null,null,null,null,null,null,null,null,null,null,null,null,null,null,null,null,null,null,null,null,null,null,null,null,null,null,null,null,null,33,33,{"$f":"IF(DX37=1,ROW(33:33),\"-\")","v":33},null,1,null,null,null,33,null,{"$f":"IF(DX37=1,DU37,IF(DX37=\"\",DU37,\"\"))","v":33},{"$f":"IF(DX37=1,\"(\"&DT37&\")\",\"(\"&DV37&\")\")","v":"(33)"},"(-)"]
["34(-)","Ewa Malmqvist","Jämjö Hsk",125.24242424242425,null,33,4133,null,0,0,0,0,0,116,105,105,97,117,67,152,70,156,166,94,132,45,89,112,203,97,144,120,98,159,136,122,210,137,114,123,103,157,144,150,159,134,null,null,null,null,null,null,null,null,null,null,null,null,null,null,null,null,null,null,null,null,null,null,null,null,null,null,null,null,null,null,null,null,null,null,null,null,null,null,null,null,null,null,null,null,null,null,null,null,null,null,null,null,null,null,null,null,null,null,null,null,null,null,null,null,null,null,null,null,null,null,null,null,null,null,null,null,null,39,34,34,null,1,null,null,null,34,null,34,"(39)","(-)"]
["35(-)","Peter Olsson","Dynapac Södra",125.21875,null,32,4007,null,0,0,0,0,0,148,65,134,136,120,120,143,89,106,95,142,152,131,149,131,107,125,124,126,162,84,181,79,116,134,155,180,94,107,122,155,95,null,null,null,null,null,null,null,null,null,null,null,null,null,null,null,null,null,null,null,null,null,null,null,null,null,null,null,null,null,null,null,null,null,null,null,null,null,null,null,null,null,null,null,null,null,null,null,null,null,null,null,null,null,null,null,null,null,null,null,null,null,null,null,null,null,null,null,null,null,null,null,null,null,null,null,null,null,null,31,35,35,null,1,null,null,null,35,null,35,"(31)","(-)"]
["36(-)","Maj-Britt Jarl","Växjö",124.34146341463415,null,41,5098,null,0,0,0,0,0,132,183,137,167,66,160,113,172,89,127,104,148,160,127,116,148,158,105,150,89,113,191,116,74,144,95,110,104,93,120,157,122,126,112,71,124,108,106,106,157,98,null,null,null,null,null,null,null,null,null,null,null,null,null,null,null,null,null,null,null,null,null,null,null,null,null,null,null,null,null,null,null,null,null,null,null,null,null,null,null,null,null,null,null,null,null,null,null,null,null,null,null,null,null,null,null,null,null,null,null,null,null,null,null,null,null,null,null,null,null,34,36,36,null,1,null,null,null,36,null,36,"(34)","(-)"]
["37(-)","Bela Bodi","Växjö",123.38461538461539,null,39,4812,null,0,0,0,0,0,110,157,143,104,111,141,171,115,111,96,172,174,81,140,171,108,124,117,129,95,145,129,121,129,132,98,94,107,129,97,88,121,96,121,117,144,117,88,169,null,null,null,null,null,null,null,null,null,null,null,null,null,null,null,null,null,null,null,null,null,null,null,null,null,null,null,null,null,null,null,null,null,null,null,null,null,null,null,null,null,null,null,null,null,null,null,null,null,null,null,null,null,null,null,null,null,null,null,null,null,null,null,null,null,null,null,null,null,null,null,37,37,37,null,1,null,null,null,37,null,37,"(37)","(-)"]
["38(-)","Kjell Rydh","Korpen Nybro",123.03333333333333,null,30,3691,null,0,0,0,0,0,117,151,128,167,219,111,174,133,148,77,112,117,149,72,155,67,94,107,100,128,141,201,94,85,97,109,144,138,76,80,null,null,null,null,null,null,null,null,null,null,null,null,null,null,null,null,null,null,null,null,null,null,null,null,null,null,null,null,null,null,null,null,null,null,null,null,null,null,null,null,null,null,null,null,null,null,null,null,null,null,null,null,null,null,null,null,null,null,null,null,null,null,null,null,null,null,null,null,null,null,null,null,null,null,null,null,null,null,null,null,32,38,38,null,1,null,null,null,38,null,38,"(32)","(-)"]
["39(-)","Inge Skoglöw","Jämjö Hsk",122.4,null,5,612,null,0,0,0,0,0,118,175,68,103,148,null,null,null,null,null,null,null,null,null,null,null,null,null,null,null,null,null,null,null,null,null,null,null,null,null,null,null,null,null,null,null,null,null,null,null,null,null,null,null,null,null,null,null,null,null,null,null,null,null,null,null,null,null,null,null,null,null,null,null,null,null,null,null,null,null,null,null,null,null,null,null,null,null,null,null,null,null,null,null,null,null,null,null,null,null,null,null,null,null,null,null,null,null,null,null,null,null,null,null,null,null,null,null,null,null,38,{"$f":"IF(AND(D43=D42,D43=D41,D43=D40,D43=D39),ROW(35:35),IF(AND(D43=D42,D43=D41,D43=D40),ROW(36:36),IF(AND(D43=D42,D43=D41),ROW(37:37),IF(D43=D42,ROW(38:38),IF(D43>1,ROW(39:39),\"-\")))))","v":39},39,null,1,null,null,null,39,null,39,"(38)","(-)"]
["40(-)","Stephan Gervide","Korpen Nybro",121.85,null,20,2437,null,0,0,0,0,0,147,90,80,123,146,92,160,160,113,130,97,93,124,78,138,168,145,132,99,122,null,null,null,null,null,null,null,null,null,null,null,null,null,null,null,null,null,null,null,null,null,null,null,null,null,null,null,null,null,null,null,null,null,null,null,null,null,null,null,null,null,null,null,null,null,null,null,null,null,null,null,null,null,null,null,null,null,null,null,null,null,null,null,null,null,null,null,null,null,null,null,null,null,null,null,null,null,null,null,null,null,null,null,null,null,null,null,null,null,null,43,40,40,null,1,null,null,null,40,null,40,"(43)","(-)"]
["41(-)","Leif Sundahl","Carlskrona",121.79310344827586,null,29,3532,null,0,0,0,0,0,98,69,107,148,154,87,57,175,131,99,92,77,158,168,110,88,122,117,202,144,201,108,139,91,170,101,73,132,114,null,null,null,null,null,null,null,null,null,null,null,null,null,null,null,null,null,null,null,null,null,null,null,null,null,null,null,null,null,null,null,null,null,null,null,null,null,null,null,null,null,null,null,null,null,null,null,null,null,null,null,null,null,null,null,null,null,null,null,null,null,null,null,null,null,null,null,null,null,null,null,null,null,null,null,null,null,null,null,null,null,35,41,41,null,1,null,null,null,41,null,41,"(35)","(-)"]
["42(-)","Niklas Berglund","Växjö",121.2,null,5,606,null,0,0,0,0,0,118,138,163,99,88,null,null,null,null,null,null,null,null,null,null,null,null,null,null,null,null,null,null,null,null,null,null,null,null,null,null,null,null,null,null,null,null,null,null,null,null,null,null,null,null,null,null,null,null,null,null,null,null,null,null,null,null,null,null,null,null,null,null,null,null,null,null,null,null,null,null,null,null,null,null,null,null,null,null,null,null,null,null,null,null,null,null,null,null,null,null,null,null,null,null,null,null,null,null,null,null,null,null,null,null,null,null,null,null,null,89,42,42,null,1,null,null,null,42,null,42,"(89)","(-)"]
["43(-)","Bengt Fabbeke","Dynapac Södra",120.88888888888889,null,27,3264,null,0,0,0,0,0,146,84,106,97,102,88,116,125,93,175,103,108,154,90,101,121,98,140,166,127,167,153,130,94,132,125,123,null,null,null,null,null,null,null,null,null,null,null,null,null,null,null,null,null,null,null,null,null,null,null,null,null,null,null,null,null,null,null,null,null,null,null,null,null,null,null,null,null,null,null,null,null,null,null,null,null,null,null,null,null,null,null,null,null,null,null,null,null,null,null,null,null,null,null,null,null,null,null,null,null,null,null,null,null,null,null,null,null,null,null,40,43,43,null,1,null,null,null,43,null,43,"(40)","(-)"]
["44(-)","Tomas Lindahl","Korpen Åseda",120.5,null,22,2651,null,0,0,0,0,0,135,141,166,161,170,121,98,103,114,97,132,123,141,112,107,63,84,98,64,109,164,148,null,null,null,null,null,null,null,null,null,null,null,null,null,null,null,null,null,null,null,null,null,null,null,null,null,null,null,null,null,null,null,null,null,null,null,null,null,null,null,null,null,null,null,null,null,null,null,null,null,null,null,null,null,null,null,null,null,null,null,null,null,null,null,null,null,null,null,null,null,null,null,null,null,null,null,null,null,null,null,null,null,null,null,null,null,null,null,null,41,44,44,null,1,null,null,null,52,null,44,"(41)","(-)"]
["45(-)","Stefan Tollstam","Dynapac Södra",119.5,null,12,1434,null,0,0,0,0,0,79,143,107,80,80,66,104,168,191,121,183,112,null,null,null,null,null,null,null,null,null,null,null,null,null,null,null,null,null,null,null,null,null,null,null,null,null,null,null,null,null,null,null,null,null,null,null,null,null,null,null,null,null,null,null,null,null,null,null,null,null,null,null,null,null,null,null,null,null,null,null,null,null,null,null,null,null,null,null,null,null,null,null,null,null,null,null,null,null,null,null,null,null,null,null,null,null,null,null,null,null,null,null,null,null,null,null,null,null,null,63,45,45,null,1,null,null,null,44,null,45,"(63)","(-)"]
["46(-)","Christer Blomgren","Lanternan",117.95238095238095,null,21,2477,null,0,0,0,0,0,136,133,161,85,114,122,147,125,88,72,129,144,102,85,126,132,115,113,102,127,119,null,null,null,null,null,null,null,null,null,null,null,null,null,null,null,null,null,null,null,null,null,null,null,null,null,null,null,null,null,null,null,null,null,null,null,null,null,null,null,null,null,null,null,null,null,null,null,null,null,null,null,null,null,null,null,null,null,null,null,null,null,null,null,null,null,null,null,null,null,null,null,null,null,null,null,null,null,null,null,null,null,null,null,null,null,null,null,null,null,44,46,46,null,1,null,null,null,45,null,46,"(44)","(-)"]
["47(-)","Berndt Petersson","Lanternan",117.62068965517241,null,29,3411,null,0,0,0,0,0,138,89,118,181,145,121,136,155,125,115,104,169,98,111,81,142,117,112,80,97,67,110,152,75,135,88,128,109,113,null,null,null,null,null,null,null,null,null,null,null,null,null,null,null,null,null,null,null,null,null,null,null,null,null,null,null,null,null,null,null,null,null,null,null,null,null,null,null,null,null,null,null,null,null,null,null,null,null,null,null,null,null,null,null,null,null,null,null,null,null,null,null,null,null,null,null,null,null,null,null,null,null,null,null,null,null,null,null,null,null,42,47,47,null,1,null,null,null,46,null,47,"(42)","(-)"]
["48(-)","Lennart Karlsson","Tingsryd",116,null,29,3364,null,0,0,0,0,0,151,104,211,111,185,58,116,153,85,112,99,81,89,108,101,108,112,96,88,80,63,114,129,146,112,162,120,165,105,null,null,null,null,null,null,null,null,null,null,null,null,null,null,null,null,null,null,null,null,null,null,null,null,null,null,null,null,null,null,null,null,null,null,null,null,null,null,null,null,null,null,null,null,null,null,null,null,null,null,null,null,null,null,null,null,null,null,null,null,null,null,null,null,null,null,null,null,null,null,null,null,null,null,null,null,null,null,null,null,null,48,48,48,null,1,null,null,null,47,null,48,"(48)","(-)"]
["49(-)","Bengt Andersson","Växjö",115.8,null,25,2895,null,0,0,0,0,0,126,87,95,117,67,133,95,77,112,154,148,100,158,151,115,75,115,121,130,96,136,68,165,125,129,null,null,null,null,null,null,null,null,null,null,null,null,null,null,null,null,null,null,null,null,null,null,null,null,null,null,null,null,null,null,null,null,null,null,null,null,null,null,null,null,null,null,null,null,null,null,null,null,null,null,null,null,null,null,null,null,null,null,null,null,null,null,null,null,null,null,null,null,null,null,null,null,null,null,null,null,null,null,null,null,null,null,null,null,null,45,49,49,null,1,null,null,null,48,null,49,"(45)","(-)"]
["50(-)","Christian Balsiger","Värends Hsk",114.64864864864865,null,37,4242,null,0,0,0,0,0,145,122,124,107,166,133,111,83,144,177,113,137,101,127,98,95,116,110,139,98,87,69,116,149,177,95,135,99,94,36,95,67,162,103,111,90,111,null,null,null,null,null,null,null,null,null,null,null,null,null,null,null,null,null,null,null,null,null,null,null,null,null,null,null,null,null,null,null,null,null,null,null,null,null,null,null,null,null,null,null,null,null,null,null,null,null,null,null,null,null,null,null,null,null,null,null,null,null,null,null,null,null,null,null,null,null,null,null,null,null,46,50,50,null,1,null,null,null,49,null,50,"(46)","(-)"]
["51(-)","Peter Edlund","Dynapac Södra",112.90909090909091,null,22,2484,null,0,0,0,0,0,107,70,102,78,121,108,155,157,159,116,130,171,119,88,92,132,94,72,123,76,131,83,null,null,null,null,null,null,null,null,null,null,null,null,null,null,null,null,null,null,null,null,null,null,null,null,null,null,null,null,null,null,null,null,null,null,null,null,null,null,null,null,null,null,null,null,null,null,null,null,null,null,null,null,null,null,null,null,null,null,null,null,null,null,null,null,null,null,null,null,null,null,null,null,null,null,null,null,null,null,null,null,null,null,null,null,null,null,null,null,47,51,51,null,1,null,null,null,50,null,51,"(47)","(-)"]
["52(-)","Marcus Karlsson","Jämjö Hsk",110.34375,null,32,3531,null,0,0,0,0,0,109,130,81,93,93,141,114,119,129,93,110,151,112,104,86,66,82,125,103,148,145,53,102,122,127,130,149,110,82,115,116,91,null,null,null,null,null,null,null,null,null,null,null,null,null,null,null,null,null,null,null,null,null,null,null,null,null,null,null,null,null,null,null,null,null,null,null,null,null,null,null,null,null,null,null,null,null,null,null,null,null,null,null,null,null,null,null,null,null,null,null,null,null,null,null,null,null,null,null,null,null,null,null,null,null,null,null,null,null,null,49,52,52,null,1,null,null,null,51,null,52,"(49)","(-)"]
["53(-)","Lasse Nilsson","Värends Hsk",110.29166666666667,null,24,2647,null,0,0,0,0,0,125,59,126,42,159,129,97,151,99,106,112,98,84,70,169,60,148,121,105,83,113,122,65,204,null,null,null,null,null,null,null,null,null,null,null,null,null,null,null,null,null,null,null,null,null,null,null,null,null,null,null,null,null,null,null,null,null,null,null,null,null,null,null,null,null,null,null,null,null,null,null,null,null,null,null,null,null,null,null,null,null,null,null,null,null,null,null,null,null,null,null,null,null,null,null,null,null,null,null,null,null,null,null,null,null,null,null,null,null,null,51,53,53,null,1,null,null,null,53,null,53,"(51)","(-)"]
["54(-)","Kerstin Svensson","Växjö",109.51851851851852,null,27,2957,null,0,0,0,0,0,94,116,107,89,90,95,41,84,111,123,96,138,148,97,137,59,102,86,121,167,97,132,165,140,131,104,87,null,null,null,null,null,null,null,null,null,null,null,null,null,null,null,null,null,null,null,null,null,null,null,null,null,null,null,null,null,null,null,null,null,null,null,null,null,null,null,null,null,null,null,null,null,null,null,null,null,null,null,null,null,null,null,null,null,null,null,null,null,null,null,null,null,null,null,null,null,null,null,null,null,null,null,null,null,null,null,null,null,null,null,58,54,54,null,1,null,null,null,109,null,54,"(58)","(-)"]
["55(-)","Göran Mårtensson","Jämjö Hsk",109.34782608695652,null,23,2515,null,0,0,0,0,0,142,139,129,85,118,71,97,77,104,100,115,88,67,165,89,71,155,172,155,100,50,107,119,null,null,null,null,null,null,null,null,null,null,null,null,null,null,null,null,null,null,null,null,null,null,null,null,null,null,null,null,null,null,null,null,null,null,null,null,null,null,null,null,null,null,null,null,null,null,null,null,null,null,null,null,null,null,null,null,null,null,null,null,null,null,null,null,null,null,null,null,null,null,null,null,null,null,null,null,null,null,null,null,null,null,null,null,null,null,null,57,55,55,null,1,null,null,null,54,null,55,"(57)","(-)"]
["56(-)","Jan Petersson","Lanternan",108.29411764705883,null,17,1841,null,0,0,0,0,0,78,105,127,92,139,118,98,134,117,104,53,79,89,88,131,141,148,null,null,null,null,null,null,null,null,null,null,null,null,null,null,null,null,null,null,null,null,null,null,null,null,null,null,null,null,null,null,null,null,null,null,null,null,null,null,null,null,null,null,null,null,null,null,null,null,null,null,null,null,null,null,null,null,null,null,null,null,null,null,null,null,null,null,null,null,null,null,null,null,null,null,null,null,null,null,null,null,null,null,null,null,null,null,null,null,null,null,null,null,null,50,56,56,null,1,null,null,null,55,null,56,"(50)","(-)"]
["57(-)","Bernt Olsson","Jämjö Hsk",108.17241379310344,null,29,3137,null,0,0,0,0,0,128,115,82,89,65,91,90,106,123,128,73,64,147,93,141,96,81,99,91,188,183,114,117,78,52,85,107,149,162,null,null,null,null,null,null,null,null,null,null,null,null,null,null,null,null,null,null,null,null,null,null,null,null,null,null,null,null,null,null,null,null,null,null,null,null,null,null,null,null,null,null,null,null,null,null,null,null,null,null,null,null,null,null,null,null,null,null,null,null,null,null,null,null,null,null,null,null,null,null,null,null,null,null,null,null,null,null,null,null,null,54,57,57,null,1,null,null,null,56,null,57,"(54)","(-)"]
["58(-)","Christer Brincner","Värends Hsk",108,null,3,324,null,0,0,0,0,0,99,113,112,null,null,null,null,null,null,null,null,null,null,null,null,null,null,null,null,null,null,null,null,null,null,null,null,null,null,null,null,null,null,null,null,null,null,null,null,null,null,null,null,null,null,null,null,null,null,null,null,null,null,null,null,null,null,null,null,null,null,null,null,null,null,null,null,null,null,null,null,null,null,null,null,null,null,null,null,null,null,null,null,null,null,null,null,null,null,null,null,null,null,null,null,null,null,null,null,null,null,null,null,null,null,null,null,null,null,null,52,58,58,null,1,null,null,null,57,null,58,"(52)","(-)"]
["59(-)","Marianne Karlsson","Jämjö Hsk",107.93548387096774,null,31,3346,null,0,0,0,0,0,130,101,80,116,114,152,157,176,92,130,114,69,141,68,70,135,130,115,84,75,87,129,124,61,87,60,124,48,112,93,172,null,null,null,null,null,null,null,null,null,null,null,null,null,null,null,null,null,null,null,null,null,null,null,null,null,null,null,null,null,null,null,null,null,null,null,null,null,null,null,null,null,null,null,null,null,null,null,null,null,null,null,null,null,null,null,null,null,null,null,null,null,null,null,null,null,null,null,null,null,null,null,null,null,null,null,null,null,null,null,55,59,59,null,1,null,null,null,58,null,59,"(55)","(-)"]
["60(-)","Martin Antic","Värends Hsk",107.92307692307692,null,13,1403,null,0,0,0,0,0,107,84,61,131,74,128,153,137,116,145,57,116,94,null,null,null,null,null,null,null,null,null,null,null,null,null,null,null,null,null,null,null,null,null,null,null,null,null,null,null,null,null,null,null,null,null,null,null,null,null,null,null,null,null,null,null,null,null,null,null,null,null,null,null,null,null,null,null,null,null,null,null,null,null,null,null,null,null,null,null,null,null,null,null,null,null,null,null,null,null,null,null,null,null,null,null,null,null,null,null,null,null,null,null,null,null,null,null,null,null,53,60,60,null,1,null,null,null,59,null,60,"(53)","(-)"]
["61(-)","Ingegerd Pettersson","Lanternan",107,null,16,1712,null,0,0,0,0,0,113,115,176,134,140,73,91,89,93,161,115,69,82,97,88,76,null,null,null,null,null,null,null,null,null,null,null,null,null,null,null,null,null,null,null,null,null,null,null,null,null,null,null,null,null,null,null,null,null,null,null,null,null,null,null,null,null,null,null,null,null,null,null,null,null,null,null,null,null,null,null,null,null,null,null,null,null,null,null,null,null,null,null,null,null,null,null,null,null,null,null,null,null,null,null,null,null,null,null,null,null,null,null,null,null,null,null,null,null,null,56,61,61,null,1,null,null,null,60,null,61,"(56)","(-)"]
["62(-)","Åke Bergkvist","Tingsryd",104.19354838709677,null,31,3230,null,0,0,0,0,0,114,119,52,135,141,123,89,151,137,98,84,41,86,98,134,166,99,171,104,60,87,143,90,113,98,49,71,71,111,105,90,null,null,null,null,null,null,null,null,null,null,null,null,null,null,null,null,null,null,null,null,null,null,null,null,null,null,null,null,null,null,null,null,null,null,null,null,null,null,null,null,null,null,null,null,null,null,null,null,null,null,null,null,null,null,null,null,null,null,null,null,null,null,null,null,null,null,null,null,null,null,null,null,null,null,null,null,null,null,null,59,62,62,null,1,null,null,null,61,null,62,"(59)","(-)"]
["63(-)","Clara Larsson","Värends Hsk",100.19230769230769,null,26,2605,null,0,0,0,0,0,89,65,111,89,99,109,112,68,89,72,122,94,127,103,57,132,105,131,121,132,78,156,100,64,58,122,null,null,null,null,null,null,null,null,null,null,null,null,null,null,null,null,null,null,null,null,null,null,null,null,null,null,null,null,null,null,null,null,null,null,null,null,null,null,null,null,null,null,null,null,null,null,null,null,null,null,null,null,null,null,null,null,null,null,null,null,null,null,null,null,null,null,null,null,null,null,null,null,null,null,null,null,null,null,null,null,null,null,null,null,60,63,63,null,1,null,null,null,62,null,63,"(60)","(-)"]
["64(-)","Mats Mårtensson","Jämjö Hsk",99.368421052631575,null,19,1888,null,0,0,0,0,0,75,68,75,133,98,70,122,111,115,57,85,71,107,123,110,156,109,121,82,null,null,null,null,null,null,null,null,null,null,null,null,null,null,null,null,null,null,null,null,null,null,null,null,null,null,null,null,null,null,null,null,null,null,null,null,null,null,null,null,null,null,null,null,null,null,null,null,null,null,null,null,null,null,null,null,null,null,null,null,null,null,null,null,null,null,null,null,null,null,null,null,null,null,null,null,null,null,null,null,null,null,null,null,null,null,null,null,null,null,null,61,64,64,null,1,null,null,null,64,null,64,"(61)","(-)"]
["65(-)","Göran Persson","Dynapac Södra",{"$f":"IF(F69>0.5,(G69/F69),0)","v":99},null,{"$f":"COUNT(N69:BO69)","v":5},{"$f":"SUM(N69:BO69)","v":495},null,{"$f":"COUNTIF(BQ69:DR69,2)","v":0},{"$f":"COUNTIF(BQ69:DR69,-2)","v":0},{"$f":"COUNTIF(BQ69:DR69,1)","v":0},{"$f":"COUNTIF(BQ69:DR69,-1)","v":0},{"$f":"IF(F69>0,(I69+K69)/(F69),0)","v":0},124,62,110,93,106,null,null,null,null,null,null,null,null,null,null,null,null,null,null,null,null,null,null,null,null,null,null,null,null,null,null,null,null,null,null,null,null,null,null,null,null,null,null,null,null,null,null,null,null,null,null,null,null,null,null,null,null,null,null,null,null,null,null,null,null,null,null,null,null,null,null,null,null,null,null,null,null,null,null,null,null,null,null,null,null,null,null,null,null,null,null,null,null,null,null,null,null,null,null,null,null,null,null,null,null,null,null,null,null,null,62,65,{"$f":"IF(DX69=1,ROW(65:65),\"-\")","v":65},null,1,null,null,null,65,null,{"$f":"IF(DX69=1,DU69,IF(DX69=\"\",DU69,\"\"))","v":65},{"$f":"IF(DX69=1,\"(\"&DT69&\")\",\"(\"&DV69&\")\")","v":"(62)"},"(-)"]
["66(-)","Gilbert Pettersson","Lanternan",95.5,null,4,382,null,0,0,0,0,0,69,116,66,131,null,null,null,null,null,null,null,null,null,null,null,null,null,null,null,null,null,null,null,null,null,null,null,null,null,null,null,null,null,null,null,null,null,null,null,null,null,null,null,null,null,null,null,null,null,null,null,null,null,null,null,null,null,null,null,null,null,null,null,null,null,null,null,null,null,null,null,null,null,null,null,null,null,null,null,null,null,null,null,null,null,null,null,null,null,null,null,null,null,null,null,null,null,null,null,null,null,null,null,null,null,null,null,null,null,null,87,66,66,null,1,null,null,null,66,null,66,"(87)","(-)"]
[{"$f":"DU71&EF71","v":"67(-)"},"Ann-Marie Larsson","Tingsryd",95,null,14,1330,null,0,0,0,0,0,98,105,105,66,31,51,71,72,152,75,120,132,125,127,null,null,null,null,null,null,null,null,null,null,null,null,null,null,null,null,null,null,null,null,null,null,null,null,null,null,null,null,null,null,null,null,null,null,null,null,null,null,null,null,null,null,null,null,null,null,null,null,null,null,null,null,null,null,null,null,null,null,null,null,null,null,null,null,null,null,null,null,null,null,null,null,null,null,null,null,null,null,null,null,null,null,null,null,null,null,null,null,null,null,null,null,null,null,null,null,68,67,67,null,1,null,null,null,67,null,67,"(68)","(-)"]
["68(-)","Lars-Åke Karlsson","Jämjö Hsk",93.535714285714292,null,28,2619,null,0,0,0,0,0,71,108,121,114,87,136,134,98,153,83,49,49,46,90,84,116,57,86,93,91,108,65,95,114,104,50,110,107,null,null,null,null,null,null,null,null,null,null,null,null,null,null,null,null,null,null,null,null,null,null,null,null,null,null,null,null,null,null,null,null,null,null,null,null,null,null,null,null,null,null,null,null,null,null,null,null,null,null,null,null,null,null,null,null,null,null,null,null,null,null,null,null,null,null,null,null,null,null,null,null,null,null,null,null,null,null,null,null,null,null,64,68,68,null,1,null,null,null,68,null,68,"(64)","(-)"]
["69(-)","Kevin Rydell","Värends Hsk",91,null,3,273,null,0,0,0,0,0,108,91,74,null,null,null,null,null,null,null,null,null,null,null,null,null,null,null,null,null,null,null,null,null,null,null,null,null,null,null,null,null,null,null,null,null,null,null,null,null,null,null,null,null,null,null,null,null,null,null,null,null,null,null,null,null,null,null,null,null,null,null,null,null,null,null,null,null,null,null,null,null,null,null,null,null,null,null,null,null,null,null,null,null,null,null,null,null,null,null,null,null,null,null,null,null,null,null,null,null,null,null,null,null,null,null,null,null,null,null,65,69,69,null,1,null,null,null,69,null,69,"(65)","(-)"]
["69(-)","Nils-Åke Hansson","Korpen Nybro",91,null,14,1274,null,0,0,0,0,0,72,120,105,61,87,61,81,85,106,92,108,83,98,115,null,null,null,null,null,null,null,null,null,null,null,null,null,null,null,null,null,null,null,null,null,null,null,null,null,null,null,null,null,null,null,null,null,null,null,null,null,null,null,null,null,null,null,null,null,null,null,null,null,null,null,null,null,null,null,null,null,null,null,null,null,null,null,null,null,null,null,null,null,null,null,null,null,null,null,null,null,null,null,null,null,null,null,null,null,null,null,null,null,null,null,null,null,null,null,null,65,69,70,null,1,null,null,null,70,null,69,"(65)","(-)"]
["71(-)","Alf Svensson","Korpen Åseda",88,null,2,176,null,0,0,0,0,0,99,77,null,null,null,null,null,null,null,null,null,null,null,null,null,null,null,null,null,null,null,null,null,null,null,null,null,null,null,null,null,null,null,null,null,null,null,null,null,null,null,null,null,null,null,null,null,null,null,null,null,null,null,null,null,null,null,null,null,null,null,null,null,null,null,null,null,null,null,null,null,null,null,null,null,null,null,null,null,null,null,null,null,null,null,null,null,null,null,null,null,null,null,null,null,null,null,null,null,null,null,null,null,null,null,null,null,null,null,null,67,{"$f":"IF(AND(D75=D74,D75=D73,D75=D72,D75=D71),ROW(67:67),IF(AND(D75=D74,D75=D73,D75=D72),ROW(68:68),IF(AND(D75=D74,D75=D73),ROW(69:69),IF(D75=D74,ROW(70:70),IF(D75>1,ROW(71:71),\"-\")))))","v":71},71,null,1,null,null,null,114,null,71,"(67)","(-)"]
["72(-)","Julius Gneupel","Dynapac Södra",85.5,null,4,342,null,0,0,0,0,0,92,84,87,79,null,null,null,null,null,null,null,null,null,null,null,null,null,null,null,null,null,null,null,null,null,null,null,null,null,null,null,null,null,null,null,null,null,null,null,null,null,null,null,null,null,null,null,null,null,null,null,null,null,null,null,null,null,null,null,null,null,null,null,null,null,null,null,null,null,null,null,null,null,null,null,null,null,null,null,null,null,null,null,null,null,null,null,null,null,null,null,null,null,null,null,null,null,null,null,null,null,null,null,null,null,null,null,null,null,null,86,72,72,null,1,null,null,null,71,null,72,"(86)","(-)"]
["73(-)","Karin Gullbrand","Värends Hsk",83.6,null,10,836,null,0,0,0,0,0,73,52,103,64,138,112,92,77,41,84,null,null,null,null,null,null,null,null,null,null,null,null,null,null,null,null,null,null,null,null,null,null,null,null,null,null,null,null,null,null,null,null,null,null,null,null,null,null,null,null,null,null,null,null,null,null,null,null,null,null,null,null,null,null,null,null,null,null,null,null,null,null,null,null,null,null,null,null,null,null,null,null,null,null,null,null,null,null,null,null,null,null,null,null,null,null,null,null,null,null,null,null,null,null,null,null,null,null,null,null,70,73,73,null,1,null,null,null,111,null,73,"(70)","(-)"]
["74(-)","Rolf Johannesson","Värends Hsk",83.15789473684211,null,19,1580,null,0,0,0,0,0,94,66,113,109,116,67,74,107,38,102,105,74,62,91,57,100,54,69,82,null,null,null,null,null,null,null,null,null,null,null,null,null,null,null,null,null,null,null,null,null,null,null,null,null,null,null,null,null,null,null,null,null,null,null,null,null,null,null,null,null,null,null,null,null,null,null,null,null,null,null,null,null,null,null,null,null,null,null,null,null,null,null,null,null,null,null,null,null,null,null,null,null,null,null,null,null,null,null,null,null,null,null,null,null,null,null,null,null,null,null,69,74,74,null,1,null,null,null,72,null,74,"(69)","(-)"]
["75(-)","Olle Nilsson","Tingsryd",82.96,null,25,2074,null,0,0,0,0,0,92,96,103,57,56,52,102,27,120,75,163,81,98,123,109,62,75,68,85,122,67,45,44,92,60,null,null,null,null,null,null,null,null,null,null,null,null,null,null,null,null,null,null,null,null,null,null,null,null,null,null,null,null,null,null,null,null,null,null,null,null,null,null,null,null,null,null,null,null,null,null,null,null,null,null,null,null,null,null,null,null,null,null,null,null,null,null,null,null,null,null,null,null,null,null,null,null,null,null,null,null,null,null,null,null,null,null,null,null,null,71,75,75,null,1,null,null,null,73,null,75,"(71)","(-)"]
["76(-)","Annika K. Milsten","Tingsryd",78.705882352941174,null,17,1338,null,0,0,0,0,0,87,49,61,108,69,117,92,71,55,44,94,73,120,85,66,65,82,null,null,null,null,null,null,null,null,null,null,null,null,null,null,null,null,null,null,null,null,null,null,null,null,null,null,null,null,null,null,null,null,null,null,null,null,null,null,null,null,null,null,null,null,null,null,null,null,null,null,null,null,null,null,null,null,null,null,null,null,null,null,null,null,null,null,null,null,null,null,null,null,null,null,null,null,null,null,null,null,null,null,null,null,null,null,null,null,null,null,null,null,null,73,76,76,null,1,null,null,null,74,null,76,"(73)","(-)"]
["77(-)","Alf Johansson","Värends Hsk",77.681818181818187,null,22,1709,null,0,0,0,0,0,87,86,65,61,47,79,121,88,115,95,85,78,79,51,47,74,44,141,125,52,48,41,null,null,null,null,null,null,null,null,null,null,null,null,null,null,null,null,null,null,null,null,null,null,null,null,null,null,null,null,null,null,null,null,null,null,null,null,null,null,null,null,null,null,null,null,null,null,null,null,null,null,null,null,null,null,null,null,null,null,null,null,null,null,null,null,null,null,null,null,null,null,null,null,null,null,null,null,null,null,null,null,null,null,null,null,null,null,null,null,72,77,77,null,1,null,null,null,75,null,77,"(72)","(-)"]
["78(-)","Thomas Dahl","Växjö",77,null,25,1925,null,0,0,0,0,0,82,101,50,55,132,47,66,101,75,89,38,74,132,85,65,83,81,57,53,80,75,82,105,60,57,null,null,null,null,null,null,null,null,null,null,null,null,null,null,null,null,null,null,null,null,null,null,null,null,null,null,null,null,null,null,null,null,null,null,null,null,null,null,null,null,null,null,null,null,null,null,null,null,null,null,null,null,null,null,null,null,null,null,null,null,null,null,null,null,null,null,null,null,null,null,null,null,null,null,null,null,null,null,null,null,null,null,null,null,null,75,78,78,null,1,null,null,null,76,null,78,"(75)","(-)"]
["79(-)","Anders Karlsson","Värends Hsk",75.5,null,18,1359,null,0,0,0,0,0,69,93,88,88,30,64,61,126,53,64,151,63,67,97,60,70,55,60,null,null,null,null,null,null,null,null,null,null,null,null,null,null,null,null,null,null,null,null,null,null,null,null,null,null,null,null,null,null,null,null,null,null,null,null,null,null,null,null,null,null,null,null,null,null,null,null,null,null,null,null,null,null,null,null,null,null,null,null,null,null,null,null,null,null,null,null,null,null,null,null,null,null,null,null,null,null,null,null,null,null,null,null,null,null,null,null,null,null,null,null,74,79,79,null,1,null,null,null,77,null,79,"(74)","(-)"]
["80(-)","Kerstin Magnusson","Växjö ",74.222222222222229,null,9,668,null,0,0,0,0,0,52,69,40,75,109,104,40,101,78,null,null,null,null,null,null,null,null,null,null,null,null,null,null,null,null,null,null,null,null,null,null,null,null,null,null,null,null,null,null,null,null,null,null,null,null,null,null,null,null,null,null,null,null,null,null,null,null,null,null,null,null,null,null,null,null,null,null,null,null,null,null,null,null,null,null,null,null,null,null,null,null,null,null,null,null,null,null,null,null,null,null,null,null,null,null,null,null,null,null,null,null,null,null,null,null,null,null,null,null,null,76,80,80,null,1,null,null,null,78,null,80,"(76)","(-)"]
["81(-)","Mikael Bodi","Växjö",70.75,null,8,566,null,0,0,0,0,0,112,111,114,86,50,17,14,62,null,null,null,null,null,null,null,null,null,null,null,null,null,null,null,null,null,null,null,null,null,null,null,null,null,null,null,null,null,null,null,null,null,null,null,null,null,null,null,null,null,null,null,null,null,null,null,null,null,null,null,null,null,null,null,null,null,null,null,null,null,null,null,null,null,null,null,null,null,null,null,null,null,null,null,null,null,null,null,null,null,null,null,null,null,null,null,null,null,null,null,null,null,null,null,null,null,null,null,null,null,null,77,81,81,null,1,null,null,null,79,null,81,"(77)","(-)"]
["82(-)","Gunnar Lundbeck","Tingsryd",67.722222222222229,null,18,1219,null,0,0,0,0,0,50,68,97,90,115,71,48,68,94,68,26,51,88,58,60,54,59,54,null,null,null,null,null,null,null,null,null,null,null,null,null,null,null,null,null,null,null,null,null,null,null,null,null,null,null,null,null,null,null,null,null,null,null,null,null,null,null,null,null,null,null,null,null,null,null,null,null,null,null,null,null,null,null,null,null,null,null,null,null,null,null,null,null,null,null,null,null,null,null,null,null,null,null,null,null,null,null,null,null,null,null,null,null,null,null,null,null,null,null,null,79,82,82,null,1,null,null,null,80,null,82,"(79)","(-)"]
["83(-)","Hanna Karlberg","Jämjö Hsk",67.388888888888886,null,18,1213,null,0,0,0,0,0,58,74,37,50,42,75,82,62,85,90,74,75,88,101,37,54,71,58,null,null,null,null,null,null,null,null,null,null,null,null,null,null,null,null,null,null,null,null,null,null,null,null,null,null,null,null,null,null,null,null,null,null,null,null,null,null,null,null,null,null,null,null,null,null,null,null,null,null,null,null,null,null,null,null,null,null,null,null,null,null,null,null,null,null,null,null,null,null,null,null,null,null,null,null,null,null,null,null,null,null,null,null,null,null,null,null,null,null,null,null,78,83,83,null,1,null,null,null,81,null,83,"(78)","(-)"]
["84(-)","Ulrika Rydell","Värends Hsk",57.666666666666664,null,3,173,null,0,0,0,0,0,36,91,46,null,null,null,null,null,null,null,null,null,null,null,null,null,null,null,null,null,null,null,null,null,null,null,null,null,null,null,null,null,null,null,null,null,null,null,null,null,null,null,null,null,null,null,null,null,null,null,null,null,null,null,null,null,null,null,null,null,null,null,null,null,null,null,null,null,null,null,null,null,null,null,null,null,null,null,null,null,null,null,null,null,null,null,null,null,null,null,null,null,null,null,null,null,null,null,null,null,null,null,null,null,null,null,null,null,null,null,80,84,84,null,1,null,null,null,82,null,84,"(80)","(-)"]
["85(-)","Allan Persson","Tingsryd",57,null,2,114,null,0,0,0,0,0,69,45,null,null,null,null,null,null,null,null,null,null,null,null,null,null,null,null,null,null,null,null,null,null,null,null,null,null,null,null,null,null,null,null,null,null,null,null,null,null,null,null,null,null,null,null,null,null,null,null,null,null,null,null,null,null,null,null,null,null,null,null,null,null,null,null,null,null,null,null,null,null,null,null,null,null,null,null,null,null,null,null,null,null,null,null,null,null,null,null,null,null,null,null,null,null,null,null,null,null,null,null,null,null,null,null,null,null,null,null,81,85,85,null,1,null,null,null,83,null,85,"(81)","(-)"]
["86(-)","Ulrika Strandahl","Växjö",56,null,2,112,null,0,0,0,0,0,51,61,null,null,null,null,null,null,null,null,null,null,null,null,null,null,null,null,null,null,null,null,null,null,null,null,null,null,null,null,null,null,null,null,null,null,null,null,null,null,null,null,null,null,null,null,null,null,null,null,null,null,null,null,null,null,null,null,null,null,null,null,null,null,null,null,null,null,null,null,null,null,null,null,null,null,null,null,null,null,null,null,null,null,null,null,null,null,null,null,null,null,null,null,null,null,null,null,null,null,null,null,null,null,null,null,null,null,null,null,82,86,86,null,1,null,null,null,84,null,86,"(82)","(-)"]
["87(-)","Solveig Brincner","Värends Hsk",55.4,null,5,277,null,0,0,0,0,0,78,27,49,75,48,null,null,null,null,null,null,null,null,null,null,null,null,null,null,null,null,null,null,null,null,null,null,null,null,null,null,null,null,null,null,null,null,null,null,null,null,null,null,null,null,null,null,null,null,null,null,null,null,null,null,null,null,null,null,null,null,null,null,null,null,null,null,null,null,null,null,null,null,null,null,null,null,null,null,null,null,null,null,null,null,null,null,null,null,null,null,null,null,null,null,null,null,null,null,null,null,null,null,null,null,null,null,null,null,null,83,87,87,null,1,null,null,null,85,null,87,"(83)","(-)"]
["88(-)","Tommy Svensson","Värends Hsk",46.857142857142854,null,7,328,null,0,0,0,0,0,53,33,53,40,83,20,46,null,null,null,null,null,null,null,null,null,null,null,null,null,null,null,null,null,null,null,null,null,null,null,null,null,null,null,null,null,null,null,null,null,null,null,null,null,null,null,null,null,null,null,null,null,null,null,null,null,null,null,null,null,null,null,null,null,null,null,null,null,null,null,null,null,null,null,null,null,null,null,null,null,null,null,null,null,null,null,null,null,null,null,null,null,null,null,null,null,null,null,null,null,null,null,null,null,null,null,null,null,null,null,84,88,88,null,1,null,null,null,86,null,88,"(84)","(-)"]
["89(-)","Arne Blidh","Lanternan",43,null,5,215,null,0,0,0,0,0,47,60,41,36,31,null,null,null,null,null,null,null,null,null,null,null,null,null,null,null,null,null,null,null,null,null,null,null,null,null,null,null,null,null,null,null,null,null,null,null,null,null,null,null,null,null,null,null,null,null,null,null,null,null,null,null,null,null,null,null,null,null,null,null,null,null,null,null,null,null,null,null,null,null,null,null,null,null,null,null,null,null,null,null,null,null,null,null,null,null,null,null,null,null,null,null,null,null,null,null,null,null,null,null,null,null,null,null,null,null,85,89,89,null,1,null,null,null,87,null,89,"(85)","(-)"]
["-(-)",null,null,0,null,0,0,null,0,0,0,0,0,null,null,null,null,null,null,null,null,null,null,null,null,null,null,null,null,null,null,null,null,null,null,null,null,null,null,null,null,null,null,null,null,null,null,null,null,null,null,null,null,null,null,null,null,null,null,null,null,null,null,null,null,null,null,null,null,null,null,null,null,null,null,null,null,null,null,null,null,null,null,null,null,null,null,null,null,null,null,null,null,null,null,null,null,null,null,null,null,null,null,null,null,null,null,null,null,null,null,null,null,null,null,null,null,null,null,null,null,null,null,"-","-",90,null,1,null,null,null,88,null,"-","(-)","(-)"]
["90(-)",null,null,0,null,0,0,null,0,0,0,0,0,null,null,null,null,null,null,null,null,null,null,null,null,null,null,null,null,null,null,null,null,null,null,null,null,null,null,null,null,null,null,null,null,null,null,null,null,null,null,null,null,null,null,null,null,null,null,null,null,null,null,null,null,null,null,null,null,null,null,null,null,null,null,null,null,null,null,null,null,null,null,null,null,null,null,null,null,null,null,null,null,null,null,null,null,null,null,null,null,null,null,null,null,null,null,null,null,null,null,null,null,null,null,null,null,null,null,null,null,null,null,90,90,91,null,1,null,null,null,89,null,90,"(90)","(-)"]
["90(-)",null,null,0,null,0,0,null,0,0,0,0,0,null,null,null,null,null,null,null,null,null,null,null,null,null,null,null,null,null,null,null,null,null,null,null,null,null,null,null,null,null,null,null,null,null,null,null,null,null,null,null,null,null,null,null,null,null,null,null,null,null,null,null,null,null,null,null,null,null,null,null,null,null,null,null,null,null,null,null,null,null,null,null,null,null,null,null,null,null,null,null,null,null,null,null,null,null,null,null,null,null,null,null,null,null,null,null,null,null,null,null,null,null,null,null,null,null,null,null,null,null,null,90,90,92,null,1,null,null,null,112,null,90,"(90)","(-)"]
["90(-)",null,null,0,null,0,0,null,0,0,0,0,0,null,null,null,null,null,null,null,null,null,null,null,null,null,null,null,null,null,null,null,null,null,null,null,null,null,null,null,null,null,null,null,null,null,null,null,null,null,null,null,null,null,null,null,null,null,null,null,null,null,null,null,null,null,null,null,null,null,null,null,null,null,null,null,null,null,null,null,null,null,null,null,null,null,null,null,null,null,null,null,null,null,null,null,null,null,null,null,null,null,null,null,null,null,null,null,null,null,null,null,null,null,null,null,null,null,null,null,null,null,null,90,90,93,null,1,null,null,null,90,null,90,"(90)","(-)"]
["90(-)",null,null,0,null,0,0,null,0,0,0,0,0,null,null,null,null,null,null,null,null,null,null,null,null,null,null,null,null,null,null,null,null,null,null,null,null,null,null,null,null,null,null,null,null,null,null,null,null,null,null,null,null,null,null,null,null,null,null,null,null,null,null,null,null,null,null,null,null,null,null,null,null,null,null,null,null,null,null,null,null,null,null,null,null,null,null,null,null,null,null,null,null,null,null,null,null,null,null,null,null,null,null,null,null,null,null,null,null,null,null,null,null,null,null,null,null,null,null,null,null,null,null,90,90,94,null,1,null,null,null,91,null,90,"(90)","(-)"]
["91(-)",null,null,0,null,0,0,null,0,0,0,0,0,null,null,null,null,null,null,null,null,null,null,null,null,null,null,null,null,null,null,null,null,null,null,null,null,null,null,null,null,null,null,null,null,null,null,null,null,null,null,null,null,null,null,null,null,null,null,null,null,null,null,null,null,null,null,null,null,null,null,null,null,null,null,null,null,null,null,null,null,null,null,null,null,null,null,null,null,null,null,null,null,null,null,null,null,null,null,null,null,null,null,null,null,null,null,null,null,null,null,null,null,null,null,null,null,null,null,null,null,null,null,91,91,95,null,1,null,null,null,92,null,91,"(91)","(-)"]
["92(-)",null,null,0,null,0,0,null,0,0,0,0,0,null,null,null,null,null,null,null,null,null,null,null,null,null,null,null,null,null,null,null,null,null,null,null,null,null,null,null,null,null,null,null,null,null,null,null,null,null,null,null,null,null,null,null,null,null,null,null,null,null,null,null,null,null,null,null,null,null,null,null,null,null,null,null,null,null,null,null,null,null,null,null,null,null,null,null,null,null,null,null,null,null,null,null,null,null,null,null,null,null,null,null,null,null,null,null,null,null,null,null,null,null,null,null,null,null,null,null,null,null,null,92,92,96,null,1,null,null,null,63,null,92,"(92)","(-)"]
["93(-)",null,null,{"$f":"IF(F101>0.5,(G101/F101),0)","v":0},null,{"$f":"COUNT(N101:BO101)","v":0},{"$f":"SUM(N101:BO101)","v":0},null,{"$f":"COUNTIF(BQ101:DR101,2)","v":0},{"$f":"COUNTIF(BQ101:DR101,-2)","v":0},{"$f":"COUNTIF(BQ101:DR101,1)","v":0},{"$f":"COUNTIF(BQ101:DR101,-1)","v":0},{"$f":"IF(F101>0,(I101+K101)/(F101),0)","v":0},null,null,null,null,null,null,null,null,null,null,null,null,null,null,null,null,null,null,null,null,null,null,null,null,null,null,null,null,null,null,null,null,null,null,null,null,null,null,null,null,null,null,null,null,null,null,null,null,null,null,null,null,null,null,null,null,null,null,null,null,null,null,null,null,null,null,null,null,null,null,null,null,null,null,null,null,null,null,null,null,null,null,null,null,null,null,null,null,null,null,null,null,null,null,null,null,null,null,null,null,null,null,null,null,null,null,null,null,null,null,93,93,{"$f":"IF(DX101=1,ROW(97:97),\"-\")","v":97},null,1,null,null,null,93,null,{"$f":"IF(DX101=1,DU101,IF(DX101=\"\",DU101,\"\"))","v":93},{"$f":"IF(DX101=1,\"(\"&DT101&\")\",\"(\"&DV101&\")\")","v":"(93)"},"(-)"]
["94(-)",null,null,0,null,0,0,null,0,0,0,0,0,null,null,null,null,null,null,null,null,null,null,null,null,null,null,null,null,null,null,null,null,null,null,null,null,null,null,null,null,null,null,null,null,null,null,null,null,null,null,null,null,null,null,null,null,null,null,null,null,null,null,null,null,null,null,null,null,null,null,null,null,null,null,null,null,null,null,null,null,null,null,null,null,null,null,null,null,null,null,null,null,null,null,null,null,null,null,null,null,null,null,null,null,null,null,null,null,null,null,null,null,null,null,null,null,null,null,null,null,null,null,94,94,98,null,1,null,null,null,94,null,94,"(94)","(-)"]
["95(-)",null,null,0,null,0,0,null,0,0,0,0,0,null,null,null,null,null,null,null,null,null,null,null,null,null,null,null,null,null,null,null,null,null,null,null,null,null,null,null,null,null,null,null,null,null,null,null,null,null,null,null,null,null,null,null,null,null,null,null,null,null,null,null,null,null,null,null,null,null,null,null,null,null,null,null,null,null,null,null,null,null,null,null,null,null,null,null,null,null,null,null,null,null,null,null,null,null,null,null,null,null,null,null,null,null,null,null,null,null,null,null,null,null,null,null,null,null,null,null,null,null,null,95,95,99,null,1,null,null,null,95,null,95,"(95)","(-)"]
["96(-)",null,null,0,null,0,0,null,0,0,0,0,0,null,null,null,null,null,null,null,null,null,null,null,null,null,null,null,null,null,null,null,null,null,null,null,null,null,null,null,null,null,null,null,null,null,null,null,null,null,null,null,null,null,null,null,null,null,null,null,null,null,null,null,null,null,null,null,null,null,null,null,null,null,null,null,null,null,null,null,null,null,null,null,null,null,null,null,null,null,null,null,null,null,null,null,null,null,null,null,null,null,null,null,null,null,null,null,null,null,null,null,null,null,null,null,null,null,null,null,null,null,null,96,96,100,null,1,null,null,null,96,null,96,"(96)","(-)"]
["97(-)",null,null,0,null,0,0,null,0,0,0,0,0,null,null,null,null,null,null,null,null,null,null,null,null,null,null,null,null,null,null,null,null,null,null,null,null,null,null,null,null,null,null,null,null,null,null,null,null,null,null,null,null,null,null,null,null,null,null,null,null,null,null,null,null,null,null,null,null,null,null,null,null,null,null,null,null,null,null,null,null,null,null,null,null,null,null,null,null,null,null,null,null,null,null,null,null,null,null,null,null,null,null,null,null,null,null,null,null,null,null,null,null,null,null,null,null,null,null,null,null,null,null,97,97,101,null,1,null,null,null,97,null,97,"(97)","(-)"]
["98(-)",null,null,0,null,0,0,null,0,0,0,0,0,null,null,null,null,null,null,null,null,null,null,null,null,null,null,null,null,null,null,null,null,null,null,null,null,null,null,null,null,null,null,null,null,null,null,null,null,null,null,null,null,null,null,null,null,null,null,null,null,null,null,null,null,null,null,null,null,null,null,null,null,null,null,null,null,null,null,null,null,null,null,null,null,null,null,null,null,null,null,null,null,null,null,null,null,null,null,null,null,null,null,null,null,null,null,null,null,null,null,null,null,null,null,null,null,null,null,null,null,null,null,98,98,102,null,1,null,null,null,98,null,98,"(98)","(-)"]
["99(-)",null,null,0,null,0,0,null,0,0,0,0,0,null,null,null,null,null,null,null,null,null,null,null,null,null,null,null,null,null,null,null,null,null,null,null,null,null,null,null,null,null,null,null,null,null,null,null,null,null,null,null,null,null,null,null,null,null,null,null,null,null,null,null,null,null,null,null,null,null,null,null,null,null,null,null,null,null,null,null,null,null,null,null,null,null,null,null,null,null,null,null,null,null,null,null,null,null,null,null,null,null,null,null,null,null,null,null,null,null,null,null,null,null,null,null,null,null,null,null,null,null,null,99,{"$f":"IF(AND(D107=D106,D107=D105,D107=D104,D107=D103),ROW(99:99),IF(AND(D107=D106,D107=D105,D107=D104),ROW(100:100),IF(AND(D107=D106,D107=D105),ROW(101:101),IF(D107=D106,ROW(102:102),IF(D107>1,ROW(103:103),\"-\")))))","v":99},103,null,1,null,null,null,99,null,99,"(99)","(-)"]
["100(-)",null,null,0,null,0,0,null,0,0,0,0,0,null,null,null,null,null,null,null,null,null,null,null,null,null,null,null,null,null,null,null,null,null,null,null,null,null,null,null,null,null,null,null,null,null,null,null,null,null,null,null,null,null,null,null,null,null,null,null,null,null,null,null,null,null,null,null,null,null,null,null,null,null,null,null,null,null,null,null,null,null,null,null,null,null,null,null,null,null,null,null,null,null,null,null,null,null,null,null,null,null,null,null,null,null,null,null,null,null,null,null,null,null,null,null,null,null,null,null,null,null,null,100,100,104,null,1,null,null,null,100,null,100,"(100)","(-)"]
["101(-)",null,null,0,null,0,0,null,0,0,0,0,0,null,null,null,null,null,null,null,null,null,null,null,null,null,null,null,null,null,null,null,null,null,null,null,null,null,null,null,null,null,null,null,null,null,null,null,null,null,null,null,null,null,null,null,null,null,null,null,null,null,null,null,null,null,null,null,null,null,null,null,null,null,null,null,null,null,null,null,null,null,null,null,null,null,null,null,null,null,null,null,null,null,null,null,null,null,null,null,null,null,null,null,null,null,null,null,null,null,null,null,null,null,null,null,null,null,null,null,null,null,null,101,101,105,null,1,null,null,null,101,null,101,"(101)","(-)"]
["102(-)",null,null,0,null,0,0,null,0,0,0,0,0,null,null,null,null,null,null,null,null,null,null,null,null,null,null,null,null,null,null,null,null,null,null,null,null,null,null,null,null,null,null,null,null,null,null,null,null,null,null,null,null,null,null,null,null,null,null,null,null,null,null,null,null,null,null,null,null,null,null,null,null,null,null,null,null,null,null,null,null,null,null,null,null,null,null,null,null,null,null,null,null,null,null,null,null,null,null,null,null,null,null,null,null,null,null,null,null,null,null,null,null,null,null,null,null,null,null,null,null,null,null,102,102,106,null,1,null,null,null,102,null,102,"(102)","(-)"]
["103(-)",null,null,0,null,0,0,null,0,0,0,0,0,null,null,null,null,null,null,null,null,null,null,null,null,null,null,null,null,null,null,null,null,null,null,null,null,null,null,null,null,null,null,null,null,null,null,null,null,null,null,null,null,null,null,null,null,null,null,null,null,null,null,null,null,null,null,null,null,null,null,null,null,null,null,null,null,null,null,null,null,null,null,null,null,null,null,null,null,null,null,null,null,null,null,null,null,null,null,null,null,null,null,null,null,null,null,null,null,null,null,null,null,null,null,null,null,null,null,null,null,null,null,103,103,107,null,1,null,null,null,110,null,103,"(103)","(-)"]
["104(-)",null,null,0,null,0,0,null,0,0,0,0,0,null,null,null,null,null,null,null,null,null,null,null,null,null,null,null,null,null,null,null,null,null,null,null,null,null,null,null,null,null,null,null,null,null,null,null,null,null,null,null,null,null,null,null,null,null,null,null,null,null,null,null,null,null,null,null,null,null,null,null,null,null,null,null,null,null,null,null,null,null,null,null,null,null,null,null,null,null,null,null,null,null,null,null,null,null,null,null,null,null,null,null,null,null,null,null,null,null,null,null,null,null,null,null,null,null,null,null,null,null,null,104,104,108,null,1,null,null,null,103,null,104,"(104)","(-)"]
["105(-)",null,null,0,null,0,0,null,0,0,0,0,0,null,null,null,null,null,null,null,null,null,null,null,null,null,null,null,null,null,null,null,null,null,null,null,null,null,null,null,null,null,null,null,null,null,null,null,null,null,null,null,null,null,null,null,null,null,null,null,null,null,null,null,null,null,null,null,null,null,null,null,null,null,null,null,null,null,null,null,null,null,null,null,null,null,null,null,null,null,null,null,null,null,null,null,null,null,null,null,null,null,null,null,null,null,null,null,null,null,null,null,null,null,null,null,null,null,null,null,null,null,null,105,105,109,null,1,null,null,null,104,null,105,"(105)","(-)"]
["106(-)",null,null,0,null,0,0,null,0,0,0,0,0,null,null,null,null,null,null,null,null,null,null,null,null,null,null,null,null,null,null,null,null,null,null,null,null,null,null,null,null,null,null,null,null,null,null,null,null,null,null,null,null,null,null,null,null,null,null,null,null,null,null,null,null,null,null,null,null,null,null,null,null,null,null,null,null,null,null,null,null,null,null,null,null,null,null,null,null,null,null,null,null,null,null,null,null,null,null,null,null,null,null,null,null,null,null,null,null,null,null,null,null,null,null,null,null,null,null,null,null,null,null,106,106,110,null,1,null,null,null,105,null,106,"(106)","(-)"]
["107(-)",null,null,0,null,0,0,null,0,0,0,0,0,null,null,null,null,null,null,null,null,null,null,null,null,null,null,null,null,null,null,null,null,null,null,null,null,null,null,null,null,null,null,null,null,null,null,null,null,null,null,null,null,null,null,null,null,null,null,null,null,null,null,null,null,null,null,null,null,null,null,null,null,null,null,null,null,null,null,null,null,null,null,null,null,null,null,null,null,null,null,null,null,null,null,null,null,null,null,null,null,null,null,null,null,null,null,null,null,null,null,null,null,null,null,null,null,null,null,null,null,null,null,107,107,111,null,1,null,null,null,106,null,107,"(107)","(-)"]
["108(-)",null,null,0,null,0,0,null,0,0,0,0,0,null,null,null,null,null,null,null,null,null,null,null,null,null,null,null,null,null,null,null,null,null,null,null,null,null,null,null,null,null,null,null,null,null,null,null,null,null,null,null,null,null,null,null,null,null,null,null,null,null,null,null,null,null,null,null,null,null,null,null,null,null,null,null,null,null,null,null,null,null,null,null,null,null,null,null,null,null,null,null,null,null,null,null,null,null,null,null,null,null,null,null,null,null,null,null,null,null,null,null,null,null,null,null,null,null,null,null,null,null,null,108,108,112,null,1,null,null,null,107,null,108,"(108)","(-)"]
["109(-)",null,null,0,null,0,0,null,0,0,0,0,0,null,null,null,null,null,null,null,null,null,null,null,null,null,null,null,null,null,null,null,null,null,null,null,null,null,null,null,null,null,null,null,null,null,null,null,null,null,null,null,null,null,null,null,null,null,null,null,null,null,null,null,null,null,null,null,null,null,null,null,null,null,null,null,null,null,null,null,null,null,null,null,null,null,null,null,null,null,null,null,null,null,null,null,null,null,null,null,null,null,null,null,null,null,null,null,null,null,null,null,null,null,null,null,null,null,null,null,null,null,null,109,109,113,null,1,null,null,null,108,null,109,"(109)","(-)"]
["110(-)",null,null,0,null,0,0,null,0,0,0,0,0,null,null,null,null,null,null,null,null,null,null,null,null,null,null,null,null,null,null,null,null,null,null,null,null,null,null,null,null,null,null,null,null,null,null,null,null,null,null,null,null,null,null,null,null,null,null,null,null,null,null,null,null,null,null,null,null,null,null,null,null,null,null,null,null,null,null,null,null,null,null,null,null,null,null,null,null,null,null,null,null,null,null,null,null,null,null,null,null,null,null,null,null,null,null,null,null,null,null,null,null,null,null,null,null,null,null,null,null,null,null,110,110,114,null,1,null,null,null,109,null,110,"(110)","(-)"]
["111(-)",null,null,0,null,0,0,null,0,0,0,0,0,null,null,null,null,null,null,null,null,null,null,null,null,null,null,null,null,null,null,null,null,null,null,null,null,null,null,null,null,null,null,null,null,null,null,null,null,null,null,null,null,null,null,null,null,null,null,null,null,null,null,null,null,null,null,null,null,null,null,null,null,null,null,null,null,null,null,null,null,null,null,null,null,null,null,null,null,null,null,null,null,null,null,null,null,null,null,null,null,null,null,null,null,null,null,null,null,null,null,null,null,null,null,null,null,null,null,null,null,null,null,111,111,115,null,1,null,null,null,112,null,111,"(111)","(-)"]
["112(-)",null,null,0,null,0,0,null,0,0,0,0,0,null,null,null,null,null,null,null,null,null,null,null,null,null,null,null,null,null,null,null,null,null,null,null,null,null,null,null,null,null,null,null,null,null,null,null,null,null,null,null,null,null,null,null,null,null,null,null,null,null,null,null,null,null,null,null,null,null,null,null,null,null,null,null,null,null,null,null,null,null,null,null,null,null,null,null,null,null,null,null,null,null,null,null,null,null,null,null,null,null,null,null,null,null,null,null,null,null,null,null,null,null,null,null,null,null,null,null,null,null,null,112,112,116,null,1,null,null,null,110,null,112,"(112)","(-)"]
["113(-)",null,null,0,null,0,0,null,0,0,0,0,0,null,null,null,null,null,null,null,null,null,null,null,null,null,null,null,null,null,null,null,null,null,null,null,null,null,null,null,null,null,null,null,null,null,null,null,null,null,null,null,null,null,null,null,null,null,null,null,null,null,null,null,null,null,null,null,null,null,null,null,null,null,null,null,null,null,null,null,null,null,null,null,null,null,null,null,null,null,null,null,null,null,null,null,null,null,null,null,null,null,null,null,null,null,null,null,null,null,null,null,null,null,null,null,null,null,null,null,null,null,null,113,{"$f":"IF(AND(D121=D120,D121=D119,D121=D118,D121=D117),ROW(113:113),IF(AND(D121=D120,D121=D119,D121=D118),ROW(114:114),IF(AND(D121=D120,D121=D119),ROW(115:115),IF(D121=D120,ROW(116:116),IF(D121>1,ROW(117:117),\"-\")))))","v":113},{"$f":"IF(DX121=1,ROW(117:117),\"-\")","v":117},null,1,null,null,null,111,null,{"$f":"IF(DX121=1,DU121,IF(DX121=\"\",DU121,\"\"))","v":113},{"$f":"IF(DX121=1,\"(\"&DT121&\")\",\"(\"&DV121&\")\")","v":"(113)"},"(-)"]
["114(-)",null,null,0,null,0,0,null,0,0,0,0,0,null,null,null,null,null,null,null,null,null,null,null,null,null,null,null,null,null,null,null,null,null,null,null,null,null,null,null,null,null,null,null,null,null,null,null,null,null,null,null,null,null,null,null,null,null,null,null,null,null,null,null,null,null,null,null,null,null,null,null,null,null,null,null,null,null,null,null,null,null,null,null,null,null,null,null,null,null,null,null,null,null,null,null,null,null,null,null,null,null,null,null,null,null,null,null,null,null,null,null,null,null,null,null,null,null,null,null,null,null,null,114,{"$f":"IF(AND(D122=D121,D122=D120,D122=D119,D122=D118),ROW(114:114),IF(AND(D122=D121,D122=D120,D122=D119),ROW(115:115),IF(AND(D122=D121,D122=D120),ROW(116:116),IF(D122=D121,ROW(117:117),IF(D122>1,ROW(118:118),\"-\")))))","v":114},{"$f":"IF(DX122=1,ROW(118:118),\"-\")","v":118},null,1,null,null,null,113,null,{"$f":"IF(DX122=1,DU122,IF(DX122=\"\",DU122,\"\"))","v":114},{"$f":"IF(DX122=1,\"(\"&DT122&\")\",\"(\"&DV122&\")\")","v":"(114)"},"(-)"]
["115(-)",null,null,0,null,0,0,null,0,0,0,0,0,null,null,null,null,null,null,null,null,null,null,null,null,null,null,null,null,null,null,null,null,null,null,null,null,null,null,null,null,null,null,null,null,null,null,null,null,null,null,null,null,null,null,null,null,null,null,null,null,null,null,null,null,null,null,null,null,null,null,null,null,null,null,null,null,null,null,null,null,null,null,null,null,null,null,null,null,null,null,null,null,null,null,null,null,null,null,null,null,null,null,null,null,null,null,null,null,null,null,null,null,null,null,null,null,null,null,null,null,null,null,115,{"$f":"IF(AND(D123=D122,D123=D121,D123=D120,D123=D119),ROW(115:115),IF(AND(D123=D122,D123=D121,D123=D120),ROW(116:116),IF(AND(D123=D122,D123=D121),ROW(117:117),IF(D123=D122,ROW(118:118),IF(D123>1,ROW(119:119),\"-\")))))","v":115},{"$f":"IF(DX123=1,ROW(119:119),\"-\")","v":119},null,1,null,null,null,113,null,{"$f":"IF(DX123=1,DU123,IF(DX123=\"\",DU123,\"\"))","v":115},{"$f":"IF(DX123=1,\"(\"&DT123&\")\",\"(\"&DV123&\")\")","v":"(115)"},"(-)"]